{"text_format":"1","workbook":"xlsx","n_sheets":5,"sheets":["Roster","Shift Frequencies","CF Test","Teams","Data"],"not_rendered":{"charts":0,"images":2,"macros":1,"external_links":0,"defined_names":28,"comments":1,"pivot_tables":0},"unopened":[],"bounds":{"document_bytes":16777216,"sheet_cells":100000,"rows_first":2000,"rows_last":500,"rows_between":2000,"halvings":0,"cell_chars":16384,"cell_head_chars":4096},"cells_cut":0,"cells_raw":0,"read":"whole","date_system":"1900"}

{"sheet":"Roster","index":0,"n_rows":154,"n_cols":40,"rows_kept":154,"cut":false,"hidden":false,"merged":[[3,18,3,19],[2,14,2,15],[3,2,3,3],[3,4,3,5],[3,6,3,7],[3,8,3,9],[3,10,3,11],[3,12,3,13],[3,14,3,15],[2,2,2,3],[2,4,2,5],[2,6,2,7],[2,8,2,9],[2,10,2,11],[2,12,2,13],[4,14,4,15],[6,2,6,3],[6,4,6,5],[6,6,6,7],[6,8,6,9],[6,10,6,11],[6,12,6,13],[6,14,6,15],[4,2,4,3],[4,4,4,5],[4,6,4,7],[4,8,4,9],[4,10,4,11],[4,12,4,13],[8,14,8,15],[10,2,10,3],[10,4,10,5],[10,6,10,7],[10,8,10,9],[10,10,10,11],[10,12,10,13],[10,14,10,15],[8,2,8,3],[8,4,8,5],[8,6,8,7],[8,8,8,9],[8,10,8,11],[8,12,8,13],[12,14,12,15],[14,2,14,3],[14,4,14,5],[14,6,14,7],[14,8,14,9],[14,10,14,11],[14,12,14,13],[14,14,14,15],[12,2,12,3],[12,4,12,5],[12,6,12,7],[12,8,12,9],[12,10,12,11],[12,12,12,13],[16,14,16,15],[18,2,18,3],[18,4,18,5],[18,6,18,7],[18,8,18,9],[18,10,18,11],[18,12,18,13],[18,14,18,15],[16,2,16,3],[16,4,16,5],[16,6,16,7],[16,8,16,9],[16,10,16,11],[16,12,16,13],[20,14,20,15],[22,2,22,3],[22,4,22,5],[22,6,22,7],[22,8,22,9],[22,10,22,11],[22,12,22,13],[22,14,22,15],[20,2,20,3],[20,4,20,5],[20,6,20,7],[20,8,20,9],[20,10,20,11],[20,12,20,13],[24,14,24,15],[26,2,26,3],[26,4,26,5],[26,6,26,7],[26,8,26,9],[26,10,26,11],[26,12,26,13],[26,14,26,15],[24,2,24,3],[24,4,24,5],[24,6,24,7],[24,8,24,9],[24,10,24,11],[24,12,24,13],[28,14,28,15],[30,2,30,3],[30,4,30,5],[30,6,30,7],[30,8,30,9],[30,10,30,11],[30,12,30,13],[30,14,30,15],[28,2,28,3],[28,4,28,5],[28,6,28,7],[28,8,28,9],[28,10,28,11],[28,12,28,13],[32,14,32,15],[34,2,34,3],[34,4,34,5],[34,6,34,7],[34,8,34,9],[34,10,34,11],[34,12,34,13],[34,14,34,15],[32,2,32,3],[32,4,32,5],[32,6,32,7],[32,8,32,9],[32,10,32,11],[32,12,32,13],[36,2,36,3],[36,4,36,5],[36,6,36,7],[36,8,36,9],[36,10,36,11],[36,12,36,13],[36,14,36,15],[38,2,38,3],[38,4,38,5],[38,6,38,7],[38,8,38,9],[38,10,38,11],[38,12,38,13],[38,14,38,15],[44,2,44,3],[44,4,44,5],[44,6,44,7],[44,8,44,9],[44,10,44,11],[44,12,44,13],[44,14,44,15],[40,2,40,3],[40,4,40,5],[40,6,40,7],[40,8,40,9],[40,10,40,11],[40,12,40,13],[40,14,40,15],[42,2,42,3],[42,4,42,5],[42,6,42,7],[42,8,42,9],[42,10,42,11],[42,12,42,13],[42,14,42,15],[48,2,48,3],[48,4,48,5],[48,6,48,7],[48,8,48,9],[48,10,48,11],[48,12,48,13],[48,14,48,15],[50,2,50,3],[50,4,50,5],[50,6,50,7],[50,8,50,9],[50,10,50,11],[50,12,50,13],[50,14,50,15],[52,2,52,3],[52,4,52,5],[52,6,52,7],[52,8,52,9],[52,10,52,11],[52,12,52,13],[52,14,52,15],[54,2,54,3],[54,4,54,5],[54,6,54,7],[54,8,54,9],[54,10,54,11],[54,12,54,13],[54,14,54,15],[56,2,56,3],[56,4,56,5],[56,6,56,7],[56,8,56,9],[56,10,56,11],[56,12,56,13],[56,14,56,15],[58,2,58,3],[58,4,58,5],[58,6,58,7],[58,8,58,9],[58,10,58,11],[58,12,58,13],[58,14,58,15],[60,2,60,3],[60,4,60,5],[60,6,60,7],[60,8,60,9],[60,10,60,11],[60,12,60,13],[60,14,60,15],[62,2,62,3],[62,4,62,5],[62,6,62,7],[62,8,62,9],[62,10,62,11],[62,12,62,13],[62,14,62,15],[64,2,64,3],[64,4,64,5],[64,6,64,7],[64,8,64,9],[64,10,64,11],[64,12,64,13],[64,14,64,15],[66,2,66,3],[66,4,66,5],[66,6,66,7],[66,8,66,9],[66,10,66,11],[66,12,66,13],[66,14,66,15],[68,2,68,3],[68,4,68,5],[68,6,68,7],[68,8,68,9],[68,10,68,11],[68,12,68,13],[68,14,68,15],[70,2,70,3],[70,4,70,5],[70,6,70,7],[70,8,70,9],[70,10,70,11],[70,12,70,13],[70,14,70,15],[72,2,72,3],[72,4,72,5],[72,6,72,7],[72,8,72,9],[72,10,72,11],[72,12,72,13],[72,14,72,15],[74,2,74,3],[74,4,74,5],[74,6,74,7],[74,8,74,9],[74,10,74,11],[74,12,74,13],[74,14,74,15],[76,2,76,3],[76,4,76,5],[76,6,76,7],[76,8,76,9],[76,10,76,11],[76,12,76,13],[76,14,76,15],[78,2,78,3],[78,4,78,5],[78,6,78,7],[78,8,78,9],[78,10,78,11],[78,12,78,13],[78,14,78,15],[80,2,80,3],[80,4,80,5],[80,6,80,7],[80,8,80,9],[80,10,80,11],[80,12,80,13],[80,14,80,15],[82,2,82,3],[82,4,82,5],[82,6,82,7],[82,8,82,9],[82,10,82,11],[82,12,82,13],[82,14,82,15],[84,2,84,3],[84,4,84,5],[84,6,84,7],[84,8,84,9],[84,10,84,11],[84,12,84,13],[84,14,84,15],[86,2,86,3],[86,4,86,5],[86,6,86,7],[86,8,86,9],[86,10,86,11],[86,12,86,13],[86,14,86,15],[88,2,88,3],[88,4,88,5],[88,6,88,7],[88,8,88,9],[88,10,88,11],[88,12,88,13],[88,14,88,15],[90,2,90,3],[90,4,90,5],[90,6,90,7],[90,8,90,9],[90,10,90,11],[90,12,90,13],[90,14,90,15],[92,2,92,3],[92,4,92,5],[92,6,92,7],[92,8,92,9],[92,10,92,11],[92,12,92,13],[92,14,92,15],[94,2,94,3],[94,4,94,5],[94,6,94,7],[94,8,94,9],[94,10,94,11],[94,12,94,13],[94,14,94,15],[96,2,96,3],[96,4,96,5],[96,6,96,7],[96,8,96,9],[96,10,96,11],[96,12,96,13],[96,14,96,15],[98,2,98,3],[98,4,98,5],[98,6,98,7],[98,8,98,9],[98,10,98,11],[98,12,98,13],[98,14,98,15],[100,2,100,3],[100,4,100,5],[100,6,100,7],[100,8,100,9],[100,10,100,11],[100,12,100,13],[100,14,100,15],[102,2,102,3],[102,4,102,5],[102,6,102,7],[102,8,102,9],[102,10,102,11],[102,12,102,13],[102,14,102,15],[104,2,104,3],[104,4,104,5],[104,6,104,7],[104,8,104,9],[104,10,104,11],[104,12,104,13],[104,14,104,15],[106,2,106,3],[106,4,106,5],[106,6,106,7],[106,8,106,9],[106,10,106,11],[106,12,106,13],[106,14,106,15],[108,2,108,3],[108,4,108,5],[108,6,108,7],[108,8,108,9],[108,10,108,11],[108,12,108,13],[108,14,108,15],[110,2,110,3],[110,4,110,5],[110,6,110,7],[110,8,110,9],[110,10,110,11],[110,12,110,13],[110,14,110,15],[112,2,112,3],[112,4,112,5],[112,6,112,7],[112,8,112,9],[112,10,112,11],[112,12,112,13],[112,14,112,15],[114,2,114,3],[114,4,114,5],[114,6,114,7],[114,8,114,9],[114,10,114,11],[114,12,114,13],[114,14,114,15],[116,2,116,3],[116,4,116,5],[116,6,116,7],[116,8,116,9],[116,10,116,11],[116,12,116,13],[116,14,116,15],[118,2,118,3],[118,4,118,5],[118,6,118,7],[118,8,118,9],[118,10,118,11],[118,12,118,13],[118,14,118,15],[120,2,120,3],[120,4,120,5],[120,6,120,7],[120,8,120,9],[120,10,120,11],[120,12,120,13],[120,14,120,15],[122,2,122,3],[122,4,122,5],[122,6,122,7],[122,8,122,9],[122,10,122,11],[122,12,122,13],[122,14,122,15],[130,8,130,9],[130,10,130,11],[130,12,130,13],[130,14,130,15],[124,2,124,3],[124,4,124,5],[124,6,124,7],[124,8,124,9],[124,10,124,11],[124,12,124,13],[124,14,124,15],[126,2,126,3],[126,4,126,5],[126,6,126,7],[126,8,126,9],[126,10,126,11],[126,12,126,13],[126,14,126,15],[46,2,46,3],[46,4,46,5],[46,6,46,7],[46,8,46,9],[46,10,46,11],[46,12,46,13],[46,14,46,15],[132,2,132,3],[132,4,132,5],[132,6,132,7],[132,8,132,9],[132,10,132,11],[132,12,132,13],[132,14,132,15],[128,2,128,3],[128,4,128,5],[128,6,128,7],[128,8,128,9],[128,10,128,11],[128,12,128,13],[128,14,128,15],[130,2,130,3],[130,4,130,5],[130,6,130,7],[134,2,134,3],[134,4,134,5],[134,6,134,7],[134,8,134,9],[134,10,134,11],[134,12,134,13],[134,14,134,15],[136,2,136,3],[136,4,136,5],[136,6,136,7],[136,8,136,9],[136,10,136,11],[136,12,136,13],[136,14,136,15],[138,2,138,3],[138,4,138,5],[138,6,138,7],[138,8,138,9],[138,10,138,11],[138,12,138,13],[138,14,138,15],[140,2,140,3],[140,4,140,5],[140,6,140,7],[140,8,140,9],[140,10,140,11],[140,12,140,13],[140,14,140,15],[142,2,142,3],[142,4,142,5],[142,6,142,7],[142,8,142,9],[142,10,142,11],[142,12,142,13],[142,14,142,15],[144,2,144,3],[144,4,144,5],[144,6,144,7],[144,8,144,9],[144,10,144,11],[144,12,144,13],[144,14,144,15],[146,2,146,3],[146,4,146,5],[146,6,146,7],[146,8,146,9],[146,10,146,11],[146,12,146,13],[146,14,146,15],[148,2,148,3],[148,4,148,5],[148,6,148,7],[148,8,148,9],[148,10,148,11],[148,12,148,13],[148,14,148,15],[150,2,150,3],[150,4,150,5],[150,6,150,7],[150,8,150,9],[150,10,150,11],[150,12,150,13],[150,14,150,15],[152,2,152,3],[152,4,152,5],[152,6,152,7],[152,8,152,9],[152,10,152,11],[152,12,152,13],[152,14,152,15]]}
[null,null,null,null,null,null,null,null,null,null,null,null,null,null,null,null,null,"Roster Destruct Button"]
[null,null,null,null,null,null,null,null,null,null,null,null,null,null,null,null,null,null,"Just clears names for the next week !!"]
[null,"Participant","Monday",null,"Tuesday",null,"Wednesday",null,"Thursday",null,"Friday",null,"Saturday",null,"Sunday"]
[null,null,"2021-08-16",null,"2021-08-17",null,"2021-08-18",null,"2021-08-19",null,"2021-08-20",null,"2021-08-21",null,"2021-08-22",null,"Hours",null,"Hours tallied weekly",null,null,null,null,null,null,null,null,null,null,null,null,null,null,null,null,null,null,null,"Name","Refers to"]
[null,{"$f":" _xlfn.LET(\n   _xlpm.n, ROWS(ClientTbl[]),\n   _xlpm.k, _xlfn.SEQUENCE(2*_xlpm.n),\n   _xlpm.client, INDEX(ClientTbl[], 1+QUOTIENT(_xlpm.k-1,2)),\n   IF(ISODD(_xlpm.k), _xlpm.client, \"\"))","v":"Client 1"},null,null,null,null,null,null,null,null,null,null,null,null,null,null,{"$f":" IF(_xlfn.SINGLE(ClientHdr)=\"\",\n      _xlfn.LET(\n         _xlpm.cols, _xlfn.SEQUENCE(1,7,1,2),\n         _xlpm.start, INDEX(currentRow,_xlpm.cols),\n         _xlpm.finish, INDEX(currentRow, 1+_xlpm.cols),\n         SUM(24*(_xlpm.finish-_xlpm.start))),\n      \"\")","v":""},null,{"$f":"StaffTbl[]","v":"Staff 1"},{"$f":" _xlfn.LET(\n      _xlpm.r, _xlfn.SEQUENCE(ROWS(ClientTbl[]),1,1,2),\n      _xlpm.c, _xlfn.SEQUENCE(1,7,2,2),\n      _xlpm.staff, INDEX(Roster, _xlpm.r, _xlpm.c),\n      _xlpm.hrsWeek,\n         IF(_xlpm.staff=_xlfn.SINGLE(StaffList),\n            _xlfn.LET(\n               _xlpm.start, INDEX(Roster, _xlpm.r+1, _xlpm.c),\n               _xlpm.finish, INDEX(Roster, _xlpm.r+1, _xlpm.c+1),\n               24*(_xlpm.finish - _xlpm.start) ),\n         \"\"),\n      SUM(_xlpm.hrsWeek))","v":0},null,null,null,null,null,null,null,null,null,null,null,null,null,null,null,null,null,null,"conflict?","= IF(ISTEXT(currentAssigned),       COUNTIFS(          otherAssigned, currentAssigned,          otherStart, \"<\"&currentFinish,          otherFinish, \">\"&currentStart       ) > 1)"]
[null,"",null,null,null,null,null,null,"09:00:00","12:00:00","09:00:00","12:00:00",null,null,null,null,{"$f":" IF(_xlfn.SINGLE(ClientHdr)=\"\",\n      _xlfn.LET(\n         _xlpm.cols, _xlfn.SEQUENCE(1,7,2,2),\n         _xlpm.start, INDEX(currentRow,_xlpm.cols),\n         _xlpm.finish, INDEX(currentRow, 1+_xlpm.cols),\n         SUM(24*(_xlpm.finish-_xlpm.start))),\n      \"\")","v":6},null,"Staff 2",{"$f":" _xlfn.LET(\n      _xlpm.r, _xlfn.SEQUENCE(ROWS(ClientTbl[]),1,1,2),\n      _xlpm.c, _xlfn.SEQUENCE(1,7,2,2),\n      _xlpm.staff, INDEX(Roster, _xlpm.r, _xlpm.c),\n      _xlpm.hrsWeek,\n         IF(_xlpm.staff=_xlfn.SINGLE(StaffList),\n            _xlfn.LET(\n               _xlpm.start, INDEX(Roster, _xlpm.r+1, _xlpm.c),\n               _xlpm.finish, INDEX(Roster, _xlpm.r+1, _xlpm.c+1),\n               24*(_xlpm.finish - _xlpm.start) ),\n         \"\"),\n      SUM(_xlpm.hrsWeek))","v":0},null,null,null,null,null,null,null,null,null,null,null,null,null,null,null,null,null,null,"validationList","= XLOOKUP(@ClientHdr, clientValidation, Deployable, validTimes)"]
[null,"Client 2",null,null,null,null,null,null,null,null,null,null,null,null,null,null,{"$f":" IF(_xlfn.SINGLE(ClientHdr)=\"\",\n      _xlfn.LET(\n         _xlpm.cols, _xlfn.SEQUENCE(1,7,2,2),\n         _xlpm.start, INDEX(currentRow,_xlpm.cols),\n         _xlpm.finish, INDEX(currentRow, 1+_xlpm.cols),\n         SUM(24*(_xlpm.finish-_xlpm.start))),\n      \"\")","v":""},null,"Staff 3",{"$f":" _xlfn.LET(\n      _xlpm.r, _xlfn.SEQUENCE(ROWS(ClientTbl[]),1,1,2),\n      _xlpm.c, _xlfn.SEQUENCE(1,7,2,2),\n      _xlpm.staff, INDEX(Roster, _xlpm.r, _xlpm.c),\n      _xlpm.hrsWeek,\n         IF(_xlpm.staff=_xlfn.SINGLE(StaffList),\n            _xlfn.LET(\n               _xlpm.start, INDEX(Roster, _xlpm.r+1, _xlpm.c),\n               _xlpm.finish, INDEX(Roster, _xlpm.r+1, _xlpm.c+1),\n               24*(_xlpm.finish - _xlpm.start) ),\n         \"\"),\n      SUM(_xlpm.hrsWeek))","v":0},null,null,null,null,null,null,null,null,null,null,null,null,null,null,null,null,null,null,"validTimes","=Data!$B$2:$B$72"]
[null,"",null,null,null,null,null,null,null,null,null,null,null,null,null,null,{"$f":" IF(_xlfn.SINGLE(ClientHdr)=\"\",\n      _xlfn.LET(\n         _xlpm.cols, _xlfn.SEQUENCE(1,7,2,2),\n         _xlpm.start, INDEX(currentRow,_xlpm.cols),\n         _xlpm.finish, INDEX(currentRow, 1+_xlpm.cols),\n         SUM(24*(_xlpm.finish-_xlpm.start))),\n      \"\")","v":0},null,"Staff 4",{"$f":" _xlfn.LET(\n      _xlpm.r, _xlfn.SEQUENCE(ROWS(ClientTbl[]),1,1,2),\n      _xlpm.c, _xlfn.SEQUENCE(1,7,2,2),\n      _xlpm.staff, INDEX(Roster, _xlpm.r, _xlpm.c),\n      _xlpm.hrsWeek,\n         IF(_xlpm.staff=_xlfn.SINGLE(StaffList),\n            _xlfn.LET(\n               _xlpm.start, INDEX(Roster, _xlpm.r+1, _xlpm.c),\n               _xlpm.finish, INDEX(Roster, _xlpm.r+1, _xlpm.c+1),\n               24*(_xlpm.finish - _xlpm.start) ),\n         \"\"),\n      SUM(_xlpm.hrsWeek))","v":0},null,null,null,null,null,null,null,null,null,null,null,null,null,null,null,null,null,null,"ClientLst","=Roster!#REF!"]
[null,"Client 3",null,null,null,null,null,null,null,null,null,null,null,null,null,null,{"$f":" IF(_xlfn.SINGLE(ClientHdr)=\"\",\n      _xlfn.LET(\n         _xlpm.cols, _xlfn.SEQUENCE(1,7,2,2),\n         _xlpm.start, INDEX(currentRow,_xlpm.cols),\n         _xlpm.finish, INDEX(currentRow, 1+_xlpm.cols),\n         SUM(24*(_xlpm.finish-_xlpm.start))),\n      \"\")","v":""},null,"Staff 5",{"$f":" _xlfn.LET(\n      _xlpm.r, _xlfn.SEQUENCE(ROWS(ClientTbl[]),1,1,2),\n      _xlpm.c, _xlfn.SEQUENCE(1,7,2,2),\n      _xlpm.staff, INDEX(Roster, _xlpm.r, _xlpm.c),\n      _xlpm.hrsWeek,\n         IF(_xlpm.staff=_xlfn.SINGLE(StaffList),\n            _xlfn.LET(\n               _xlpm.start, INDEX(Roster, _xlpm.r+1, _xlpm.c),\n               _xlpm.finish, INDEX(Roster, _xlpm.r+1, _xlpm.c+1),\n               24*(_xlpm.finish - _xlpm.start) ),\n         \"\"),\n      SUM(_xlpm.hrsWeek))","v":0},null,null,null,null,null,null,null,null,null,null,null,null,null,null,null,null,null,null,"ClientHdr","=Roster!$B$5:$B$36"]
[null,"",null,null,null,null,"09:00:00","15:00:00",null,null,null,null,null,null,null,null,{"$f":" IF(_xlfn.SINGLE(ClientHdr)=\"\",\n      _xlfn.LET(\n         _xlpm.cols, _xlfn.SEQUENCE(1,7,2,2),\n         _xlpm.start, INDEX(currentRow,_xlpm.cols),\n         _xlpm.finish, INDEX(currentRow, 1+_xlpm.cols),\n         SUM(24*(_xlpm.finish-_xlpm.start))),\n      \"\")","v":6},null,"Staff 6",{"$f":" _xlfn.LET(\n      _xlpm.r, _xlfn.SEQUENCE(ROWS(ClientTbl[]),1,1,2),\n      _xlpm.c, _xlfn.SEQUENCE(1,7,2,2),\n      _xlpm.staff, INDEX(Roster, _xlpm.r, _xlpm.c),\n      _xlpm.hrsWeek,\n         IF(_xlpm.staff=_xlfn.SINGLE(StaffList),\n            _xlfn.LET(\n               _xlpm.start, INDEX(Roster, _xlpm.r+1, _xlpm.c),\n               _xlpm.finish, INDEX(Roster, _xlpm.r+1, _xlpm.c+1),\n               24*(_xlpm.finish - _xlpm.start) ),\n         \"\"),\n      SUM(_xlpm.hrsWeek))","v":0},null,null,null,null,null,null,null,null,null,null,null,null,null,null,null,null,null,null,"startTime","=Roster!$D$16:$Q$37"]
[null,"Client 4",null,null,null,null,null,null,null,null,null,null,null,null,null,null,{"$f":" IF(_xlfn.SINGLE(ClientHdr)=\"\",\n      _xlfn.LET(\n         _xlpm.cols, _xlfn.SEQUENCE(1,7,2,2),\n         _xlpm.start, INDEX(currentRow,_xlpm.cols),\n         _xlpm.finish, INDEX(currentRow, 1+_xlpm.cols),\n         SUM(24*(_xlpm.finish-_xlpm.start))),\n      \"\")","v":""},null,"Staff 7",{"$f":" _xlfn.LET(\n      _xlpm.r, _xlfn.SEQUENCE(ROWS(ClientTbl[]),1,1,2),\n      _xlpm.c, _xlfn.SEQUENCE(1,7,2,2),\n      _xlpm.staff, INDEX(Roster, _xlpm.r, _xlpm.c),\n      _xlpm.hrsWeek,\n         IF(_xlpm.staff=_xlfn.SINGLE(StaffList),\n            _xlfn.LET(\n               _xlpm.start, INDEX(Roster, _xlpm.r+1, _xlpm.c),\n               _xlpm.finish, INDEX(Roster, _xlpm.r+1, _xlpm.c+1),\n               24*(_xlpm.finish - _xlpm.start) ),\n         \"\"),\n      SUM(_xlpm.hrsWeek))","v":0},null,null,null,null,null,null,null,null,null,null,null,null,null,null,null,null,null,null,"DateHdr","=Roster!$D$4:$Q$4"]
[null,"",null,null,"09:00:00","14:00:00","09:00:00","14:00:00","09:00:00","14:00:00","09:00:00","14:00:00",null,null,null,null,{"$f":" IF(_xlfn.SINGLE(ClientHdr)=\"\",\n      _xlfn.LET(\n         _xlpm.cols, _xlfn.SEQUENCE(1,7,2,2),\n         _xlpm.start, INDEX(currentRow,_xlpm.cols),\n         _xlpm.finish, INDEX(currentRow, 1+_xlpm.cols),\n         SUM(24*(_xlpm.finish-_xlpm.start))),\n      \"\")","v":19.999999999999972},null,"Staff 8",{"$f":" _xlfn.LET(\n      _xlpm.r, _xlfn.SEQUENCE(ROWS(ClientTbl[]),1,1,2),\n      _xlpm.c, _xlfn.SEQUENCE(1,7,2,2),\n      _xlpm.staff, INDEX(Roster, _xlpm.r, _xlpm.c),\n      _xlpm.hrsWeek,\n         IF(_xlpm.staff=_xlfn.SINGLE(StaffList),\n            _xlfn.LET(\n               _xlpm.start, INDEX(Roster, _xlpm.r+1, _xlpm.c),\n               _xlpm.finish, INDEX(Roster, _xlpm.r+1, _xlpm.c+1),\n               24*(_xlpm.finish - _xlpm.start) ),\n         \"\"),\n      SUM(_xlpm.hrsWeek))","v":0},null,null,null,null,null,null,null,null,null,null,null,null,null,null,null,null,null,null,"Roster","=Roster!$D$5:$Q$36"]
[null,"Client 5",null,null,null,null,null,null,null,null,null,null,null,null,null,null,{"$f":" IF(_xlfn.SINGLE(ClientHdr)=\"\",\n      _xlfn.LET(\n         _xlpm.cols, _xlfn.SEQUENCE(1,7,2,2),\n         _xlpm.start, INDEX(currentRow,_xlpm.cols),\n         _xlpm.finish, INDEX(currentRow, 1+_xlpm.cols),\n         SUM(24*(_xlpm.finish-_xlpm.start))),\n      \"\")","v":""},null,"Staff 9",{"$f":" _xlfn.LET(\n      _xlpm.r, _xlfn.SEQUENCE(ROWS(ClientTbl[]),1,1,2),\n      _xlpm.c, _xlfn.SEQUENCE(1,7,2,2),\n      _xlpm.staff, INDEX(Roster, _xlpm.r, _xlpm.c),\n      _xlpm.hrsWeek,\n         IF(_xlpm.staff=_xlfn.SINGLE(StaffList),\n            _xlfn.LET(\n               _xlpm.start, INDEX(Roster, _xlpm.r+1, _xlpm.c),\n               _xlpm.finish, INDEX(Roster, _xlpm.r+1, _xlpm.c+1),\n               24*(_xlpm.finish - _xlpm.start) ),\n         \"\"),\n      SUM(_xlpm.hrsWeek))","v":0},null,null,null,null,null,null,null,null,null,null,null,null,null,null,null,null,null,null,"currentRow","=Roster!$D11:$Q11"]
[null,"",null,null,"09:00:00","14:00:00",null,null,"09:00:00","13:30:00","09:00:00","14:00:00",null,null,null,null,{"$f":" IF(_xlfn.SINGLE(ClientHdr)=\"\",\n      _xlfn.LET(\n         _xlpm.cols, _xlfn.SEQUENCE(1,7,2,2),\n         _xlpm.start, INDEX(currentRow,_xlpm.cols),\n         _xlpm.finish, INDEX(currentRow, 1+_xlpm.cols),\n         SUM(24*(_xlpm.finish-_xlpm.start))),\n      \"\")","v":14.499999999999986},null,"Staff 10",{"$f":" _xlfn.LET(\n      _xlpm.r, _xlfn.SEQUENCE(ROWS(ClientTbl[]),1,1,2),\n      _xlpm.c, _xlfn.SEQUENCE(1,7,2,2),\n      _xlpm.staff, INDEX(Roster, _xlpm.r, _xlpm.c),\n      _xlpm.hrsWeek,\n         IF(_xlpm.staff=_xlfn.SINGLE(StaffList),\n            _xlfn.LET(\n               _xlpm.start, INDEX(Roster, _xlpm.r+1, _xlpm.c),\n               _xlpm.finish, INDEX(Roster, _xlpm.r+1, _xlpm.c+1),\n               24*(_xlpm.finish - _xlpm.start) ),\n         \"\"),\n      SUM(_xlpm.hrsWeek))","v":0},null,null,null,null,null,null,null,null,null,null,null,null,null,null,null,null,null,null,"otherAssigned","=Roster!X$5:X$36"]
[null,"Client 6",null,null,null,null,null,null,null,null,null,null,null,null,null,null,{"$f":" IF(_xlfn.SINGLE(ClientHdr)=\"\",\n      _xlfn.LET(\n         _xlpm.cols, _xlfn.SEQUENCE(1,7,2,2),\n         _xlpm.start, INDEX(currentRow,_xlpm.cols),\n         _xlpm.finish, INDEX(currentRow, 1+_xlpm.cols),\n         SUM(24*(_xlpm.finish-_xlpm.start))),\n      \"\")","v":""},null,"Staff 11",{"$f":" _xlfn.LET(\n      _xlpm.r, _xlfn.SEQUENCE(ROWS(ClientTbl[]),1,1,2),\n      _xlpm.c, _xlfn.SEQUENCE(1,7,2,2),\n      _xlpm.staff, INDEX(Roster, _xlpm.r, _xlpm.c),\n      _xlpm.hrsWeek,\n         IF(_xlpm.staff=_xlfn.SINGLE(StaffList),\n            _xlfn.LET(\n               _xlpm.start, INDEX(Roster, _xlpm.r+1, _xlpm.c),\n               _xlpm.finish, INDEX(Roster, _xlpm.r+1, _xlpm.c+1),\n               24*(_xlpm.finish - _xlpm.start) ),\n         \"\"),\n      SUM(_xlpm.hrsWeek))","v":0},null,null,null,null,null,null,null,null,null,null,null,null,null,null,null,null,null,null,"otherStart","=Roster!X$6:X$37"]
[null,"","12:00:00","15:00:00","12:00:00","15:00:00",null,null,"12:00:00","15:00:00","12:00:00","15:00:00",null,null,null,null,{"$f":" IF(_xlfn.SINGLE(ClientHdr)=\"\",\n      _xlfn.LET(\n         _xlpm.cols, _xlfn.SEQUENCE(1,7,2,2),\n         _xlpm.start, INDEX(currentRow,_xlpm.cols),\n         _xlpm.finish, INDEX(currentRow, 1+_xlpm.cols),\n         SUM(24*(_xlpm.finish-_xlpm.start))),\n      \"\")","v":12},null,"Staff 12",{"$f":" _xlfn.LET(\n      _xlpm.r, _xlfn.SEQUENCE(ROWS(ClientTbl[]),1,1,2),\n      _xlpm.c, _xlfn.SEQUENCE(1,7,2,2),\n      _xlpm.staff, INDEX(Roster, _xlpm.r, _xlpm.c),\n      _xlpm.hrsWeek,\n         IF(_xlpm.staff=_xlfn.SINGLE(StaffList),\n            _xlfn.LET(\n               _xlpm.start, INDEX(Roster, _xlpm.r+1, _xlpm.c),\n               _xlpm.finish, INDEX(Roster, _xlpm.r+1, _xlpm.c+1),\n               24*(_xlpm.finish - _xlpm.start) ),\n         \"\"),\n      SUM(_xlpm.hrsWeek))","v":0},null,null,null,null,null,null,null,null,null,null,null,null,null,null,null,null,null,null,"currentStart","=Roster!X13"]
[null,"Client 7",null,null,null,null,null,null,null,null,null,null,null,null,null,null,{"$f":" IF(_xlfn.SINGLE(ClientHdr)=\"\",\n      _xlfn.LET(\n         _xlpm.cols, _xlfn.SEQUENCE(1,7,2,2),\n         _xlpm.start, INDEX(currentRow,_xlpm.cols),\n         _xlpm.finish, INDEX(currentRow, 1+_xlpm.cols),\n         SUM(24*(_xlpm.finish-_xlpm.start))),\n      \"\")","v":""},null,"Staff 13",{"$f":" _xlfn.LET(\n      _xlpm.r, _xlfn.SEQUENCE(ROWS(ClientTbl[]),1,1,2),\n      _xlpm.c, _xlfn.SEQUENCE(1,7,2,2),\n      _xlpm.staff, INDEX(Roster, _xlpm.r, _xlpm.c),\n      _xlpm.hrsWeek,\n         IF(_xlpm.staff=_xlfn.SINGLE(StaffList),\n            _xlfn.LET(\n               _xlpm.start, INDEX(Roster, _xlpm.r+1, _xlpm.c),\n               _xlpm.finish, INDEX(Roster, _xlpm.r+1, _xlpm.c+1),\n               24*(_xlpm.finish - _xlpm.start) ),\n         \"\"),\n      SUM(_xlpm.hrsWeek))","v":0},null,null,null,null,null,null,null,null,null,null,null,null,null,null,null,null,null,null,"currentAssigned","=Roster!X9"]
[null,"","15:00:00","18:30:00","15:00:00","18:30:00",null,null,"15:00:00","18:30:00","15:00:00","18:30:00",null,null,null,null,{"$f":" IF(_xlfn.SINGLE(ClientHdr)=\"\",\n      _xlfn.LET(\n         _xlpm.cols, _xlfn.SEQUENCE(1,7,2,2),\n         _xlpm.start, INDEX(currentRow,_xlpm.cols),\n         _xlpm.finish, INDEX(currentRow, 1+_xlpm.cols),\n         SUM(24*(_xlpm.finish-_xlpm.start))),\n      \"\")","v":14.000000000000068},null,"Staff 14",{"$f":" _xlfn.LET(\n      _xlpm.r, _xlfn.SEQUENCE(ROWS(ClientTbl[]),1,1,2),\n      _xlpm.c, _xlfn.SEQUENCE(1,7,2,2),\n      _xlpm.staff, INDEX(Roster, _xlpm.r, _xlpm.c),\n      _xlpm.hrsWeek,\n         IF(_xlpm.staff=_xlfn.SINGLE(StaffList),\n            _xlfn.LET(\n               _xlpm.start, INDEX(Roster, _xlpm.r+1, _xlpm.c),\n               _xlpm.finish, INDEX(Roster, _xlpm.r+1, _xlpm.c+1),\n               24*(_xlpm.finish - _xlpm.start) ),\n         \"\"),\n      SUM(_xlpm.hrsWeek))","v":0},null,null,null,null,null,null,null,null,null,null,null,null,null,null,null,null,null,null,"otherFinish","=Roster!Y$6:Y$37"]
[null,"Client 8",null,null,null,null,null,null,null,null,null,null,null,null,null,null,{"$f":" IF(_xlfn.SINGLE(ClientHdr)=\"\",\n      _xlfn.LET(\n         _xlpm.cols, _xlfn.SEQUENCE(1,7,2,2),\n         _xlpm.start, INDEX(currentRow,_xlpm.cols),\n         _xlpm.finish, INDEX(currentRow, 1+_xlpm.cols),\n         SUM(24*(_xlpm.finish-_xlpm.start))),\n      \"\")","v":""},null,"Staff 15",{"$f":" _xlfn.LET(\n      _xlpm.r, _xlfn.SEQUENCE(ROWS(ClientTbl[]),1,1,2),\n      _xlpm.c, _xlfn.SEQUENCE(1,7,2,2),\n      _xlpm.staff, INDEX(Roster, _xlpm.r, _xlpm.c),\n      _xlpm.hrsWeek,\n         IF(_xlpm.staff=_xlfn.SINGLE(StaffList),\n            _xlfn.LET(\n               _xlpm.start, INDEX(Roster, _xlpm.r+1, _xlpm.c),\n               _xlpm.finish, INDEX(Roster, _xlpm.r+1, _xlpm.c+1),\n               24*(_xlpm.finish - _xlpm.start) ),\n         \"\"),\n      SUM(_xlpm.hrsWeek))","v":0},null,null,null,null,null,null,null,null,null,null,null,null,null,null,null,null,null,null,"currentFinish","=Roster!Y11"]
[null,"",null,null,null,null,null,null,null,null,null,null,"09:00:00","13:00:00",null,null,{"$f":" IF(_xlfn.SINGLE(ClientHdr)=\"\",\n      _xlfn.LET(\n         _xlpm.cols, _xlfn.SEQUENCE(1,7,2,2),\n         _xlpm.start, INDEX(currentRow,_xlpm.cols),\n         _xlpm.finish, INDEX(currentRow, 1+_xlpm.cols),\n         SUM(24*(_xlpm.finish-_xlpm.start))),\n      \"\")","v":4.0000000000000071},null,"Staff 16",{"$f":" _xlfn.LET(\n      _xlpm.r, _xlfn.SEQUENCE(ROWS(ClientTbl[]),1,1,2),\n      _xlpm.c, _xlfn.SEQUENCE(1,7,2,2),\n      _xlpm.staff, INDEX(Roster, _xlpm.r, _xlpm.c),\n      _xlpm.hrsWeek,\n         IF(_xlpm.staff=_xlfn.SINGLE(StaffList),\n            _xlfn.LET(\n               _xlpm.start, INDEX(Roster, _xlpm.r+1, _xlpm.c),\n               _xlpm.finish, INDEX(Roster, _xlpm.r+1, _xlpm.c+1),\n               24*(_xlpm.finish - _xlpm.start) ),\n         \"\"),\n      SUM(_xlpm.hrsWeek))","v":0},null,null,null,null,null,null,null,null,null,null,null,null,null,null,null,null,null,null,"clientValidation","=Teams!#REF!"]
[null,"Client 9",null,null,null,null,null,null,null,null,null,null,null,null,null,null,{"$f":" IF(_xlfn.SINGLE(ClientHdr)=\"\",\n      _xlfn.LET(\n         _xlpm.cols, _xlfn.SEQUENCE(1,7,2,2),\n         _xlpm.start, INDEX(currentRow,_xlpm.cols),\n         _xlpm.finish, INDEX(currentRow, 1+_xlpm.cols),\n         SUM(24*(_xlpm.finish-_xlpm.start))),\n      \"\")","v":""},null,"Staff 17",{"$f":" _xlfn.LET(\n      _xlpm.r, _xlfn.SEQUENCE(ROWS(ClientTbl[]),1,1,2),\n      _xlpm.c, _xlfn.SEQUENCE(1,7,2,2),\n      _xlpm.staff, INDEX(Roster, _xlpm.r, _xlpm.c),\n      _xlpm.hrsWeek,\n         IF(_xlpm.staff=_xlfn.SINGLE(StaffList),\n            _xlfn.LET(\n               _xlpm.start, INDEX(Roster, _xlpm.r+1, _xlpm.c),\n               _xlpm.finish, INDEX(Roster, _xlpm.r+1, _xlpm.c+1),\n               24*(_xlpm.finish - _xlpm.start) ),\n         \"\"),\n      SUM(_xlpm.hrsWeek))","v":0},null,null,null,null,null,null,null,null,null,null,null,null,null,null,null,null,null,null,"Deployable","=Teams!#REF!"]
[null,"",null,null,null,null,null,null,null,null,null,null,null,null,null,null,{"$f":" IF(_xlfn.SINGLE(ClientHdr)=\"\",\n      _xlfn.LET(\n         _xlpm.cols, _xlfn.SEQUENCE(1,7,2,2),\n         _xlpm.start, INDEX(currentRow,_xlpm.cols),\n         _xlpm.finish, INDEX(currentRow, 1+_xlpm.cols),\n         SUM(24*(_xlpm.finish-_xlpm.start))),\n      \"\")","v":0},null,"Staff 18",{"$f":" _xlfn.LET(\n      _xlpm.r, _xlfn.SEQUENCE(ROWS(ClientTbl[]),1,1,2),\n      _xlpm.c, _xlfn.SEQUENCE(1,7,2,2),\n      _xlpm.staff, INDEX(Roster, _xlpm.r, _xlpm.c),\n      _xlpm.hrsWeek,\n         IF(_xlpm.staff=_xlfn.SINGLE(StaffList),\n            _xlfn.LET(\n               _xlpm.start, INDEX(Roster, _xlpm.r+1, _xlpm.c),\n               _xlpm.finish, INDEX(Roster, _xlpm.r+1, _xlpm.c+1),\n               24*(_xlpm.finish - _xlpm.start) ),\n         \"\"),\n      SUM(_xlpm.hrsWeek))","v":0},null,null,null,null,null,null,null,null,null,null,null,null,null,null,null,null,null,null,"StaffList",{"$f":"Roster!$S$5:$S$54","v":{"$error":"#VALUE!"}}]
[null,"Client 10",null,null,null,null,null,null,null,null,null,null,null,null,null,null,{"$f":" IF(_xlfn.SINGLE(ClientHdr)=\"\",\n      _xlfn.LET(\n         _xlpm.cols, _xlfn.SEQUENCE(1,7,2,2),\n         _xlpm.start, INDEX(currentRow,_xlpm.cols),\n         _xlpm.finish, INDEX(currentRow, 1+_xlpm.cols),\n         SUM(24*(_xlpm.finish-_xlpm.start))),\n      \"\")","v":""},null,"Staff 19",{"$f":" _xlfn.LET(\n      _xlpm.r, _xlfn.SEQUENCE(ROWS(ClientTbl[]),1,1,2),\n      _xlpm.c, _xlfn.SEQUENCE(1,7,2,2),\n      _xlpm.staff, INDEX(Roster, _xlpm.r, _xlpm.c),\n      _xlpm.hrsWeek,\n         IF(_xlpm.staff=_xlfn.SINGLE(StaffList),\n            _xlfn.LET(\n               _xlpm.start, INDEX(Roster, _xlpm.r+1, _xlpm.c),\n               _xlpm.finish, INDEX(Roster, _xlpm.r+1, _xlpm.c+1),\n               24*(_xlpm.finish - _xlpm.start) ),\n         \"\"),\n      SUM(_xlpm.hrsWeek))","v":0}]
[null,"",null,null,"14:30:00","16:30:00",null,null,"09:00:00","11:00:00","14:30:00","16:30:00",null,null,null,null,{"$f":" IF(_xlfn.SINGLE(ClientHdr)=\"\",\n      _xlfn.LET(\n         _xlpm.cols, _xlfn.SEQUENCE(1,7,2,2),\n         _xlpm.start, INDEX(currentRow,_xlpm.cols),\n         _xlpm.finish, INDEX(currentRow, 1+_xlpm.cols),\n         SUM(24*(_xlpm.finish-_xlpm.start))),\n      \"\")","v":5.9999999999999769},null,"Staff 20",{"$f":" _xlfn.LET(\n      _xlpm.r, _xlfn.SEQUENCE(ROWS(ClientTbl[]),1,1,2),\n      _xlpm.c, _xlfn.SEQUENCE(1,7,2,2),\n      _xlpm.staff, INDEX(Roster, _xlpm.r, _xlpm.c),\n      _xlpm.hrsWeek,\n         IF(_xlpm.staff=_xlfn.SINGLE(StaffList),\n            _xlfn.LET(\n               _xlpm.start, INDEX(Roster, _xlpm.r+1, _xlpm.c),\n               _xlpm.finish, INDEX(Roster, _xlpm.r+1, _xlpm.c+1),\n               24*(_xlpm.finish - _xlpm.start) ),\n         \"\"),\n      SUM(_xlpm.hrsWeek))","v":0}]
[null,"Client 11",null,null,null,null,null,null,null,null,null,null,null,null,null,null,{"$f":" IF(_xlfn.SINGLE(ClientHdr)=\"\",\n      _xlfn.LET(\n         _xlpm.cols, _xlfn.SEQUENCE(1,7,2,2),\n         _xlpm.start, INDEX(currentRow,_xlpm.cols),\n         _xlpm.finish, INDEX(currentRow, 1+_xlpm.cols),\n         SUM(24*(_xlpm.finish-_xlpm.start))),\n      \"\")","v":""},null,"Staff 21",{"$f":" _xlfn.LET(\n      _xlpm.r, _xlfn.SEQUENCE(ROWS(ClientTbl[]),1,1,2),\n      _xlpm.c, _xlfn.SEQUENCE(1,7,2,2),\n      _xlpm.staff, INDEX(Roster, _xlpm.r, _xlpm.c),\n      _xlpm.hrsWeek,\n         IF(_xlpm.staff=_xlfn.SINGLE(StaffList),\n            _xlfn.LET(\n               _xlpm.start, INDEX(Roster, _xlpm.r+1, _xlpm.c),\n               _xlpm.finish, INDEX(Roster, _xlpm.r+1, _xlpm.c+1),\n               24*(_xlpm.finish - _xlpm.start) ),\n         \"\"),\n      SUM(_xlpm.hrsWeek))","v":0}]
[null,"",null,null,"09:00:00","14:00:00",null,null,null,null,"09:00:00","14:00:00",null,null,null,null,{"$f":" IF(_xlfn.SINGLE(ClientHdr)=\"\",\n      _xlfn.LET(\n         _xlpm.cols, _xlfn.SEQUENCE(1,7,2,2),\n         _xlpm.start, INDEX(currentRow,_xlpm.cols),\n         _xlpm.finish, INDEX(currentRow, 1+_xlpm.cols),\n         SUM(24*(_xlpm.finish-_xlpm.start))),\n      \"\")","v":9.9999999999999858},null,"Staff 22",{"$f":" _xlfn.LET(\n      _xlpm.r, _xlfn.SEQUENCE(ROWS(ClientTbl[]),1,1,2),\n      _xlpm.c, _xlfn.SEQUENCE(1,7,2,2),\n      _xlpm.staff, INDEX(Roster, _xlpm.r, _xlpm.c),\n      _xlpm.hrsWeek,\n         IF(_xlpm.staff=_xlfn.SINGLE(StaffList),\n            _xlfn.LET(\n               _xlpm.start, INDEX(Roster, _xlpm.r+1, _xlpm.c),\n               _xlpm.finish, INDEX(Roster, _xlpm.r+1, _xlpm.c+1),\n               24*(_xlpm.finish - _xlpm.start) ),\n         \"\"),\n      SUM(_xlpm.hrsWeek))","v":0}]
[null,"Client 12",null,null,null,null,null,null,null,null,null,null,null,null,null,null,{"$f":" IF(_xlfn.SINGLE(ClientHdr)=\"\",\n      _xlfn.LET(\n         _xlpm.cols, _xlfn.SEQUENCE(1,7,2,2),\n         _xlpm.start, INDEX(currentRow,_xlpm.cols),\n         _xlpm.finish, INDEX(currentRow, 1+_xlpm.cols),\n         SUM(24*(_xlpm.finish-_xlpm.start))),\n      \"\")","v":""},null,"Staff 23",{"$f":" _xlfn.LET(\n      _xlpm.r, _xlfn.SEQUENCE(ROWS(ClientTbl[]),1,1,2),\n      _xlpm.c, _xlfn.SEQUENCE(1,7,2,2),\n      _xlpm.staff, INDEX(Roster, _xlpm.r, _xlpm.c),\n      _xlpm.hrsWeek,\n         IF(_xlpm.staff=_xlfn.SINGLE(StaffList),\n            _xlfn.LET(\n               _xlpm.start, INDEX(Roster, _xlpm.r+1, _xlpm.c),\n               _xlpm.finish, INDEX(Roster, _xlpm.r+1, _xlpm.c+1),\n               24*(_xlpm.finish - _xlpm.start) ),\n         \"\"),\n      SUM(_xlpm.hrsWeek))","v":0}]
[null,"","09:00:00","11:00:00",null,null,null,null,null,null,null,null,"09:00:00","11:00:00",null,null,{"$f":" IF(_xlfn.SINGLE(ClientHdr)=\"\",\n      _xlfn.LET(\n         _xlpm.cols, _xlfn.SEQUENCE(1,7,2,2),\n         _xlpm.start, INDEX(currentRow,_xlpm.cols),\n         _xlpm.finish, INDEX(currentRow, 1+_xlpm.cols),\n         SUM(24*(_xlpm.finish-_xlpm.start))),\n      \"\")","v":3.9999999999999831},null,"Staff 24",{"$f":" _xlfn.LET(\n      _xlpm.r, _xlfn.SEQUENCE(ROWS(ClientTbl[]),1,1,2),\n      _xlpm.c, _xlfn.SEQUENCE(1,7,2,2),\n      _xlpm.staff, INDEX(Roster, _xlpm.r, _xlpm.c),\n      _xlpm.hrsWeek,\n         IF(_xlpm.staff=_xlfn.SINGLE(StaffList),\n            _xlfn.LET(\n               _xlpm.start, INDEX(Roster, _xlpm.r+1, _xlpm.c),\n               _xlpm.finish, INDEX(Roster, _xlpm.r+1, _xlpm.c+1),\n               24*(_xlpm.finish - _xlpm.start) ),\n         \"\"),\n      SUM(_xlpm.hrsWeek))","v":0}]
[null,"Client 13",null,null,null,null,null,null,null,null,null,null,null,null,null,null,{"$f":" IF(_xlfn.SINGLE(ClientHdr)=\"\",\n      _xlfn.LET(\n         _xlpm.cols, _xlfn.SEQUENCE(1,7,2,2),\n         _xlpm.start, INDEX(currentRow,_xlpm.cols),\n         _xlpm.finish, INDEX(currentRow, 1+_xlpm.cols),\n         SUM(24*(_xlpm.finish-_xlpm.start))),\n      \"\")","v":""},null,"Staff 25",{"$f":" _xlfn.LET(\n      _xlpm.r, _xlfn.SEQUENCE(ROWS(ClientTbl[]),1,1,2),\n      _xlpm.c, _xlfn.SEQUENCE(1,7,2,2),\n      _xlpm.staff, INDEX(Roster, _xlpm.r, _xlpm.c),\n      _xlpm.hrsWeek,\n         IF(_xlpm.staff=_xlfn.SINGLE(StaffList),\n            _xlfn.LET(\n               _xlpm.start, INDEX(Roster, _xlpm.r+1, _xlpm.c),\n               _xlpm.finish, INDEX(Roster, _xlpm.r+1, _xlpm.c+1),\n               24*(_xlpm.finish - _xlpm.start) ),\n         \"\"),\n      SUM(_xlpm.hrsWeek))","v":0}]
[null,"",null,null,null,null,"10:00:00","12:00:00",null,null,null,null,null,null,null,null,{"$f":" IF(_xlfn.SINGLE(ClientHdr)=\"\",\n      _xlfn.LET(\n         _xlpm.cols, _xlfn.SEQUENCE(1,7,2,2),\n         _xlpm.start, INDEX(currentRow,_xlpm.cols),\n         _xlpm.finish, INDEX(currentRow, 1+_xlpm.cols),\n         SUM(24*(_xlpm.finish-_xlpm.start))),\n      \"\")","v":2.0000000000000155},null,"Staff 26",{"$f":" _xlfn.LET(\n      _xlpm.r, _xlfn.SEQUENCE(ROWS(ClientTbl[]),1,1,2),\n      _xlpm.c, _xlfn.SEQUENCE(1,7,2,2),\n      _xlpm.staff, INDEX(Roster, _xlpm.r, _xlpm.c),\n      _xlpm.hrsWeek,\n         IF(_xlpm.staff=_xlfn.SINGLE(StaffList),\n            _xlfn.LET(\n               _xlpm.start, INDEX(Roster, _xlpm.r+1, _xlpm.c),\n               _xlpm.finish, INDEX(Roster, _xlpm.r+1, _xlpm.c+1),\n               24*(_xlpm.finish - _xlpm.start) ),\n         \"\"),\n      SUM(_xlpm.hrsWeek))","v":0}]
[null,"Client 14",null,null,null,null,null,null,null,null,null,null,null,null,null,null,{"$f":" IF(_xlfn.SINGLE(ClientHdr)=\"\",\n      _xlfn.LET(\n         _xlpm.cols, _xlfn.SEQUENCE(1,7,2,2),\n         _xlpm.start, INDEX(currentRow,_xlpm.cols),\n         _xlpm.finish, INDEX(currentRow, 1+_xlpm.cols),\n         SUM(24*(_xlpm.finish-_xlpm.start))),\n      \"\")","v":""},null,"Staff 27",{"$f":" _xlfn.LET(\n      _xlpm.r, _xlfn.SEQUENCE(ROWS(ClientTbl[]),1,1,2),\n      _xlpm.c, _xlfn.SEQUENCE(1,7,2,2),\n      _xlpm.staff, INDEX(Roster, _xlpm.r, _xlpm.c),\n      _xlpm.hrsWeek,\n         IF(_xlpm.staff=_xlfn.SINGLE(StaffList),\n            _xlfn.LET(\n               _xlpm.start, INDEX(Roster, _xlpm.r+1, _xlpm.c),\n               _xlpm.finish, INDEX(Roster, _xlpm.r+1, _xlpm.c+1),\n               24*(_xlpm.finish - _xlpm.start) ),\n         \"\"),\n      SUM(_xlpm.hrsWeek))","v":0}]
[null,"","10:00:00","16:00:00",null,null,null,null,"09:30:00","15:30:00","09:30:00","15:30:00","13:00:00","17:00:00",null,null,{"$f":" IF(_xlfn.SINGLE(ClientHdr)=\"\",\n      _xlfn.LET(\n         _xlpm.cols, _xlfn.SEQUENCE(1,7,2,2),\n         _xlpm.start, INDEX(currentRow,_xlpm.cols),\n         _xlpm.finish, INDEX(currentRow, 1+_xlpm.cols),\n         SUM(24*(_xlpm.finish-_xlpm.start))),\n      \"\")","v":22.000000000000039},null,"Staff 28",{"$f":" _xlfn.LET(\n      _xlpm.r, _xlfn.SEQUENCE(ROWS(ClientTbl[]),1,1,2),\n      _xlpm.c, _xlfn.SEQUENCE(1,7,2,2),\n      _xlpm.staff, INDEX(Roster, _xlpm.r, _xlpm.c),\n      _xlpm.hrsWeek,\n         IF(_xlpm.staff=_xlfn.SINGLE(StaffList),\n            _xlfn.LET(\n               _xlpm.start, INDEX(Roster, _xlpm.r+1, _xlpm.c),\n               _xlpm.finish, INDEX(Roster, _xlpm.r+1, _xlpm.c+1),\n               24*(_xlpm.finish - _xlpm.start) ),\n         \"\"),\n      SUM(_xlpm.hrsWeek))","v":0}]
[null,"Client 15",null,null,null,null,null,null,null,null,null,null,null,null,null,null,{"$f":" IF(_xlfn.SINGLE(ClientHdr)=\"\",\n      _xlfn.LET(\n         _xlpm.cols, _xlfn.SEQUENCE(1,7,2,2),\n         _xlpm.start, INDEX(currentRow,_xlpm.cols),\n         _xlpm.finish, INDEX(currentRow, 1+_xlpm.cols),\n         SUM(24*(_xlpm.finish-_xlpm.start))),\n      \"\")","v":""},null,"Staff 29",{"$f":" _xlfn.LET(\n      _xlpm.r, _xlfn.SEQUENCE(ROWS(ClientTbl[]),1,1,2),\n      _xlpm.c, _xlfn.SEQUENCE(1,7,2,2),\n      _xlpm.staff, INDEX(Roster, _xlpm.r, _xlpm.c),\n      _xlpm.hrsWeek,\n         IF(_xlpm.staff=_xlfn.SINGLE(StaffList),\n            _xlfn.LET(\n               _xlpm.start, INDEX(Roster, _xlpm.r+1, _xlpm.c),\n               _xlpm.finish, INDEX(Roster, _xlpm.r+1, _xlpm.c+1),\n               24*(_xlpm.finish - _xlpm.start) ),\n         \"\"),\n      SUM(_xlpm.hrsWeek))","v":0}]
[null,"",null,null,null,null,null,null,null,null,"09:00:00","13:30:00",null,null,null,null,{"$f":" IF(_xlfn.SINGLE(ClientHdr)=\"\",\n      _xlfn.LET(\n         _xlpm.cols, _xlfn.SEQUENCE(1,7,2,2),\n         _xlpm.start, INDEX(currentRow,_xlpm.cols),\n         _xlpm.finish, INDEX(currentRow, 1+_xlpm.cols),\n         SUM(24*(_xlpm.finish-_xlpm.start))),\n      \"\")","v":4.5},null,"Staff 30",{"$f":" _xlfn.LET(\n      _xlpm.r, _xlfn.SEQUENCE(ROWS(ClientTbl[]),1,1,2),\n      _xlpm.c, _xlfn.SEQUENCE(1,7,2,2),\n      _xlpm.staff, INDEX(Roster, _xlpm.r, _xlpm.c),\n      _xlpm.hrsWeek,\n         IF(_xlpm.staff=_xlfn.SINGLE(StaffList),\n            _xlfn.LET(\n               _xlpm.start, INDEX(Roster, _xlpm.r+1, _xlpm.c),\n               _xlpm.finish, INDEX(Roster, _xlpm.r+1, _xlpm.c+1),\n               24*(_xlpm.finish - _xlpm.start) ),\n         \"\"),\n      SUM(_xlpm.hrsWeek))","v":0}]
[null,"Client 16",null,null,null,null,null,null,null,null,null,null,null,null,null,null,{"$f":" IF(_xlfn.SINGLE(ClientHdr)=\"\",\n      _xlfn.LET(\n         _xlpm.cols, _xlfn.SEQUENCE(1,7,2,2),\n         _xlpm.start, INDEX(currentRow,_xlpm.cols),\n         _xlpm.finish, INDEX(currentRow, 1+_xlpm.cols),\n         SUM(24*(_xlpm.finish-_xlpm.start))),\n      \"\")","v":""},null,"Staff 31",{"$f":" _xlfn.LET(\n      _xlpm.r, _xlfn.SEQUENCE(ROWS(ClientTbl[]),1,1,2),\n      _xlpm.c, _xlfn.SEQUENCE(1,7,2,2),\n      _xlpm.staff, INDEX(Roster, _xlpm.r, _xlpm.c),\n      _xlpm.hrsWeek,\n         IF(_xlpm.staff=_xlfn.SINGLE(StaffList),\n            _xlfn.LET(\n               _xlpm.start, INDEX(Roster, _xlpm.r+1, _xlpm.c),\n               _xlpm.finish, INDEX(Roster, _xlpm.r+1, _xlpm.c+1),\n               24*(_xlpm.finish - _xlpm.start) ),\n         \"\"),\n      SUM(_xlpm.hrsWeek))","v":0}]
[null,"","12:00:00","14:00:00","12:00:00","14:00:00","12:00:00","15:00:00","12:00:00","14:00:00","12:00:00","14:00:00",null,null,null,null,{"$f":" IF(_xlfn.SINGLE(ClientHdr)=\"\",\n      _xlfn.LET(\n         _xlpm.cols, _xlfn.SEQUENCE(1,7,2,2),\n         _xlpm.start, INDEX(currentRow,_xlpm.cols),\n         _xlpm.finish, INDEX(currentRow, 1+_xlpm.cols),\n         SUM(24*(_xlpm.finish-_xlpm.start))),\n      \"\")","v":10.999999999999972},null,"Staff 32",{"$f":" _xlfn.LET(\n      _xlpm.r, _xlfn.SEQUENCE(ROWS(ClientTbl[]),1,1,2),\n      _xlpm.c, _xlfn.SEQUENCE(1,7,2,2),\n      _xlpm.staff, INDEX(Roster, _xlpm.r, _xlpm.c),\n      _xlpm.hrsWeek,\n         IF(_xlpm.staff=_xlfn.SINGLE(StaffList),\n            _xlfn.LET(\n               _xlpm.start, INDEX(Roster, _xlpm.r+1, _xlpm.c),\n               _xlpm.finish, INDEX(Roster, _xlpm.r+1, _xlpm.c+1),\n               24*(_xlpm.finish - _xlpm.start) ),\n         \"\"),\n      SUM(_xlpm.hrsWeek))","v":0}]
[null,"Client 17",null,null,null,null,null,null,null,null,null,null,null,null,null,null,{"$f":" IF(_xlfn.SINGLE(ClientHdr)=\"\",\n      _xlfn.LET(\n         _xlpm.cols, _xlfn.SEQUENCE(1,7,2,2),\n         _xlpm.start, INDEX(currentRow,_xlpm.cols),\n         _xlpm.finish, INDEX(currentRow, 1+_xlpm.cols),\n         SUM(24*(_xlpm.finish-_xlpm.start))),\n      \"\")","v":""},null,"Staff 33",{"$f":" _xlfn.LET(\n      _xlpm.r, _xlfn.SEQUENCE(ROWS(ClientTbl[]),1,1,2),\n      _xlpm.c, _xlfn.SEQUENCE(1,7,2,2),\n      _xlpm.staff, INDEX(Roster, _xlpm.r, _xlpm.c),\n      _xlpm.hrsWeek,\n         IF(_xlpm.staff=_xlfn.SINGLE(StaffList),\n            _xlfn.LET(\n               _xlpm.start, INDEX(Roster, _xlpm.r+1, _xlpm.c),\n               _xlpm.finish, INDEX(Roster, _xlpm.r+1, _xlpm.c+1),\n               24*(_xlpm.finish - _xlpm.start) ),\n         \"\"),\n      SUM(_xlpm.hrsWeek))","v":0}]
[null,"",null,null,null,null,null,null,"09:00:00","15:00:00",null,null,null,null,null,null,{"$f":" IF(_xlfn.SINGLE(ClientHdr)=\"\",\n      _xlfn.LET(\n         _xlpm.cols, _xlfn.SEQUENCE(1,7,2,2),\n         _xlpm.start, INDEX(currentRow,_xlpm.cols),\n         _xlpm.finish, INDEX(currentRow, 1+_xlpm.cols),\n         SUM(24*(_xlpm.finish-_xlpm.start))),\n      \"\")","v":6},null,"Staff 34",{"$f":" _xlfn.LET(\n      _xlpm.r, _xlfn.SEQUENCE(ROWS(ClientTbl[]),1,1,2),\n      _xlpm.c, _xlfn.SEQUENCE(1,7,2,2),\n      _xlpm.staff, INDEX(Roster, _xlpm.r, _xlpm.c),\n      _xlpm.hrsWeek,\n         IF(_xlpm.staff=_xlfn.SINGLE(StaffList),\n            _xlfn.LET(\n               _xlpm.start, INDEX(Roster, _xlpm.r+1, _xlpm.c),\n               _xlpm.finish, INDEX(Roster, _xlpm.r+1, _xlpm.c+1),\n               24*(_xlpm.finish - _xlpm.start) ),\n         \"\"),\n      SUM(_xlpm.hrsWeek))","v":0}]
[null,"Client 18",null,null,null,null,null,null,null,null,null,null,null,null,null,null,{"$f":" IF(_xlfn.SINGLE(ClientHdr)=\"\",\n      _xlfn.LET(\n         _xlpm.cols, _xlfn.SEQUENCE(1,7,2,2),\n         _xlpm.start, INDEX(currentRow,_xlpm.cols),\n         _xlpm.finish, INDEX(currentRow, 1+_xlpm.cols),\n         SUM(24*(_xlpm.finish-_xlpm.start))),\n      \"\")","v":""},null,"Staff 35",{"$f":" _xlfn.LET(\n      _xlpm.r, _xlfn.SEQUENCE(ROWS(ClientTbl[]),1,1,2),\n      _xlpm.c, _xlfn.SEQUENCE(1,7,2,2),\n      _xlpm.staff, INDEX(Roster, _xlpm.r, _xlpm.c),\n      _xlpm.hrsWeek,\n         IF(_xlpm.staff=_xlfn.SINGLE(StaffList),\n            _xlfn.LET(\n               _xlpm.start, INDEX(Roster, _xlpm.r+1, _xlpm.c),\n               _xlpm.finish, INDEX(Roster, _xlpm.r+1, _xlpm.c+1),\n               24*(_xlpm.finish - _xlpm.start) ),\n         \"\"),\n      SUM(_xlpm.hrsWeek))","v":0}]
[null,"","09:00:00","12:00:00","09:00:00","12:00:00",null,null,null,null,null,null,null,null,null,null,{"$f":" IF(_xlfn.SINGLE(ClientHdr)=\"\",\n      _xlfn.LET(\n         _xlpm.cols, _xlfn.SEQUENCE(1,7,2,2),\n         _xlpm.start, INDEX(currentRow,_xlpm.cols),\n         _xlpm.finish, INDEX(currentRow, 1+_xlpm.cols),\n         SUM(24*(_xlpm.finish-_xlpm.start))),\n      \"\")","v":6},null,"Staff 36",{"$f":" _xlfn.LET(\n      _xlpm.r, _xlfn.SEQUENCE(ROWS(ClientTbl[]),1,1,2),\n      _xlpm.c, _xlfn.SEQUENCE(1,7,2,2),\n      _xlpm.staff, INDEX(Roster, _xlpm.r, _xlpm.c),\n      _xlpm.hrsWeek,\n         IF(_xlpm.staff=_xlfn.SINGLE(StaffList),\n            _xlfn.LET(\n               _xlpm.start, INDEX(Roster, _xlpm.r+1, _xlpm.c),\n               _xlpm.finish, INDEX(Roster, _xlpm.r+1, _xlpm.c+1),\n               24*(_xlpm.finish - _xlpm.start) ),\n         \"\"),\n      SUM(_xlpm.hrsWeek))","v":0}]
[null,"Client 19",null,null,null,null,null,null,null,null,null,null,null,null,null,null,{"$f":" IF(_xlfn.SINGLE(ClientHdr)=\"\",\n      _xlfn.LET(\n         _xlpm.cols, _xlfn.SEQUENCE(1,7,2,2),\n         _xlpm.start, INDEX(currentRow,_xlpm.cols),\n         _xlpm.finish, INDEX(currentRow, 1+_xlpm.cols),\n         SUM(24*(_xlpm.finish-_xlpm.start))),\n      \"\")","v":""},null,"Staff 37",{"$f":" _xlfn.LET(\n      _xlpm.r, _xlfn.SEQUENCE(ROWS(ClientTbl[]),1,1,2),\n      _xlpm.c, _xlfn.SEQUENCE(1,7,2,2),\n      _xlpm.staff, INDEX(Roster, _xlpm.r, _xlpm.c),\n      _xlpm.hrsWeek,\n         IF(_xlpm.staff=_xlfn.SINGLE(StaffList),\n            _xlfn.LET(\n               _xlpm.start, INDEX(Roster, _xlpm.r+1, _xlpm.c),\n               _xlpm.finish, INDEX(Roster, _xlpm.r+1, _xlpm.c+1),\n               24*(_xlpm.finish - _xlpm.start) ),\n         \"\"),\n      SUM(_xlpm.hrsWeek))","v":0}]
[null,"",null,null,null,null,null,null,null,null,null,null,"14:00:00","20:00:00",null,null,{"$f":" IF(_xlfn.SINGLE(ClientHdr)=\"\",\n      _xlfn.LET(\n         _xlpm.cols, _xlfn.SEQUENCE(1,7,2,2),\n         _xlpm.start, INDEX(currentRow,_xlpm.cols),\n         _xlpm.finish, INDEX(currentRow, 1+_xlpm.cols),\n         SUM(24*(_xlpm.finish-_xlpm.start))),\n      \"\")","v":6.000000000000024},null,"Staff 38",{"$f":" _xlfn.LET(\n      _xlpm.r, _xlfn.SEQUENCE(ROWS(ClientTbl[]),1,1,2),\n      _xlpm.c, _xlfn.SEQUENCE(1,7,2,2),\n      _xlpm.staff, INDEX(Roster, _xlpm.r, _xlpm.c),\n      _xlpm.hrsWeek,\n         IF(_xlpm.staff=_xlfn.SINGLE(StaffList),\n            _xlfn.LET(\n               _xlpm.start, INDEX(Roster, _xlpm.r+1, _xlpm.c),\n               _xlpm.finish, INDEX(Roster, _xlpm.r+1, _xlpm.c+1),\n               24*(_xlpm.finish - _xlpm.start) ),\n         \"\"),\n      SUM(_xlpm.hrsWeek))","v":0}]
[null,"Client 20",null,null,null,null,null,null,null,null,null,null,null,null,null,null,{"$f":" IF(_xlfn.SINGLE(ClientHdr)=\"\",\n      _xlfn.LET(\n         _xlpm.cols, _xlfn.SEQUENCE(1,7,2,2),\n         _xlpm.start, INDEX(currentRow,_xlpm.cols),\n         _xlpm.finish, INDEX(currentRow, 1+_xlpm.cols),\n         SUM(24*(_xlpm.finish-_xlpm.start))),\n      \"\")","v":""},null,"Staff 39",{"$f":" _xlfn.LET(\n      _xlpm.r, _xlfn.SEQUENCE(ROWS(ClientTbl[]),1,1,2),\n      _xlpm.c, _xlfn.SEQUENCE(1,7,2,2),\n      _xlpm.staff, INDEX(Roster, _xlpm.r, _xlpm.c),\n      _xlpm.hrsWeek,\n         IF(_xlpm.staff=_xlfn.SINGLE(StaffList),\n            _xlfn.LET(\n               _xlpm.start, INDEX(Roster, _xlpm.r+1, _xlpm.c),\n               _xlpm.finish, INDEX(Roster, _xlpm.r+1, _xlpm.c+1),\n               24*(_xlpm.finish - _xlpm.start) ),\n         \"\"),\n      SUM(_xlpm.hrsWeek))","v":0}]
[null,"",null,null,null,null,null,null,null,null,null,null,null,null,null,null,{"$f":" IF(_xlfn.SINGLE(ClientHdr)=\"\",\n      _xlfn.LET(\n         _xlpm.cols, _xlfn.SEQUENCE(1,7,2,2),\n         _xlpm.start, INDEX(currentRow,_xlpm.cols),\n         _xlpm.finish, INDEX(currentRow, 1+_xlpm.cols),\n         SUM(24*(_xlpm.finish-_xlpm.start))),\n      \"\")","v":0},null,"Staff 40",{"$f":" _xlfn.LET(\n      _xlpm.r, _xlfn.SEQUENCE(ROWS(ClientTbl[]),1,1,2),\n      _xlpm.c, _xlfn.SEQUENCE(1,7,2,2),\n      _xlpm.staff, INDEX(Roster, _xlpm.r, _xlpm.c),\n      _xlpm.hrsWeek,\n         IF(_xlpm.staff=_xlfn.SINGLE(StaffList),\n            _xlfn.LET(\n               _xlpm.start, INDEX(Roster, _xlpm.r+1, _xlpm.c),\n               _xlpm.finish, INDEX(Roster, _xlpm.r+1, _xlpm.c+1),\n               24*(_xlpm.finish - _xlpm.start) ),\n         \"\"),\n      SUM(_xlpm.hrsWeek))","v":0}]
[null,"Client 21",null,null,null,null,null,null,null,null,null,null,null,null,null,null,{"$f":" IF(_xlfn.SINGLE(ClientHdr)=\"\",\n      _xlfn.LET(\n         _xlpm.cols, _xlfn.SEQUENCE(1,7,2,2),\n         _xlpm.start, INDEX(currentRow,_xlpm.cols),\n         _xlpm.finish, INDEX(currentRow, 1+_xlpm.cols),\n         SUM(24*(_xlpm.finish-_xlpm.start))),\n      \"\")","v":""},null,"Staff 41",{"$f":" _xlfn.LET(\n      _xlpm.r, _xlfn.SEQUENCE(ROWS(ClientTbl[]),1,1,2),\n      _xlpm.c, _xlfn.SEQUENCE(1,7,2,2),\n      _xlpm.staff, INDEX(Roster, _xlpm.r, _xlpm.c),\n      _xlpm.hrsWeek,\n         IF(_xlpm.staff=_xlfn.SINGLE(StaffList),\n            _xlfn.LET(\n               _xlpm.start, INDEX(Roster, _xlpm.r+1, _xlpm.c),\n               _xlpm.finish, INDEX(Roster, _xlpm.r+1, _xlpm.c+1),\n               24*(_xlpm.finish - _xlpm.start) ),\n         \"\"),\n      SUM(_xlpm.hrsWeek))","v":0}]
[null,"",null,null,null,null,null,null,null,null,null,null,null,null,null,null,{"$f":" IF(_xlfn.SINGLE(ClientHdr)=\"\",\n      _xlfn.LET(\n         _xlpm.cols, _xlfn.SEQUENCE(1,7,2,2),\n         _xlpm.start, INDEX(currentRow,_xlpm.cols),\n         _xlpm.finish, INDEX(currentRow, 1+_xlpm.cols),\n         SUM(24*(_xlpm.finish-_xlpm.start))),\n      \"\")","v":0},null,"Staff 42",{"$f":" _xlfn.LET(\n      _xlpm.r, _xlfn.SEQUENCE(ROWS(ClientTbl[]),1,1,2),\n      _xlpm.c, _xlfn.SEQUENCE(1,7,2,2),\n      _xlpm.staff, INDEX(Roster, _xlpm.r, _xlpm.c),\n      _xlpm.hrsWeek,\n         IF(_xlpm.staff=_xlfn.SINGLE(StaffList),\n            _xlfn.LET(\n               _xlpm.start, INDEX(Roster, _xlpm.r+1, _xlpm.c),\n               _xlpm.finish, INDEX(Roster, _xlpm.r+1, _xlpm.c+1),\n               24*(_xlpm.finish - _xlpm.start) ),\n         \"\"),\n      SUM(_xlpm.hrsWeek))","v":0}]
[null,"Client 22",null,null,null,null,null,null,null,null,null,null,null,null,null,null,{"$f":" IF(_xlfn.SINGLE(ClientHdr)=\"\",\n      _xlfn.LET(\n         _xlpm.cols, _xlfn.SEQUENCE(1,7,2,2),\n         _xlpm.start, INDEX(currentRow,_xlpm.cols),\n         _xlpm.finish, INDEX(currentRow, 1+_xlpm.cols),\n         SUM(24*(_xlpm.finish-_xlpm.start))),\n      \"\")","v":""},null,"Staff 43",{"$f":" _xlfn.LET(\n      _xlpm.r, _xlfn.SEQUENCE(ROWS(ClientTbl[]),1,1,2),\n      _xlpm.c, _xlfn.SEQUENCE(1,7,2,2),\n      _xlpm.staff, INDEX(Roster, _xlpm.r, _xlpm.c),\n      _xlpm.hrsWeek,\n         IF(_xlpm.staff=_xlfn.SINGLE(StaffList),\n            _xlfn.LET(\n               _xlpm.start, INDEX(Roster, _xlpm.r+1, _xlpm.c),\n               _xlpm.finish, INDEX(Roster, _xlpm.r+1, _xlpm.c+1),\n               24*(_xlpm.finish - _xlpm.start) ),\n         \"\"),\n      SUM(_xlpm.hrsWeek))","v":0}]
[null,"",null,null,null,null,null,null,null,null,null,null,null,null,null,null,{"$f":" IF(_xlfn.SINGLE(ClientHdr)=\"\",\n      _xlfn.LET(\n         _xlpm.cols, _xlfn.SEQUENCE(1,7,2,2),\n         _xlpm.start, INDEX(currentRow,_xlpm.cols),\n         _xlpm.finish, INDEX(currentRow, 1+_xlpm.cols),\n         SUM(24*(_xlpm.finish-_xlpm.start))),\n      \"\")","v":0},null,"Staff 44",{"$f":" _xlfn.LET(\n      _xlpm.r, _xlfn.SEQUENCE(ROWS(ClientTbl[]),1,1,2),\n      _xlpm.c, _xlfn.SEQUENCE(1,7,2,2),\n      _xlpm.staff, INDEX(Roster, _xlpm.r, _xlpm.c),\n      _xlpm.hrsWeek,\n         IF(_xlpm.staff=_xlfn.SINGLE(StaffList),\n            _xlfn.LET(\n               _xlpm.start, INDEX(Roster, _xlpm.r+1, _xlpm.c),\n               _xlpm.finish, INDEX(Roster, _xlpm.r+1, _xlpm.c+1),\n               24*(_xlpm.finish - _xlpm.start) ),\n         \"\"),\n      SUM(_xlpm.hrsWeek))","v":0}]
[null,"Client 23",null,null,null,null,null,null,null,null,null,null,null,null,null,null,{"$f":" IF(_xlfn.SINGLE(ClientHdr)=\"\",\n      _xlfn.LET(\n         _xlpm.cols, _xlfn.SEQUENCE(1,7,2,2),\n         _xlpm.start, INDEX(currentRow,_xlpm.cols),\n         _xlpm.finish, INDEX(currentRow, 1+_xlpm.cols),\n         SUM(24*(_xlpm.finish-_xlpm.start))),\n      \"\")","v":""},null,"Staff 45",{"$f":" _xlfn.LET(\n      _xlpm.r, _xlfn.SEQUENCE(ROWS(ClientTbl[]),1,1,2),\n      _xlpm.c, _xlfn.SEQUENCE(1,7,2,2),\n      _xlpm.staff, INDEX(Roster, _xlpm.r, _xlpm.c),\n      _xlpm.hrsWeek,\n         IF(_xlpm.staff=_xlfn.SINGLE(StaffList),\n            _xlfn.LET(\n               _xlpm.start, INDEX(Roster, _xlpm.r+1, _xlpm.c),\n               _xlpm.finish, INDEX(Roster, _xlpm.r+1, _xlpm.c+1),\n               24*(_xlpm.finish - _xlpm.start) ),\n         \"\"),\n      SUM(_xlpm.hrsWeek))","v":0}]
[null,"","07:00:00","09:00:00","07:00:00","09:00:00","07:00:00","09:00:00","07:00:00","09:00:00","07:00:00","09:00:00","07:00:00","09:00:00","08:00:00","10:00:00",{"$f":" IF(_xlfn.SINGLE(ClientHdr)=\"\",\n      _xlfn.LET(\n         _xlpm.cols, _xlfn.SEQUENCE(1,7,2,2),\n         _xlpm.start, INDEX(currentRow,_xlpm.cols),\n         _xlpm.finish, INDEX(currentRow, 1+_xlpm.cols),\n         SUM(24*(_xlpm.finish-_xlpm.start))),\n      \"\")","v":14.000000000000087},null,"Staff 46",{"$f":" _xlfn.LET(\n      _xlpm.r, _xlfn.SEQUENCE(ROWS(ClientTbl[]),1,1,2),\n      _xlpm.c, _xlfn.SEQUENCE(1,7,2,2),\n      _xlpm.staff, INDEX(Roster, _xlpm.r, _xlpm.c),\n      _xlpm.hrsWeek,\n         IF(_xlpm.staff=_xlfn.SINGLE(StaffList),\n            _xlfn.LET(\n               _xlpm.start, INDEX(Roster, _xlpm.r+1, _xlpm.c),\n               _xlpm.finish, INDEX(Roster, _xlpm.r+1, _xlpm.c+1),\n               24*(_xlpm.finish - _xlpm.start) ),\n         \"\"),\n      SUM(_xlpm.hrsWeek))","v":0}]
[null,"Client 24",null,null,null,null,null,null,null,null,null,null,null,null,null,null,{"$f":" IF(_xlfn.SINGLE(ClientHdr)=\"\",\n      _xlfn.LET(\n         _xlpm.cols, _xlfn.SEQUENCE(1,7,2,2),\n         _xlpm.start, INDEX(currentRow,_xlpm.cols),\n         _xlpm.finish, INDEX(currentRow, 1+_xlpm.cols),\n         SUM(24*(_xlpm.finish-_xlpm.start))),\n      \"\")","v":""},null,"Staff 47",{"$f":" _xlfn.LET(\n      _xlpm.r, _xlfn.SEQUENCE(ROWS(ClientTbl[]),1,1,2),\n      _xlpm.c, _xlfn.SEQUENCE(1,7,2,2),\n      _xlpm.staff, INDEX(Roster, _xlpm.r, _xlpm.c),\n      _xlpm.hrsWeek,\n         IF(_xlpm.staff=_xlfn.SINGLE(StaffList),\n            _xlfn.LET(\n               _xlpm.start, INDEX(Roster, _xlpm.r+1, _xlpm.c),\n               _xlpm.finish, INDEX(Roster, _xlpm.r+1, _xlpm.c+1),\n               24*(_xlpm.finish - _xlpm.start) ),\n         \"\"),\n      SUM(_xlpm.hrsWeek))","v":0}]
[null,"","15:00:00","18:00:00","15:00:00","18:00:00","15:00:00","18:00:00","15:00:00","18:00:00","15:00:00","18:00:00","13:00:00","15:00:00","13:00:00","15:00:00",{"$f":" IF(_xlfn.SINGLE(ClientHdr)=\"\",\n      _xlfn.LET(\n         _xlpm.cols, _xlfn.SEQUENCE(1,7,2,2),\n         _xlpm.start, INDEX(currentRow,_xlpm.cols),\n         _xlpm.finish, INDEX(currentRow, 1+_xlpm.cols),\n         SUM(24*(_xlpm.finish-_xlpm.start))),\n      \"\")","v":18.999999999999986},null,"Staff 48",{"$f":" _xlfn.LET(\n      _xlpm.r, _xlfn.SEQUENCE(ROWS(ClientTbl[]),1,1,2),\n      _xlpm.c, _xlfn.SEQUENCE(1,7,2,2),\n      _xlpm.staff, INDEX(Roster, _xlpm.r, _xlpm.c),\n      _xlpm.hrsWeek,\n         IF(_xlpm.staff=_xlfn.SINGLE(StaffList),\n            _xlfn.LET(\n               _xlpm.start, INDEX(Roster, _xlpm.r+1, _xlpm.c),\n               _xlpm.finish, INDEX(Roster, _xlpm.r+1, _xlpm.c+1),\n               24*(_xlpm.finish - _xlpm.start) ),\n         \"\"),\n      SUM(_xlpm.hrsWeek))","v":0}]
[null,"Client 25",null,null,null,null,null,null,null,null,null,null,null,null,null,null,{"$f":" IF(_xlfn.SINGLE(ClientHdr)=\"\",\n      _xlfn.LET(\n         _xlpm.cols, _xlfn.SEQUENCE(1,7,2,2),\n         _xlpm.start, INDEX(currentRow,_xlpm.cols),\n         _xlpm.finish, INDEX(currentRow, 1+_xlpm.cols),\n         SUM(24*(_xlpm.finish-_xlpm.start))),\n      \"\")","v":""},null,"Staff 49",{"$f":" _xlfn.LET(\n      _xlpm.r, _xlfn.SEQUENCE(ROWS(ClientTbl[]),1,1,2),\n      _xlpm.c, _xlfn.SEQUENCE(1,7,2,2),\n      _xlpm.staff, INDEX(Roster, _xlpm.r, _xlpm.c),\n      _xlpm.hrsWeek,\n         IF(_xlpm.staff=_xlfn.SINGLE(StaffList),\n            _xlfn.LET(\n               _xlpm.start, INDEX(Roster, _xlpm.r+1, _xlpm.c),\n               _xlpm.finish, INDEX(Roster, _xlpm.r+1, _xlpm.c+1),\n               24*(_xlpm.finish - _xlpm.start) ),\n         \"\"),\n      SUM(_xlpm.hrsWeek))","v":0}]
[null,"","18:00:00","20:00:00","18:00:00","19:00:00","18:00:00","19:00:00","18:00:00","19:00:00","18:00:00","19:00:00","18:00:00","19:00:00","18:00:00","19:00:00",{"$f":" IF(_xlfn.SINGLE(ClientHdr)=\"\",\n      _xlfn.LET(\n         _xlpm.cols, _xlfn.SEQUENCE(1,7,2,2),\n         _xlpm.start, INDEX(currentRow,_xlpm.cols),\n         _xlpm.finish, INDEX(currentRow, 1+_xlpm.cols),\n         SUM(24*(_xlpm.finish-_xlpm.start))),\n      \"\")","v":8.0000000000000604},null,"Staff 50",{"$f":" _xlfn.LET(\n      _xlpm.r, _xlfn.SEQUENCE(ROWS(ClientTbl[]),1,1,2),\n      _xlpm.c, _xlfn.SEQUENCE(1,7,2,2),\n      _xlpm.staff, INDEX(Roster, _xlpm.r, _xlpm.c),\n      _xlpm.hrsWeek,\n         IF(_xlpm.staff=_xlfn.SINGLE(StaffList),\n            _xlfn.LET(\n               _xlpm.start, INDEX(Roster, _xlpm.r+1, _xlpm.c),\n               _xlpm.finish, INDEX(Roster, _xlpm.r+1, _xlpm.c+1),\n               24*(_xlpm.finish - _xlpm.start) ),\n         \"\"),\n      SUM(_xlpm.hrsWeek))","v":0}]
[null,"Client 26",null,null,null,null,null,null,null,null,null,null,null,null,null,null,{"$f":" IF(_xlfn.SINGLE(ClientHdr)=\"\",\n      _xlfn.LET(\n         _xlpm.cols, _xlfn.SEQUENCE(1,7,2,2),\n         _xlpm.start, INDEX(currentRow,_xlpm.cols),\n         _xlpm.finish, INDEX(currentRow, 1+_xlpm.cols),\n         SUM(24*(_xlpm.finish-_xlpm.start))),\n      \"\")","v":""}]
[null,"",null,null,"19:00:00","20:00:00","19:00:00","20:00:00","19:00:00","20:00:00","19:00:00","20:00:00","19:00:00","20:00:00","19:00:00","20:00:00",{"$f":" IF(_xlfn.SINGLE(ClientHdr)=\"\",\n      _xlfn.LET(\n         _xlpm.cols, _xlfn.SEQUENCE(1,7,2,2),\n         _xlpm.start, INDEX(currentRow,_xlpm.cols),\n         _xlpm.finish, INDEX(currentRow, 1+_xlpm.cols),\n         SUM(24*(_xlpm.finish-_xlpm.start))),\n      \"\")","v":6.0000000000000586}]
[null,"Client 27",null,null,null,null,null,null,null,null,null,null,null,null,null,null,{"$f":" IF(_xlfn.SINGLE(ClientHdr)=\"\",\n      _xlfn.LET(\n         _xlpm.cols, _xlfn.SEQUENCE(1,7,2,2),\n         _xlpm.start, INDEX(currentRow,_xlpm.cols),\n         _xlpm.finish, INDEX(currentRow, 1+_xlpm.cols),\n         SUM(24*(_xlpm.finish-_xlpm.start))),\n      \"\")","v":""}]
[null,"","08:00:00","10:00:00","07:00:00","08:30:00","08:30:00","14:00:00","08:00:00","14:30:00","08:00:00","10:00:00","08:30:00","10:30:00","08:30:00","14:30:00",{"$f":" IF(_xlfn.SINGLE(ClientHdr)=\"\",\n      _xlfn.LET(\n         _xlpm.cols, _xlfn.SEQUENCE(1,7,2,2),\n         _xlpm.start, INDEX(currentRow,_xlpm.cols),\n         _xlpm.finish, INDEX(currentRow, 1+_xlpm.cols),\n         SUM(24*(_xlpm.finish-_xlpm.start))),\n      \"\")","v":25.50000000000005}]
[null,"Client 28",null,null,null,null,null,null,null,null,null,null,null,null,null,null,{"$f":" IF(_xlfn.SINGLE(ClientHdr)=\"\",\n      _xlfn.LET(\n         _xlpm.cols, _xlfn.SEQUENCE(1,7,2,2),\n         _xlpm.start, INDEX(currentRow,_xlpm.cols),\n         _xlpm.finish, INDEX(currentRow, 1+_xlpm.cols),\n         SUM(24*(_xlpm.finish-_xlpm.start))),\n      \"\")","v":""}]
[null,"",null,null,null,null,null,null,null,null,null,null,null,null,null,null,{"$f":" IF(_xlfn.SINGLE(ClientHdr)=\"\",\n      _xlfn.LET(\n         _xlpm.cols, _xlfn.SEQUENCE(1,7,2,2),\n         _xlpm.start, INDEX(currentRow,_xlpm.cols),\n         _xlpm.finish, INDEX(currentRow, 1+_xlpm.cols),\n         SUM(24*(_xlpm.finish-_xlpm.start))),\n      \"\")","v":0}]
[null,"Client 29",null,null,null,null,null,null,null,null,null,null,null,null,null,null,{"$f":" IF(_xlfn.SINGLE(ClientHdr)=\"\",\n      _xlfn.LET(\n         _xlpm.cols, _xlfn.SEQUENCE(1,7,2,2),\n         _xlpm.start, INDEX(currentRow,_xlpm.cols),\n         _xlpm.finish, INDEX(currentRow, 1+_xlpm.cols),\n         SUM(24*(_xlpm.finish-_xlpm.start))),\n      \"\")","v":""}]
[null,"",null,null,null,null,null,null,null,null,null,null,null,null,null,null,{"$f":" IF(_xlfn.SINGLE(ClientHdr)=\"\",\n      _xlfn.LET(\n         _xlpm.cols, _xlfn.SEQUENCE(1,7,2,2),\n         _xlpm.start, INDEX(currentRow,_xlpm.cols),\n         _xlpm.finish, INDEX(currentRow, 1+_xlpm.cols),\n         SUM(24*(_xlpm.finish-_xlpm.start))),\n      \"\")","v":0}]
[null,"Client 30",null,null,null,null,null,null,null,null,null,null,null,null,null,null,{"$f":" IF(_xlfn.SINGLE(ClientHdr)=\"\",\n      _xlfn.LET(\n         _xlpm.cols, _xlfn.SEQUENCE(1,7,2,2),\n         _xlpm.start, INDEX(currentRow,_xlpm.cols),\n         _xlpm.finish, INDEX(currentRow, 1+_xlpm.cols),\n         SUM(24*(_xlpm.finish-_xlpm.start))),\n      \"\")","v":""}]
[null,"","07:00:00","09:00:00","07:00:00","09:00:00","07:00:00","09:00:00","07:00:00","09:00:00","07:00:00","09:00:00","07:00:00","15:00:00","07:00:00","15:00:00",{"$f":" IF(_xlfn.SINGLE(ClientHdr)=\"\",\n      _xlfn.LET(\n         _xlpm.cols, _xlfn.SEQUENCE(1,7,2,2),\n         _xlpm.start, INDEX(currentRow,_xlpm.cols),\n         _xlpm.finish, INDEX(currentRow, 1+_xlpm.cols),\n         SUM(24*(_xlpm.finish-_xlpm.start))),\n      \"\")","v":26.000000000000107}]
[null,"Client 31",null,null,null,null,null,null,null,null,null,null,null,null,null,null,{"$f":" IF(_xlfn.SINGLE(ClientHdr)=\"\",\n      _xlfn.LET(\n         _xlpm.cols, _xlfn.SEQUENCE(1,7,2,2),\n         _xlpm.start, INDEX(currentRow,_xlpm.cols),\n         _xlpm.finish, INDEX(currentRow, 1+_xlpm.cols),\n         SUM(24*(_xlpm.finish-_xlpm.start))),\n      \"\")","v":""}]
[null,"","09:00:00","15:00:00","09:00:00","15:00:00","09:00:00","15:00:00","09:00:00","15:00:00","09:00:00","15:00:00",null,null,null,null,{"$f":" IF(_xlfn.SINGLE(ClientHdr)=\"\",\n      _xlfn.LET(\n         _xlpm.cols, _xlfn.SEQUENCE(1,7,2,2),\n         _xlpm.start, INDEX(currentRow,_xlpm.cols),\n         _xlpm.finish, INDEX(currentRow, 1+_xlpm.cols),\n         SUM(24*(_xlpm.finish-_xlpm.start))),\n      \"\")","v":30}]
[null,"Client 32",null,null,null,null,null,null,null,null,null,null,null,null,null,null,{"$f":" IF(_xlfn.SINGLE(ClientHdr)=\"\",\n      _xlfn.LET(\n         _xlpm.cols, _xlfn.SEQUENCE(1,7,2,2),\n         _xlpm.start, INDEX(currentRow,_xlpm.cols),\n         _xlpm.finish, INDEX(currentRow, 1+_xlpm.cols),\n         SUM(24*(_xlpm.finish-_xlpm.start))),\n      \"\")","v":""}]
[null,"","15:00:00","23:00:00","15:00:00","23:00:00","15:00:00","23:00:00","15:00:00","23:00:00","15:00:00","23:00:00","15:00:00","23:00:00","15:00:00","23:00:00",{"$f":" IF(_xlfn.SINGLE(ClientHdr)=\"\",\n      _xlfn.LET(\n         _xlpm.cols, _xlfn.SEQUENCE(1,7,2,2),\n         _xlpm.start, INDEX(currentRow,_xlpm.cols),\n         _xlpm.finish, INDEX(currentRow, 1+_xlpm.cols),\n         SUM(24*(_xlpm.finish-_xlpm.start))),\n      \"\")","v":56.000000000000114}]
[null,"Client 33",null,null,null,null,null,null,null,null,null,null,null,null,null,null,{"$f":" IF(_xlfn.SINGLE(ClientHdr)=\"\",\n      _xlfn.LET(\n         _xlpm.cols, _xlfn.SEQUENCE(1,7,2,2),\n         _xlpm.start, INDEX(currentRow,_xlpm.cols),\n         _xlpm.finish, INDEX(currentRow, 1+_xlpm.cols),\n         SUM(24*(_xlpm.finish-_xlpm.start))),\n      \"\")","v":""}]
[null,"","07:00:00","08:30:00",null,null,null,null,null,null,null,null,null,null,null,null,{"$f":" IF(_xlfn.SINGLE(ClientHdr)=\"\",\n      _xlfn.LET(\n         _xlpm.cols, _xlfn.SEQUENCE(1,7,2,2),\n         _xlpm.start, INDEX(currentRow,_xlpm.cols),\n         _xlpm.finish, INDEX(currentRow, 1+_xlpm.cols),\n         SUM(24*(_xlpm.finish-_xlpm.start))),\n      \"\")","v":1.5}]
[null,"Client 34",null,null,null,null,null,null,null,null,null,null,null,null,null,null,{"$f":" IF(_xlfn.SINGLE(ClientHdr)=\"\",\n      _xlfn.LET(\n         _xlpm.cols, _xlfn.SEQUENCE(1,7,2,2),\n         _xlpm.start, INDEX(currentRow,_xlpm.cols),\n         _xlpm.finish, INDEX(currentRow, 1+_xlpm.cols),\n         SUM(24*(_xlpm.finish-_xlpm.start))),\n      \"\")","v":""}]
[null,"",null,null,null,null,null,null,null,null,null,null,null,null,null,null,{"$f":" IF(_xlfn.SINGLE(ClientHdr)=\"\",\n      _xlfn.LET(\n         _xlpm.cols, _xlfn.SEQUENCE(1,7,2,2),\n         _xlpm.start, INDEX(currentRow,_xlpm.cols),\n         _xlpm.finish, INDEX(currentRow, 1+_xlpm.cols),\n         SUM(24*(_xlpm.finish-_xlpm.start))),\n      \"\")","v":0}]
[null,"Client 35",null,null,null,null,null,null,null,null,null,null,null,null,null,null,{"$f":" IF(_xlfn.SINGLE(ClientHdr)=\"\",\n      _xlfn.LET(\n         _xlpm.cols, _xlfn.SEQUENCE(1,7,2,2),\n         _xlpm.start, INDEX(currentRow,_xlpm.cols),\n         _xlpm.finish, INDEX(currentRow, 1+_xlpm.cols),\n         SUM(24*(_xlpm.finish-_xlpm.start))),\n      \"\")","v":""}]
[null,"","09:00:00","14:00:00","09:00:00","14:00:00","09:00:00","14:00:00","09:00:00","14:00:00","09:00:00","14:00:00",null,null,null,null,{"$f":" IF(_xlfn.SINGLE(ClientHdr)=\"\",\n      _xlfn.LET(\n         _xlpm.cols, _xlfn.SEQUENCE(1,7,2,2),\n         _xlpm.start, INDEX(currentRow,_xlpm.cols),\n         _xlpm.finish, INDEX(currentRow, 1+_xlpm.cols),\n         SUM(24*(_xlpm.finish-_xlpm.start))),\n      \"\")","v":24.999999999999964}]
[null,"Client 36",null,null,null,null,null,null,null,null,null,null,null,null,null,null,{"$f":" IF(_xlfn.SINGLE(ClientHdr)=\"\",\n      _xlfn.LET(\n         _xlpm.cols, _xlfn.SEQUENCE(1,7,2,2),\n         _xlpm.start, INDEX(currentRow,_xlpm.cols),\n         _xlpm.finish, INDEX(currentRow, 1+_xlpm.cols),\n         SUM(24*(_xlpm.finish-_xlpm.start))),\n      \"\")","v":""}]
[null,"",null,null,"06:00:00","10:00:00","06:00:00","10:00:00","06:00:00","10:00:00","06:00:00","10:00:00",null,null,null,null,{"$f":" IF(_xlfn.SINGLE(ClientHdr)=\"\",\n      _xlfn.LET(\n         _xlpm.cols, _xlfn.SEQUENCE(1,7,2,2),\n         _xlpm.start, INDEX(currentRow,_xlpm.cols),\n         _xlpm.finish, INDEX(currentRow, 1+_xlpm.cols),\n         SUM(24*(_xlpm.finish-_xlpm.start))),\n      \"\")","v":16.000000000000036}]
[null,"Client 37",null,null,null,null,null,null,null,null,null,null,null,null,null,null,{"$f":" IF(_xlfn.SINGLE(ClientHdr)=\"\",\n      _xlfn.LET(\n         _xlpm.cols, _xlfn.SEQUENCE(1,7,2,2),\n         _xlpm.start, INDEX(currentRow,_xlpm.cols),\n         _xlpm.finish, INDEX(currentRow, 1+_xlpm.cols),\n         SUM(24*(_xlpm.finish-_xlpm.start))),\n      \"\")","v":""}]
[null,"","15:00:00","17:00:00","11:00:00","14:00:00","09:00:00","12:00:00","15:00:00","18:00:00","10:00:00","14:00:00","11:00:00","13:00:00",null,null,{"$f":" IF(_xlfn.SINGLE(ClientHdr)=\"\",\n      _xlfn.LET(\n         _xlpm.cols, _xlfn.SEQUENCE(1,7,2,2),\n         _xlpm.start, INDEX(currentRow,_xlpm.cols),\n         _xlpm.finish, INDEX(currentRow, 1+_xlpm.cols),\n         SUM(24*(_xlpm.finish-_xlpm.start))),\n      \"\")","v":17.000000000000043}]
[null,"Client 38",null,null,null,null,null,null,null,null,null,null,null,null,null,null,{"$f":" IF(_xlfn.SINGLE(ClientHdr)=\"\",\n      _xlfn.LET(\n         _xlpm.cols, _xlfn.SEQUENCE(1,7,2,2),\n         _xlpm.start, INDEX(currentRow,_xlpm.cols),\n         _xlpm.finish, INDEX(currentRow, 1+_xlpm.cols),\n         SUM(24*(_xlpm.finish-_xlpm.start))),\n      \"\")","v":""}]
[null,"","17:00:00","21:00:00","18:00:00","20:00:00","18:00:00","20:00:00","18:00:00","21:00:00","18:00:00","20:00:00","18:00:00","20:00:00","18:00:00","20:00:00",{"$f":" IF(_xlfn.SINGLE(ClientHdr)=\"\",\n      _xlfn.LET(\n         _xlpm.cols, _xlfn.SEQUENCE(1,7,2,2),\n         _xlpm.start, INDEX(currentRow,_xlpm.cols),\n         _xlpm.finish, INDEX(currentRow, 1+_xlpm.cols),\n         SUM(24*(_xlpm.finish-_xlpm.start))),\n      \"\")","v":17.000000000000071}]
[null,"Client 39",null,null,null,null,null,null,null,null,null,null,null,null,null,null,{"$f":" IF(_xlfn.SINGLE(ClientHdr)=\"\",\n      _xlfn.LET(\n         _xlpm.cols, _xlfn.SEQUENCE(1,7,2,2),\n         _xlpm.start, INDEX(currentRow,_xlpm.cols),\n         _xlpm.finish, INDEX(currentRow, 1+_xlpm.cols),\n         SUM(24*(_xlpm.finish-_xlpm.start))),\n      \"\")","v":""}]
[null,"",null,null,null,null,null,null,null,null,null,null,null,null,null,null,{"$f":" IF(_xlfn.SINGLE(ClientHdr)=\"\",\n      _xlfn.LET(\n         _xlpm.cols, _xlfn.SEQUENCE(1,7,2,2),\n         _xlpm.start, INDEX(currentRow,_xlpm.cols),\n         _xlpm.finish, INDEX(currentRow, 1+_xlpm.cols),\n         SUM(24*(_xlpm.finish-_xlpm.start))),\n      \"\")","v":0}]
[null,"Client 40",null,null,null,null,null,null,null,null,null,null,null,null,null,null,{"$f":" IF(_xlfn.SINGLE(ClientHdr)=\"\",\n      _xlfn.LET(\n         _xlpm.cols, _xlfn.SEQUENCE(1,7,2,2),\n         _xlpm.start, INDEX(currentRow,_xlpm.cols),\n         _xlpm.finish, INDEX(currentRow, 1+_xlpm.cols),\n         SUM(24*(_xlpm.finish-_xlpm.start))),\n      \"\")","v":""}]
[null,"",null,null,null,null,"15:00:00","17:00:00",null,null,"15:00:00","17:00:00",null,null,null,null,{"$f":" IF(_xlfn.SINGLE(ClientHdr)=\"\",\n      _xlfn.LET(\n         _xlpm.cols, _xlfn.SEQUENCE(1,7,2,2),\n         _xlpm.start, INDEX(currentRow,_xlpm.cols),\n         _xlpm.finish, INDEX(currentRow, 1+_xlpm.cols),\n         SUM(24*(_xlpm.finish-_xlpm.start))),\n      \"\")","v":4.0000000000000338}]
[null,"Client 41",null,null,null,null,null,null,null,null,null,null,null,null,null,null,{"$f":" IF(_xlfn.SINGLE(ClientHdr)=\"\",\n      _xlfn.LET(\n         _xlpm.cols, _xlfn.SEQUENCE(1,7,2,2),\n         _xlpm.start, INDEX(currentRow,_xlpm.cols),\n         _xlpm.finish, INDEX(currentRow, 1+_xlpm.cols),\n         SUM(24*(_xlpm.finish-_xlpm.start))),\n      \"\")","v":""}]
[null,"",null,null,null,null,null,null,null,null,null,null,null,null,null,null,{"$f":" IF(_xlfn.SINGLE(ClientHdr)=\"\",\n      _xlfn.LET(\n         _xlpm.cols, _xlfn.SEQUENCE(1,7,2,2),\n         _xlpm.start, INDEX(currentRow,_xlpm.cols),\n         _xlpm.finish, INDEX(currentRow, 1+_xlpm.cols),\n         SUM(24*(_xlpm.finish-_xlpm.start))),\n      \"\")","v":0}]
[null,"Client 42",null,null,null,null,null,null,null,null,null,null,null,null,null,null,{"$f":" IF(_xlfn.SINGLE(ClientHdr)=\"\",\n      _xlfn.LET(\n         _xlpm.cols, _xlfn.SEQUENCE(1,7,2,2),\n         _xlpm.start, INDEX(currentRow,_xlpm.cols),\n         _xlpm.finish, INDEX(currentRow, 1+_xlpm.cols),\n         SUM(24*(_xlpm.finish-_xlpm.start))),\n      \"\")","v":""}]
[null,"",null,null,null,null,null,null,null,null,null,null,"12:00:00","17:00:00",null,null,{"$f":" IF(_xlfn.SINGLE(ClientHdr)=\"\",\n      _xlfn.LET(\n         _xlpm.cols, _xlfn.SEQUENCE(1,7,2,2),\n         _xlpm.start, INDEX(currentRow,_xlpm.cols),\n         _xlpm.finish, INDEX(currentRow, 1+_xlpm.cols),\n         SUM(24*(_xlpm.finish-_xlpm.start))),\n      \"\")","v":5.0000000000000169}]
[null,"Client 43",null,null,null,null,null,null,null,null,null,null,null,null,null,null,{"$f":" IF(_xlfn.SINGLE(ClientHdr)=\"\",\n      _xlfn.LET(\n         _xlpm.cols, _xlfn.SEQUENCE(1,7,2,2),\n         _xlpm.start, INDEX(currentRow,_xlpm.cols),\n         _xlpm.finish, INDEX(currentRow, 1+_xlpm.cols),\n         SUM(24*(_xlpm.finish-_xlpm.start))),\n      \"\")","v":""}]
[null,"",null,null,null,null,null,null,null,null,null,null,"10:00:00","14:00:00",null,null,{"$f":" IF(_xlfn.SINGLE(ClientHdr)=\"\",\n      _xlfn.LET(\n         _xlpm.cols, _xlfn.SEQUENCE(1,7,2,2),\n         _xlpm.start, INDEX(currentRow,_xlpm.cols),\n         _xlpm.finish, INDEX(currentRow, 1+_xlpm.cols),\n         SUM(24*(_xlpm.finish-_xlpm.start))),\n      \"\")","v":4.0000000000000089}]
[null,"Client 44",null,null,null,null,null,null,null,null,null,null,null,null,null,null,{"$f":" IF(_xlfn.SINGLE(ClientHdr)=\"\",\n      _xlfn.LET(\n         _xlpm.cols, _xlfn.SEQUENCE(1,7,2,2),\n         _xlpm.start, INDEX(currentRow,_xlpm.cols),\n         _xlpm.finish, INDEX(currentRow, 1+_xlpm.cols),\n         SUM(24*(_xlpm.finish-_xlpm.start))),\n      \"\")","v":""}]
[null,"",null,null,null,null,null,null,null,null,"18:30:00","22:30:00",null,null,null,null,{"$f":" IF(_xlfn.SINGLE(ClientHdr)=\"\",\n      _xlfn.LET(\n         _xlpm.cols, _xlfn.SEQUENCE(1,7,2,2),\n         _xlpm.start, INDEX(currentRow,_xlpm.cols),\n         _xlpm.finish, INDEX(currentRow, 1+_xlpm.cols),\n         SUM(24*(_xlpm.finish-_xlpm.start))),\n      \"\")","v":4.0000000000000071}]
[null,"Client 45",null,null,null,null,null,null,null,null,null,null,null,null,null,null,{"$f":" IF(_xlfn.SINGLE(ClientHdr)=\"\",\n      _xlfn.LET(\n         _xlpm.cols, _xlfn.SEQUENCE(1,7,2,2),\n         _xlpm.start, INDEX(currentRow,_xlpm.cols),\n         _xlpm.finish, INDEX(currentRow, 1+_xlpm.cols),\n         SUM(24*(_xlpm.finish-_xlpm.start))),\n      \"\")","v":""}]
[null,"","15:00:00","19:00:00","15:00:00","19:00:00","15:00:00","19:00:00","15:00:00","19:00:00","15:00:00","19:00:00","09:00:00","12:00:00",null,null,{"$f":" IF(_xlfn.SINGLE(ClientHdr)=\"\",\n      _xlfn.LET(\n         _xlpm.cols, _xlfn.SEQUENCE(1,7,2,2),\n         _xlpm.start, INDEX(currentRow,_xlpm.cols),\n         _xlpm.finish, INDEX(currentRow, 1+_xlpm.cols),\n         SUM(24*(_xlpm.finish-_xlpm.start))),\n      \"\")","v":23.000000000000036}]
[null,"Client 46",null,null,null,null,null,null,null,null,null,null,null,null,null,null,{"$f":" IF(_xlfn.SINGLE(ClientHdr)=\"\",\n      _xlfn.LET(\n         _xlpm.cols, _xlfn.SEQUENCE(1,7,2,2),\n         _xlpm.start, INDEX(currentRow,_xlpm.cols),\n         _xlpm.finish, INDEX(currentRow, 1+_xlpm.cols),\n         SUM(24*(_xlpm.finish-_xlpm.start))),\n      \"\")","v":""}]
[null,"",null,null,"10:00:00","12:00:00",null,null,"13:00:00","15:00:00","13:00:00","15:00:00",null,null,null,null,{"$f":" IF(_xlfn.SINGLE(ClientHdr)=\"\",\n      _xlfn.LET(\n         _xlpm.cols, _xlfn.SEQUENCE(1,7,2,2),\n         _xlpm.start, INDEX(currentRow,_xlpm.cols),\n         _xlpm.finish, INDEX(currentRow, 1+_xlpm.cols),\n         SUM(24*(_xlpm.finish-_xlpm.start))),\n      \"\")","v":6.0000000000000018}]
[null,"Client 47",null,null,null,null,null,null,null,null,null,null,null,null,null,null,{"$f":" IF(_xlfn.SINGLE(ClientHdr)=\"\",\n      _xlfn.LET(\n         _xlpm.cols, _xlfn.SEQUENCE(1,7,2,2),\n         _xlpm.start, INDEX(currentRow,_xlpm.cols),\n         _xlpm.finish, INDEX(currentRow, 1+_xlpm.cols),\n         SUM(24*(_xlpm.finish-_xlpm.start))),\n      \"\")","v":""}]
[null,"",null,null,null,null,null,null,null,null,null,null,"10:00:00","14:00:00",null,null,{"$f":" IF(_xlfn.SINGLE(ClientHdr)=\"\",\n      _xlfn.LET(\n         _xlpm.cols, _xlfn.SEQUENCE(1,7,2,2),\n         _xlpm.start, INDEX(currentRow,_xlpm.cols),\n         _xlpm.finish, INDEX(currentRow, 1+_xlpm.cols),\n         SUM(24*(_xlpm.finish-_xlpm.start))),\n      \"\")","v":4.0000000000000089}]
[null,"Client 48",null,null,null,null,null,null,null,null,null,null,null,null,null,null,{"$f":" IF(_xlfn.SINGLE(ClientHdr)=\"\",\n      _xlfn.LET(\n         _xlpm.cols, _xlfn.SEQUENCE(1,7,2,2),\n         _xlpm.start, INDEX(currentRow,_xlpm.cols),\n         _xlpm.finish, INDEX(currentRow, 1+_xlpm.cols),\n         SUM(24*(_xlpm.finish-_xlpm.start))),\n      \"\")","v":""}]
[null,"","09:00:00","11:00:00",null,null,"09:00:00","14:00:00",null,null,"09:00:00","11:00:00",null,null,null,null,{"$f":" IF(_xlfn.SINGLE(ClientHdr)=\"\",\n      _xlfn.LET(\n         _xlpm.cols, _xlfn.SEQUENCE(1,7,2,2),\n         _xlpm.start, INDEX(currentRow,_xlpm.cols),\n         _xlpm.finish, INDEX(currentRow, 1+_xlpm.cols),\n         SUM(24*(_xlpm.finish-_xlpm.start))),\n      \"\")","v":8.9999999999999751}]
[null,"Client 49",null,null,null,null,null,null,null,null,null,null,null,null,null,null,{"$f":" IF(_xlfn.SINGLE(ClientHdr)=\"\",\n      _xlfn.LET(\n         _xlpm.cols, _xlfn.SEQUENCE(1,7,2,2),\n         _xlpm.start, INDEX(currentRow,_xlpm.cols),\n         _xlpm.finish, INDEX(currentRow, 1+_xlpm.cols),\n         SUM(24*(_xlpm.finish-_xlpm.start))),\n      \"\")","v":""}]
[null,"","12:00:00","16:30:00","09:00:00","14:00:00","09:00:00","16:30:00","09:00:00","16:30:00",null,null,null,null,null,null,{"$f":" IF(_xlfn.SINGLE(ClientHdr)=\"\",\n      _xlfn.LET(\n         _xlpm.cols, _xlfn.SEQUENCE(1,7,2,2),\n         _xlpm.start, INDEX(currentRow,_xlpm.cols),\n         _xlpm.finish, INDEX(currentRow, 1+_xlpm.cols),\n         SUM(24*(_xlpm.finish-_xlpm.start))),\n      \"\")","v":24.499999999999993}]
[null,"Client 50",null,null,null,null,null,null,null,null,null,null,null,null,null,null,{"$f":" IF(_xlfn.SINGLE(ClientHdr)=\"\",\n      _xlfn.LET(\n         _xlpm.cols, _xlfn.SEQUENCE(1,7,2,2),\n         _xlpm.start, INDEX(currentRow,_xlpm.cols),\n         _xlpm.finish, INDEX(currentRow, 1+_xlpm.cols),\n         SUM(24*(_xlpm.finish-_xlpm.start))),\n      \"\")","v":""}]
[null,"",null,null,null,null,null,null,null,null,null,null,null,null,null,null,{"$f":" IF(_xlfn.SINGLE(ClientHdr)=\"\",\n      _xlfn.LET(\n         _xlpm.cols, _xlfn.SEQUENCE(1,7,2,2),\n         _xlpm.start, INDEX(currentRow,_xlpm.cols),\n         _xlpm.finish, INDEX(currentRow, 1+_xlpm.cols),\n         SUM(24*(_xlpm.finish-_xlpm.start))),\n      \"\")","v":0}]
[null,"Client 51",null,null,null,null,null,null,null,null,null,null,null,null,null,null,{"$f":" IF(_xlfn.SINGLE(ClientHdr)=\"\",\n      _xlfn.LET(\n         _xlpm.cols, _xlfn.SEQUENCE(1,7,2,2),\n         _xlpm.start, INDEX(currentRow,_xlpm.cols),\n         _xlpm.finish, INDEX(currentRow, 1+_xlpm.cols),\n         SUM(24*(_xlpm.finish-_xlpm.start))),\n      \"\")","v":""}]
[null,"",null,null,"14:30:00","16:30:00",null,null,null,null,null,null,null,null,null,null,{"$f":" IF(_xlfn.SINGLE(ClientHdr)=\"\",\n      _xlfn.LET(\n         _xlpm.cols, _xlfn.SEQUENCE(1,7,2,2),\n         _xlpm.start, INDEX(currentRow,_xlpm.cols),\n         _xlpm.finish, INDEX(currentRow, 1+_xlpm.cols),\n         SUM(24*(_xlpm.finish-_xlpm.start))),\n      \"\")","v":1.9999999999999929}]
[null,"Client 52",null,null,null,null,null,null,null,null,null,null,null,null,null,null,{"$f":" IF(_xlfn.SINGLE(ClientHdr)=\"\",\n      _xlfn.LET(\n         _xlpm.cols, _xlfn.SEQUENCE(1,7,2,2),\n         _xlpm.start, INDEX(currentRow,_xlpm.cols),\n         _xlpm.finish, INDEX(currentRow, 1+_xlpm.cols),\n         SUM(24*(_xlpm.finish-_xlpm.start))),\n      \"\")","v":""}]
[null,"",null,null,null,null,null,null,"10:00:00","16:00:00",null,null,null,null,null,null,{"$f":" IF(_xlfn.SINGLE(ClientHdr)=\"\",\n      _xlfn.LET(\n         _xlpm.cols, _xlfn.SEQUENCE(1,7,2,2),\n         _xlpm.start, INDEX(currentRow,_xlpm.cols),\n         _xlpm.finish, INDEX(currentRow, 1+_xlpm.cols),\n         SUM(24*(_xlpm.finish-_xlpm.start))),\n      \"\")","v":6.0000000000000231}]
[null,"Client 53",null,null,null,null,null,null,null,null,null,null,null,null,null,null,{"$f":" IF(_xlfn.SINGLE(ClientHdr)=\"\",\n      _xlfn.LET(\n         _xlpm.cols, _xlfn.SEQUENCE(1,7,2,2),\n         _xlpm.start, INDEX(currentRow,_xlpm.cols),\n         _xlpm.finish, INDEX(currentRow, 1+_xlpm.cols),\n         SUM(24*(_xlpm.finish-_xlpm.start))),\n      \"\")","v":""}]
[null,"",null,null,null,null,null,null,null,null,null,null,null,null,null,null,{"$f":" IF(_xlfn.SINGLE(ClientHdr)=\"\",\n      _xlfn.LET(\n         _xlpm.cols, _xlfn.SEQUENCE(1,7,2,2),\n         _xlpm.start, INDEX(currentRow,_xlpm.cols),\n         _xlpm.finish, INDEX(currentRow, 1+_xlpm.cols),\n         SUM(24*(_xlpm.finish-_xlpm.start))),\n      \"\")","v":0}]
[null,"Client 54",null,null,null,null,null,null,null,null,null,null,null,null,null,null,{"$f":" IF(_xlfn.SINGLE(ClientHdr)=\"\",\n      _xlfn.LET(\n         _xlpm.cols, _xlfn.SEQUENCE(1,7,2,2),\n         _xlpm.start, INDEX(currentRow,_xlpm.cols),\n         _xlpm.finish, INDEX(currentRow, 1+_xlpm.cols),\n         SUM(24*(_xlpm.finish-_xlpm.start))),\n      \"\")","v":""}]
[null,"","09:00:00","12:00:00",null,null,"09:00:00","12:00:00",null,null,null,null,null,null,null,null,{"$f":" IF(_xlfn.SINGLE(ClientHdr)=\"\",\n      _xlfn.LET(\n         _xlpm.cols, _xlfn.SEQUENCE(1,7,2,2),\n         _xlpm.start, INDEX(currentRow,_xlpm.cols),\n         _xlpm.finish, INDEX(currentRow, 1+_xlpm.cols),\n         SUM(24*(_xlpm.finish-_xlpm.start))),\n      \"\")","v":6}]
[null,"Client 55",null,null,null,null,null,null,null,null,null,null,null,null,null,null,{"$f":" IF(_xlfn.SINGLE(ClientHdr)=\"\",\n      _xlfn.LET(\n         _xlpm.cols, _xlfn.SEQUENCE(1,7,2,2),\n         _xlpm.start, INDEX(currentRow,_xlpm.cols),\n         _xlpm.finish, INDEX(currentRow, 1+_xlpm.cols),\n         SUM(24*(_xlpm.finish-_xlpm.start))),\n      \"\")","v":""}]
[null,"",null,null,"14:00:00","16:00:00","12:15:00","15:00:00",null,null,null,null,null,null,null,null,{"$f":" IF(_xlfn.SINGLE(ClientHdr)=\"\",\n      _xlfn.LET(\n         _xlpm.cols, _xlfn.SEQUENCE(1,7,2,2),\n         _xlpm.start, INDEX(currentRow,_xlpm.cols),\n         _xlpm.finish, INDEX(currentRow, 1+_xlpm.cols),\n         SUM(24*(_xlpm.finish-_xlpm.start))),\n      \"\")","v":4.7500000000000311}]
[null,"Client 56",null,null,null,null,null,null,null,null,null,null,null,null,null,null,{"$f":" IF(_xlfn.SINGLE(ClientHdr)=\"\",\n      _xlfn.LET(\n         _xlpm.cols, _xlfn.SEQUENCE(1,7,2,2),\n         _xlpm.start, INDEX(currentRow,_xlpm.cols),\n         _xlpm.finish, INDEX(currentRow, 1+_xlpm.cols),\n         SUM(24*(_xlpm.finish-_xlpm.start))),\n      \"\")","v":""}]
[null,"",null,null,"09:00:00","13:30:00",null,null,null,null,"09:00:00","13:30:00","09:00:00","13:00:00",null,null,{"$f":" IF(_xlfn.SINGLE(ClientHdr)=\"\",\n      _xlfn.LET(\n         _xlpm.cols, _xlfn.SEQUENCE(1,7,2,2),\n         _xlpm.start, INDEX(currentRow,_xlpm.cols),\n         _xlpm.finish, INDEX(currentRow, 1+_xlpm.cols),\n         SUM(24*(_xlpm.finish-_xlpm.start))),\n      \"\")","v":13.000000000000007}]
[null,"Client 57",null,null,null,null,null,null,null,null,null,null,null,null,null,null,{"$f":" IF(_xlfn.SINGLE(ClientHdr)=\"\",\n      _xlfn.LET(\n         _xlpm.cols, _xlfn.SEQUENCE(1,7,2,2),\n         _xlpm.start, INDEX(currentRow,_xlpm.cols),\n         _xlpm.finish, INDEX(currentRow, 1+_xlpm.cols),\n         SUM(24*(_xlpm.finish-_xlpm.start))),\n      \"\")","v":""}]
[null,"","10:00:00","12:00:00","10:00:00","12:00:00","10:00:00","12:00:00","10:00:00","12:00:00","10:00:00","12:00:00",null,null,null,null,{"$f":" IF(_xlfn.SINGLE(ClientHdr)=\"\",\n      _xlfn.LET(\n         _xlpm.cols, _xlfn.SEQUENCE(1,7,2,2),\n         _xlpm.start, INDEX(currentRow,_xlpm.cols),\n         _xlpm.finish, INDEX(currentRow, 1+_xlpm.cols),\n         SUM(24*(_xlpm.finish-_xlpm.start))),\n      \"\")","v":10.000000000000078}]
[null,"Client 58",null,null,null,null,null,null,null,null,null,null,null,null,null,null,{"$f":" IF(_xlfn.SINGLE(ClientHdr)=\"\",\n      _xlfn.LET(\n         _xlpm.cols, _xlfn.SEQUENCE(1,7,2,2),\n         _xlpm.start, INDEX(currentRow,_xlpm.cols),\n         _xlpm.finish, INDEX(currentRow, 1+_xlpm.cols),\n         SUM(24*(_xlpm.finish-_xlpm.start))),\n      \"\")","v":""}]
[null,"","15:00:00","18:00:00","15:00:00","18:00:00","15:00:00","18:00:00","15:00:00","18:00:00","15:00:00","18:00:00","10:00:00","13:00:00","10:00:00","13:00:00",{"$f":" IF(_xlfn.SINGLE(ClientHdr)=\"\",\n      _xlfn.LET(\n         _xlpm.cols, _xlfn.SEQUENCE(1,7,2,2),\n         _xlpm.start, INDEX(currentRow,_xlpm.cols),\n         _xlpm.finish, INDEX(currentRow, 1+_xlpm.cols),\n         SUM(24*(_xlpm.finish-_xlpm.start))),\n      \"\")","v":21.000000000000043}]
[null,"Client 59",null,null,null,null,null,null,null,null,null,null,null,null,null,null,{"$f":" IF(_xlfn.SINGLE(ClientHdr)=\"\",\n      _xlfn.LET(\n         _xlpm.cols, _xlfn.SEQUENCE(1,7,2,2),\n         _xlpm.start, INDEX(currentRow,_xlpm.cols),\n         _xlpm.finish, INDEX(currentRow, 1+_xlpm.cols),\n         SUM(24*(_xlpm.finish-_xlpm.start))),\n      \"\")","v":""}]
[null,"","14:45:00","17:00:00",null,null,null,null,null,null,null,null,null,null,null,null,{"$f":" IF(_xlfn.SINGLE(ClientHdr)=\"\",\n      _xlfn.LET(\n         _xlpm.cols, _xlfn.SEQUENCE(1,7,2,2),\n         _xlpm.start, INDEX(currentRow,_xlpm.cols),\n         _xlpm.finish, INDEX(currentRow, 1+_xlpm.cols),\n         SUM(24*(_xlpm.finish-_xlpm.start))),\n      \"\")","v":2.250000000000024}]
[null,"Client 60",null,null,null,null,null,null,null,null,null,null,null,null,null,null,{"$f":" IF(_xlfn.SINGLE(ClientHdr)=\"\",\n      _xlfn.LET(\n         _xlpm.cols, _xlfn.SEQUENCE(1,7,2,2),\n         _xlpm.start, INDEX(currentRow,_xlpm.cols),\n         _xlpm.finish, INDEX(currentRow, 1+_xlpm.cols),\n         SUM(24*(_xlpm.finish-_xlpm.start))),\n      \"\")","v":""}]
[null,"","13:00:00","16:00:00","09:15:00","12:15:00","13:00:00","17:00:00","13:00:00","16:00:00","09:15:00","12:15:00",null,null,null,null,{"$f":" IF(_xlfn.SINGLE(ClientHdr)=\"\",\n      _xlfn.LET(\n         _xlpm.cols, _xlfn.SEQUENCE(1,7,2,2),\n         _xlpm.start, INDEX(currentRow,_xlpm.cols),\n         _xlpm.finish, INDEX(currentRow, 1+_xlpm.cols),\n         SUM(24*(_xlpm.finish-_xlpm.start))),\n      \"\")","v":16.000000000000007}]
[null,"Client 61",null,null,null,null,null,null,null,null,null,null,null,null,null,null,{"$f":" IF(_xlfn.SINGLE(ClientHdr)=\"\",\n      _xlfn.LET(\n         _xlpm.cols, _xlfn.SEQUENCE(1,7,2,2),\n         _xlpm.start, INDEX(currentRow,_xlpm.cols),\n         _xlpm.finish, INDEX(currentRow, 1+_xlpm.cols),\n         SUM(24*(_xlpm.finish-_xlpm.start))),\n      \"\")","v":""}]
[null,"",null,null,null,null,"09:30:00","11:30:00","13:00:00","16:00:00",null,null,null,null,null,null,{"$f":" IF(_xlfn.SINGLE(ClientHdr)=\"\",\n      _xlfn.LET(\n         _xlpm.cols, _xlfn.SEQUENCE(1,7,2,2),\n         _xlpm.start, INDEX(currentRow,_xlpm.cols),\n         _xlpm.finish, INDEX(currentRow, 1+_xlpm.cols),\n         SUM(24*(_xlpm.finish-_xlpm.start))),\n      \"\")","v":4.9999999999999929}]
[null,"Client 62",null,null,null,null,null,null,null,null,null,null,null,null,null,null,{"$f":" IF(_xlfn.SINGLE(ClientHdr)=\"\",\n      _xlfn.LET(\n         _xlpm.cols, _xlfn.SEQUENCE(1,7,2,2),\n         _xlpm.start, INDEX(currentRow,_xlpm.cols),\n         _xlpm.finish, INDEX(currentRow, 1+_xlpm.cols),\n         SUM(24*(_xlpm.finish-_xlpm.start))),\n      \"\")","v":""}]
[null,"","13:00:00","15:00:00","13:00:00","15:00:00",null,null,null,null,null,null,null,null,null,null,{"$f":" IF(_xlfn.SINGLE(ClientHdr)=\"\",\n      _xlfn.LET(\n         _xlpm.cols, _xlfn.SEQUENCE(1,7,2,2),\n         _xlpm.start, INDEX(currentRow,_xlpm.cols),\n         _xlpm.finish, INDEX(currentRow, 1+_xlpm.cols),\n         SUM(24*(_xlpm.finish-_xlpm.start))),\n      \"\")","v":3.9999999999999858}]
[null,"Client 63",null,null,null,null,null,null,null,null,null,null,null,null,null,null,{"$f":" IF(_xlfn.SINGLE(ClientHdr)=\"\",\n      _xlfn.LET(\n         _xlpm.cols, _xlfn.SEQUENCE(1,7,2,2),\n         _xlpm.start, INDEX(currentRow,_xlpm.cols),\n         _xlpm.finish, INDEX(currentRow, 1+_xlpm.cols),\n         SUM(24*(_xlpm.finish-_xlpm.start))),\n      \"\")","v":""}]
[null,"","14:00:00","16:00:00",null,null,"14:00:00","16:00:00",null,null,"14:00:00","16:00:00",null,null,null,null,{"$f":" IF(_xlfn.SINGLE(ClientHdr)=\"\",\n      _xlfn.LET(\n         _xlpm.cols, _xlfn.SEQUENCE(1,7,2,2),\n         _xlpm.start, INDEX(currentRow,_xlpm.cols),\n         _xlpm.finish, INDEX(currentRow, 1+_xlpm.cols),\n         SUM(24*(_xlpm.finish-_xlpm.start))),\n      \"\")","v":6.0000000000000426}]
[null,"Client 64",null,null,null,null,null,null,null,null,null,null,null,null,null,null,{"$f":" IF(_xlfn.SINGLE(ClientHdr)=\"\",\n      _xlfn.LET(\n         _xlpm.cols, _xlfn.SEQUENCE(1,7,2,2),\n         _xlpm.start, INDEX(currentRow,_xlpm.cols),\n         _xlpm.finish, INDEX(currentRow, 1+_xlpm.cols),\n         SUM(24*(_xlpm.finish-_xlpm.start))),\n      \"\")","v":""}]
[null,"","09:30:00","13:30:00",null,null,null,null,"10:00:00","13:00:00","08:00:00","13:00:00","12:30:00","15:30:00",null,null,{"$f":" IF(_xlfn.SINGLE(ClientHdr)=\"\",\n      _xlfn.LET(\n         _xlpm.cols, _xlfn.SEQUENCE(1,7,2,2),\n         _xlpm.start, INDEX(currentRow,_xlpm.cols),\n         _xlpm.finish, INDEX(currentRow, 1+_xlpm.cols),\n         SUM(24*(_xlpm.finish-_xlpm.start))),\n      \"\")","v":15.000000000000048}]
[null,"Client 65",null,null,null,null,null,null,null,null,null,null,null,null,null,null,{"$f":" IF(_xlfn.SINGLE(ClientHdr)=\"\",\n      _xlfn.LET(\n         _xlpm.cols, _xlfn.SEQUENCE(1,7,2,2),\n         _xlpm.start, INDEX(currentRow,_xlpm.cols),\n         _xlpm.finish, INDEX(currentRow, 1+_xlpm.cols),\n         SUM(24*(_xlpm.finish-_xlpm.start))),\n      \"\")","v":""}]
[null,"",null,null,"10:00:00","12:00:00",null,null,"11:00:00","13:00:00",null,null,null,null,null,null,{"$f":" IF(_xlfn.SINGLE(ClientHdr)=\"\",\n      _xlfn.LET(\n         _xlpm.cols, _xlfn.SEQUENCE(1,7,2,2),\n         _xlpm.start, INDEX(currentRow,_xlpm.cols),\n         _xlpm.finish, INDEX(currentRow, 1+_xlpm.cols),\n         SUM(24*(_xlpm.finish-_xlpm.start))),\n      \"\")","v":4.0000000000000311}]
[null,"Client 66",null,null,null,null,null,null,null,null,null,null,null,null,null,null,{"$f":" IF(_xlfn.SINGLE(ClientHdr)=\"\",\n      _xlfn.LET(\n         _xlpm.cols, _xlfn.SEQUENCE(1,7,2,2),\n         _xlpm.start, INDEX(currentRow,_xlpm.cols),\n         _xlpm.finish, INDEX(currentRow, 1+_xlpm.cols),\n         SUM(24*(_xlpm.finish-_xlpm.start))),\n      \"\")","v":""}]
[null,"","14:00:00","16:00:00","15:00:00","17:00:00",null,null,"16:00:00","18:00:00","16:00:00","18:00:00","10:00:00","13:00:00",null,null,{"$f":" IF(_xlfn.SINGLE(ClientHdr)=\"\",\n      _xlfn.LET(\n         _xlpm.cols, _xlfn.SEQUENCE(1,7,2,2),\n         _xlpm.start, INDEX(currentRow,_xlpm.cols),\n         _xlpm.finish, INDEX(currentRow, 1+_xlpm.cols),\n         SUM(24*(_xlpm.finish-_xlpm.start))),\n      \"\")","v":11.000000000000041}]
[null,"Client 67",null,null,null,null,null,null,null,null,null,null,null,null,null,null,{"$f":" IF(_xlfn.SINGLE(ClientHdr)=\"\",\n      _xlfn.LET(\n         _xlpm.cols, _xlfn.SEQUENCE(1,7,2,2),\n         _xlpm.start, INDEX(currentRow,_xlpm.cols),\n         _xlpm.finish, INDEX(currentRow, 1+_xlpm.cols),\n         SUM(24*(_xlpm.finish-_xlpm.start))),\n      \"\")","v":""}]
[null,"","10:30:00","13:30:00","09:30:00","12:30:00","09:30:00","12:30:00","09:30:00","12:30:00","10:30:00","13:30:00","09:30:00","12:30:00",null,null,{"$f":" IF(_xlfn.SINGLE(ClientHdr)=\"\",\n      _xlfn.LET(\n         _xlpm.cols, _xlfn.SEQUENCE(1,7,2,2),\n         _xlpm.start, INDEX(currentRow,_xlpm.cols),\n         _xlpm.finish, INDEX(currentRow, 1+_xlpm.cols),\n         SUM(24*(_xlpm.finish-_xlpm.start))),\n      \"\")","v":18.000000000000007}]
[null,"Client 68",null,null,null,null,null,null,null,null,null,null,null,null,null,null,{"$f":" IF(_xlfn.SINGLE(ClientHdr)=\"\",\n      _xlfn.LET(\n         _xlpm.cols, _xlfn.SEQUENCE(1,7,2,2),\n         _xlpm.start, INDEX(currentRow,_xlpm.cols),\n         _xlpm.finish, INDEX(currentRow, 1+_xlpm.cols),\n         SUM(24*(_xlpm.finish-_xlpm.start))),\n      \"\")","v":""}]
[null,"",null,null,"09:00:00","14:00:00",null,null,"09:00:00","14:00:00",null,null,null,null,null,null,{"$f":" IF(_xlfn.SINGLE(ClientHdr)=\"\",\n      _xlfn.LET(\n         _xlpm.cols, _xlfn.SEQUENCE(1,7,2,2),\n         _xlpm.start, INDEX(currentRow,_xlpm.cols),\n         _xlpm.finish, INDEX(currentRow, 1+_xlpm.cols),\n         SUM(24*(_xlpm.finish-_xlpm.start))),\n      \"\")","v":9.9999999999999858}]
[null,"Client 69",null,null,null,null,null,null,null,null,null,null,null,null,null,null,{"$f":" IF(_xlfn.SINGLE(ClientHdr)=\"\",\n      _xlfn.LET(\n         _xlpm.cols, _xlfn.SEQUENCE(1,7,2,2),\n         _xlpm.start, INDEX(currentRow,_xlpm.cols),\n         _xlpm.finish, INDEX(currentRow, 1+_xlpm.cols),\n         SUM(24*(_xlpm.finish-_xlpm.start))),\n      \"\")","v":""}]
[null,"","10:00:00","13:30:00","10:00:00","13:00:00","10:00:00","13:00:00","10:00:00","13:00:00","12:00:00","17:00:00","11:00:00","13:00:00",null,null,{"$f":" IF(_xlfn.SINGLE(ClientHdr)=\"\",\n      _xlfn.LET(\n         _xlpm.cols, _xlfn.SEQUENCE(1,7,2,2),\n         _xlpm.start, INDEX(currentRow,_xlpm.cols),\n         _xlpm.finish, INDEX(currentRow, 1+_xlpm.cols),\n         SUM(24*(_xlpm.finish-_xlpm.start))),\n      \"\")","v":19.500000000000114}]
[null,"Client 70",null,null,null,null,null,null,null,null,null,null,null,null,null,null,{"$f":" IF(_xlfn.SINGLE(ClientHdr)=\"\",\n      _xlfn.LET(\n         _xlpm.cols, _xlfn.SEQUENCE(1,7,2,2),\n         _xlpm.start, INDEX(currentRow,_xlpm.cols),\n         _xlpm.finish, INDEX(currentRow, 1+_xlpm.cols),\n         SUM(24*(_xlpm.finish-_xlpm.start))),\n      \"\")","v":""}]
[null,"",null,null,null,null,null,null,null,null,null,null,null,null,null,null,{"$f":" IF(_xlfn.SINGLE(ClientHdr)=\"\",\n      _xlfn.LET(\n         _xlpm.cols, _xlfn.SEQUENCE(1,7,2,2),\n         _xlpm.start, INDEX(currentRow,_xlpm.cols),\n         _xlpm.finish, INDEX(currentRow, 1+_xlpm.cols),\n         SUM(24*(_xlpm.finish-_xlpm.start))),\n      \"\")","v":0}]
[null,"Client 71",null,null,null,null,null,null,null,null,null,null,null,null,null,null,{"$f":" IF(_xlfn.SINGLE(ClientHdr)=\"\",\n      _xlfn.LET(\n         _xlpm.cols, _xlfn.SEQUENCE(1,7,2,2),\n         _xlpm.start, INDEX(currentRow,_xlpm.cols),\n         _xlpm.finish, INDEX(currentRow, 1+_xlpm.cols),\n         SUM(24*(_xlpm.finish-_xlpm.start))),\n      \"\")","v":""}]
[null,"",null,null,null,null,null,null,null,null,null,null,null,null,null,null,{"$f":" IF(_xlfn.SINGLE(ClientHdr)=\"\",\n      _xlfn.LET(\n         _xlpm.cols, _xlfn.SEQUENCE(1,7,2,2),\n         _xlpm.start, INDEX(currentRow,_xlpm.cols),\n         _xlpm.finish, INDEX(currentRow, 1+_xlpm.cols),\n         SUM(24*(_xlpm.finish-_xlpm.start))),\n      \"\")","v":0}]
[null,"Client 72",null,null,null,null,null,null,null,null,null,null,null,null,null,null,{"$f":" IF(_xlfn.SINGLE(ClientHdr)=\"\",\n      _xlfn.LET(\n         _xlpm.cols, _xlfn.SEQUENCE(1,7,2,2),\n         _xlpm.start, INDEX(currentRow,_xlpm.cols),\n         _xlpm.finish, INDEX(currentRow, 1+_xlpm.cols),\n         SUM(24*(_xlpm.finish-_xlpm.start))),\n      \"\")","v":""}]
[null,"",null,null,null,null,null,null,null,null,null,null,null,null,null,null,{"$f":" IF(_xlfn.SINGLE(ClientHdr)=\"\",\n      _xlfn.LET(\n         _xlpm.cols, _xlfn.SEQUENCE(1,7,2,2),\n         _xlpm.start, INDEX(currentRow,_xlpm.cols),\n         _xlpm.finish, INDEX(currentRow, 1+_xlpm.cols),\n         SUM(24*(_xlpm.finish-_xlpm.start))),\n      \"\")","v":0}]
[null,"Client 73",null,null,null,null,null,null,null,null,null,null,null,null,null,null,{"$f":" IF(_xlfn.SINGLE(ClientHdr)=\"\",\n      _xlfn.LET(\n         _xlpm.cols, _xlfn.SEQUENCE(1,7,2,2),\n         _xlpm.start, INDEX(currentRow,_xlpm.cols),\n         _xlpm.finish, INDEX(currentRow, 1+_xlpm.cols),\n         SUM(24*(_xlpm.finish-_xlpm.start))),\n      \"\")","v":""}]
[null,"",null,null,null,null,null,null,null,null,null,null,null,null,null,null,{"$f":" IF(_xlfn.SINGLE(ClientHdr)=\"\",\n      _xlfn.LET(\n         _xlpm.cols, _xlfn.SEQUENCE(1,7,2,2),\n         _xlpm.start, INDEX(currentRow,_xlpm.cols),\n         _xlpm.finish, INDEX(currentRow, 1+_xlpm.cols),\n         SUM(24*(_xlpm.finish-_xlpm.start))),\n      \"\")","v":0}]
[null,"Client 74",null,null,null,null,null,null,null,null,null,null,null,null,null,null,{"$f":" IF(_xlfn.SINGLE(ClientHdr)=\"\",\n      _xlfn.LET(\n         _xlpm.cols, _xlfn.SEQUENCE(1,7,2,2),\n         _xlpm.start, INDEX(currentRow,_xlpm.cols),\n         _xlpm.finish, INDEX(currentRow, 1+_xlpm.cols),\n         SUM(24*(_xlpm.finish-_xlpm.start))),\n      \"\")","v":""}]
[null,"",null,null,null,null,null,null,null,null,null,null,null,null,null,null,{"$f":" IF(_xlfn.SINGLE(ClientHdr)=\"\",\n      _xlfn.LET(\n         _xlpm.cols, _xlfn.SEQUENCE(1,7,2,2),\n         _xlpm.start, INDEX(currentRow,_xlpm.cols),\n         _xlpm.finish, INDEX(currentRow, 1+_xlpm.cols),\n         SUM(24*(_xlpm.finish-_xlpm.start))),\n      \"\")","v":0}]
[null,"Client 75",null,null,null,null,null,null,null,null,null,null,null,null,null,null,{"$f":" IF(_xlfn.SINGLE(ClientHdr)=\"\",\n      _xlfn.LET(\n         _xlpm.cols, _xlfn.SEQUENCE(1,7,2,2),\n         _xlpm.start, INDEX(currentRow,_xlpm.cols),\n         _xlpm.finish, INDEX(currentRow, 1+_xlpm.cols),\n         SUM(24*(_xlpm.finish-_xlpm.start))),\n      \"\")","v":""}]
[null,"",null,null,null,null,null,null,null,null,null,null,null,null,null,null,{"$f":" IF(_xlfn.SINGLE(ClientHdr)=\"\",\n      _xlfn.LET(\n         _xlpm.cols, _xlfn.SEQUENCE(1,7,2,2),\n         _xlpm.start, INDEX(currentRow,_xlpm.cols),\n         _xlpm.finish, INDEX(currentRow, 1+_xlpm.cols),\n         SUM(24*(_xlpm.finish-_xlpm.start))),\n      \"\")","v":0}]

{"sheet":"Shift Frequencies","index":1,"n_rows":146,"n_cols":46,"rows_kept":146,"cut":false,"hidden":false,"merged":[[4,41,4,42],[4,43,4,44],[4,45,4,46],[0,33,1,46],[2,41,2,42],[2,43,2,44],[2,45,2,46],[3,35,3,36],[3,37,3,38],[3,39,3,40],[3,41,3,42],[3,43,3,44],[3,45,3,46],[4,35,4,36],[4,37,4,38],[4,39,4,40],[0,17,1,31],[2,33,2,34],[2,35,2,36],[2,37,2,38],[2,39,2,40],[2,28,2,29],[2,30,2,31],[2,26,2,27],[19,28,20,29],[19,30,20,31],[11,18,12,19],[11,20,12,21],[11,22,12,23],[11,24,12,25],[11,26,12,27],[11,28,12,29],[19,18,20,19],[19,20,20,21],[19,22,20,23],[19,24,20,25],[19,26,20,27],[11,30,12,31],[17,18,18,19],[17,20,18,21],[17,22,18,23],[17,24,18,25],[17,26,18,27],[17,28,18,29],[17,30,18,31],[13,28,14,29],[13,30,14,31],[15,18,16,19],[15,20,16,21],[15,22,16,23],[15,24,16,25],[15,26,16,27],[15,28,16,29],[15,30,16,31],[13,18,14,19],[13,20,14,21],[13,22,14,23],[13,24,14,25],[13,26,14,27],[7,28,8,29],[7,30,8,31],[9,18,10,19],[9,20,10,21],[9,22,10,23],[9,24,10,25],[9,26,10,27],[9,28,10,29],[9,30,10,31],[7,18,8,19],[7,20,8,21],[7,22,8,23],[7,24,8,25],[7,26,8,27],[3,26,4,27],[3,28,4,29],[3,30,4,31],[5,18,6,19],[5,20,6,21],[5,22,6,23],[5,24,6,25],[5,26,6,27],[5,28,6,29],[5,30,6,31],[2,11,2,12],[3,18,4,19],[3,20,4,21],[3,22,4,23],[3,24,4,25],[2,13,2,14],[2,18,2,19],[2,20,2,21],[2,22,2,23],[2,24,2,25],[2,1,2,2],[2,3,2,4],[2,5,2,6],[2,7,2,8],[2,9,2,10]]}
[null,null,null,null,null,null,null,null,null,null,null,null,null,null,null,null,null,"CQ Shift Frequencies",null,null,null,null,null,null,null,null,null,null,null,null,null,null,null,"Custom Time Frequency"]
[]
[null,"Monday",null,"Tuesday",null,"Wednesday",null,"Thursday",null,"Friday",null,"Saturday",null,"Sunday",null,null,null,null,"Mon",null,"Tue",null,"Wed",null,"Thu",null,"Fri",null,"Sat",null,"Sun",null,null,"Mon",null,"Tue",null,"Wed",null,"Thu",null,"Fri",null,"Sat",null,"Sun"]
["Time",{"$f":"Roster!C6","v":"00:00:00"},{"$f":"Roster!D6","v":"00:00:00"},{"$f":"Roster!E6","v":"00:00:00"},{"$f":"Roster!F6","v":"00:00:00"},{"$f":"Roster!G6","v":"00:00:00"},{"$f":"Roster!H6","v":"00:00:00"},{"$f":"Roster!I6","v":"09:00:00"},{"$f":"Roster!J6","v":"12:00:00"},{"$f":"Roster!K6","v":"09:00:00"},{"$f":"Roster!L6","v":"12:00:00"},{"$f":"Roster!M6","v":"00:00:00"},{"$f":"Roster!N6","v":"00:00:00"},{"$f":"Roster!O6","v":"00:00:00"},{"$f":"Roster!P6","v":"00:00:00"},"08:00:00",null,"08:00:00",{"$f":"COUNTIFS(B$4:B$171,\"<=\"&$R4,C$4:C$171,\">=\"&$R5)","v":2},null,{"$f":"COUNTIFS(D$4:D$171,\"<=\"&$R4,E$4:E$171,\">=\"&$R5)","v":3},null,{"$f":"COUNTIFS(F$4:F$171,\"<=\"&$R4,G$4:G$171,\">=\"&$R5)","v":3},null,{"$f":"COUNTIFS(H$4:H$171,\"<=\"&$R4,I$4:I$171,\">=\"&$R5)","v":3},null,{"$f":"COUNTIFS(J$4:J$171,\"<=\"&$R4,K$4:K$171,\">=\"&$R5)","v":3},null,{"$f":"COUNTIFS(L$4:L$171,\"<=\"&$R4,M$4:M$171,\">=\"&$R5)","v":2},null,{"$f":"COUNTIFS(N$4:N$171,\"<=\"&$R4,O$4:O$171,\">=\"&$R5)","v":1},null,null,"06:00:00",null,"07:00:00"]
[null,null,null,null,null,null,null,null,null,null,null,null,null,null,null,"08:30:00",null,"09:00:00",null,null,null,null,null,null,null,null,null,null,null,null,null,null,null,"23:00:00",null,"14:00:00"]
[null,{"$f":"Roster!C8","v":"00:00:00"},{"$f":"Roster!D8","v":"00:00:00"},{"$f":"Roster!E8","v":"00:00:00"},{"$f":"Roster!F8","v":"00:00:00"},{"$f":"Roster!G8","v":"00:00:00"},{"$f":"Roster!H8","v":"00:00:00"},{"$f":"Roster!I8","v":"00:00:00"},{"$f":"Roster!J8","v":"00:00:00"},{"$f":"Roster!K8","v":"00:00:00"},{"$f":"Roster!L8","v":"00:00:00"},{"$f":"Roster!M8","v":"00:00:00"},{"$f":"Roster!N8","v":"00:00:00"},{"$f":"Roster!O8","v":"00:00:00"},{"$f":"Roster!P8","v":"00:00:00"},"09:00:00",null,"09:00:00",{"$f":"COUNTIFS(B$4:B$171,\"<=\"&$R6,C$4:C$171,\">=\"&$R7)","v":1},null,{"$f":"COUNTIFS(D$4:D$171,\"<=\"&$R6,E$4:E$171,\">=\"&$R7)","v":1},null,{"$f":"COUNTIFS(F$4:F$171,\"<=\"&$R6,G$4:G$171,\">=\"&$R7)","v":2},null,{"$f":"COUNTIFS(H$4:H$171,\"<=\"&$R6,I$4:I$171,\">=\"&$R7)","v":2},null,{"$f":"COUNTIFS(J$4:J$171,\"<=\"&$R6,K$4:K$171,\">=\"&$R7)","v":3},null,{"$f":"COUNTIFS(L$4:L$171,\"<=\"&$R6,M$4:M$171,\">=\"&$R7)","v":2},null,{"$f":"COUNTIFS(N$4:N$171,\"<=\"&$R6,O$4:O$171,\">=\"&$R7)","v":3},null,null,{"$f":"COUNTIFS(B$4:B$171,\">=\"&AH4,C$4:C$171,\"<=\"&$AH5)","v":31},null,{"$f":"COUNTIFS(D$4:D$171,\">=\"&AJ4,E$4:E$171,\"<=\"&$AH5)","v":34},null,{"$f":"COUNTIFS(F$4:F$171,\">=\"&AL4,G$4:G$171,\"<=\"&$AH5)","v":0},null,{"$f":"COUNTIFS(H$4:H$171,\">=\"&AN4,I$4:I$171,\"<=\"&$AH5)","v":0},null,{"$f":"COUNTIFS(J$4:J$171,\">=\"&AP4,K$4:K$171,\"<=\"&$AH5)","v":0},null,{"$f":"COUNTIFS(L$4:L$171,\">=\"&AR4,M$4:M$171,\"<=\"&$AH5)","v":0},null,{"$f":"COUNTIFS(N$4:N$171,\">=\"&AT4,O$4:O$171,\"<=\"&$AH5)","v":0}]
[null,null,null,null,null,null,null,null,null,null,null,null,null,null,null,"09:30:00",null,"10:00:00"]
[null,{"$f":"Roster!C10","v":"00:00:00"},{"$f":"Roster!D10","v":"00:00:00"},{"$f":"Roster!E10","v":"00:00:00"},{"$f":"Roster!F10","v":"00:00:00"},{"$f":"Roster!G10","v":"09:00:00"},{"$f":"Roster!H10","v":"15:00:00"},{"$f":"Roster!I10","v":"00:00:00"},{"$f":"Roster!J10","v":"00:00:00"},{"$f":"Roster!K10","v":"00:00:00"},{"$f":"Roster!L10","v":"00:00:00"},{"$f":"Roster!M10","v":"00:00:00"},{"$f":"Roster!N10","v":"00:00:00"},{"$f":"Roster!O10","v":"00:00:00"},{"$f":"Roster!P10","v":"00:00:00"},"10:00:00",null,"10:00:00",{"$f":"COUNTIFS(B$4:B$171,\"<=\"&$R8,C$4:C$171,\">=\"&$R9)","v":10},null,{"$f":"COUNTIFS(D$4:D$171,\"<=\"&$R8,E$4:E$171,\">=\"&$R9)","v":15},null,{"$f":"COUNTIFS(F$4:F$171,\"<=\"&$R8,G$4:G$171,\">=\"&$R9)","v":14},null,{"$f":"COUNTIFS(H$4:H$171,\"<=\"&$R8,I$4:I$171,\">=\"&$R9)","v":16},null,{"$f":"COUNTIFS(J$4:J$171,\"<=\"&$R8,K$4:K$171,\">=\"&$R9)","v":14},null,{"$f":"COUNTIFS(L$4:L$171,\"<=\"&$R8,M$4:M$171,\">=\"&$R9)","v":10},null,{"$f":"COUNTIFS(N$4:N$171,\"<=\"&$R8,O$4:O$171,\">=\"&$R9)","v":3}]
[null,null,null,null,null,null,null,null,null,null,null,null,null,null,null,"10:30:00",null,"11:00:00"]
[null,{"$f":"Roster!C12","v":"00:00:00"},{"$f":"Roster!D12","v":"00:00:00"},{"$f":"Roster!E12","v":"09:00:00"},{"$f":"Roster!F12","v":"14:00:00"},{"$f":"Roster!G12","v":"09:00:00"},{"$f":"Roster!H12","v":"14:00:00"},{"$f":"Roster!I12","v":"09:00:00"},{"$f":"Roster!J12","v":"14:00:00"},{"$f":"Roster!K12","v":"09:00:00"},{"$f":"Roster!L12","v":"14:00:00"},{"$f":"Roster!M12","v":"00:00:00"},{"$f":"Roster!N12","v":"00:00:00"},{"$f":"Roster!O12","v":"00:00:00"},{"$f":"Roster!P12","v":"00:00:00"},"11:00:00",null,"11:00:00",{"$f":"COUNTIFS(B$4:B$171,\"<=\"&$R10,C$4:C$171,\">=\"&$R11)","v":9},null,{"$f":"COUNTIFS(D$4:D$171,\"<=\"&$R10,E$4:E$171,\">=\"&$R11)","v":15},null,{"$f":"COUNTIFS(F$4:F$171,\"<=\"&$R10,G$4:G$171,\">=\"&$R11)","v":13},null,{"$f":"COUNTIFS(H$4:H$171,\"<=\"&$R10,I$4:I$171,\">=\"&$R11)","v":15},null,{"$f":"COUNTIFS(J$4:J$171,\"<=\"&$R10,K$4:K$171,\">=\"&$R11)","v":14},null,{"$f":"COUNTIFS(L$4:L$171,\"<=\"&$R10,M$4:M$171,\">=\"&$R11)","v":9},null,{"$f":"COUNTIFS(N$4:N$171,\"<=\"&$R10,O$4:O$171,\">=\"&$R11)","v":3}]
[null,null,null,null,null,null,null,null,null,null,null,null,null,null,null,"11:30:00",null,"12:00:00"]
[null,{"$f":"Roster!C14","v":"00:00:00"},{"$f":"Roster!D14","v":"00:00:00"},{"$f":"Roster!E14","v":"09:00:00"},{"$f":"Roster!F14","v":"14:00:00"},{"$f":"Roster!G14","v":"00:00:00"},{"$f":"Roster!H14","v":"00:00:00"},{"$f":"Roster!I14","v":"09:00:00"},{"$f":"Roster!J14","v":"13:30:00"},{"$f":"Roster!K14","v":"09:00:00"},{"$f":"Roster!L14","v":"14:00:00"},{"$f":"Roster!M14","v":"00:00:00"},{"$f":"Roster!N14","v":"00:00:00"},{"$f":"Roster!O14","v":"00:00:00"},{"$f":"Roster!P14","v":"00:00:00"},"12:00:00",null,"12:00:00",{"$f":"COUNTIFS(B$4:B$171,\"<=\"&$R12,C$4:C$171,\">=\"&$R13)","v":6},null,{"$f":"COUNTIFS(D$4:D$171,\"<=\"&$R12,E$4:E$171,\">=\"&$R13)","v":10},null,{"$f":"COUNTIFS(F$4:F$171,\"<=\"&$R12,G$4:G$171,\">=\"&$R13)","v":8},null,{"$f":"COUNTIFS(H$4:H$171,\"<=\"&$R12,I$4:I$171,\">=\"&$R13)","v":13},null,{"$f":"COUNTIFS(J$4:J$171,\"<=\"&$R12,K$4:K$171,\">=\"&$R13)","v":11},null,{"$f":"COUNTIFS(L$4:L$171,\"<=\"&$R12,M$4:M$171,\">=\"&$R13)","v":9},null,{"$f":"COUNTIFS(N$4:N$171,\"<=\"&$R12,O$4:O$171,\">=\"&$R13)","v":3}]
[null,null,null,null,null,null,null,null,null,null,null,null,null,null,null,"12:30:00",null,"13:00:00"]
[null,{"$f":"Roster!C16","v":"12:00:00"},{"$f":"Roster!D16","v":"15:00:00"},{"$f":"Roster!E16","v":"12:00:00"},{"$f":"Roster!F16","v":"15:00:00"},{"$f":"Roster!G16","v":"00:00:00"},{"$f":"Roster!H16","v":"00:00:00"},{"$f":"Roster!I16","v":"12:00:00"},{"$f":"Roster!J16","v":"15:00:00"},{"$f":"Roster!K16","v":"12:00:00"},{"$f":"Roster!L16","v":"15:00:00"},{"$f":"Roster!M16","v":"00:00:00"},{"$f":"Roster!N16","v":"00:00:00"},{"$f":"Roster!O16","v":"00:00:00"},{"$f":"Roster!P16","v":"00:00:00"},"13:00:00",null,"13:00:00",{"$f":"COUNTIFS(B$4:B$171,\"<=\"&$R14,C$4:C$171,\">=\"&$R15)","v":6},null,{"$f":"COUNTIFS(D$4:D$171,\"<=\"&$R14,E$4:E$171,\">=\"&$R15)","v":10},null,{"$f":"COUNTIFS(F$4:F$171,\"<=\"&$R14,G$4:G$171,\">=\"&$R15)","v":9},null,{"$f":"COUNTIFS(H$4:H$171,\"<=\"&$R14,I$4:I$171,\">=\"&$R15)","v":11},null,{"$f":"COUNTIFS(J$4:J$171,\"<=\"&$R14,K$4:K$171,\">=\"&$R15)","v":10},null,{"$f":"COUNTIFS(L$4:L$171,\"<=\"&$R14,M$4:M$171,\">=\"&$R15)","v":5},null,{"$f":"COUNTIFS(N$4:N$171,\"<=\"&$R14,O$4:O$171,\">=\"&$R15)","v":2}]
[null,null,null,null,null,null,null,null,null,null,null,null,null,null,null,"13:30:00",null,"14:00:00"]
[null,{"$f":"Roster!C18","v":"15:00:00"},{"$f":"Roster!D18","v":"18:30:00"},{"$f":"Roster!E18","v":"15:00:00"},{"$f":"Roster!F18","v":"18:30:00"},{"$f":"Roster!G18","v":"00:00:00"},{"$f":"Roster!H18","v":"00:00:00"},{"$f":"Roster!I18","v":"15:00:00"},{"$f":"Roster!J18","v":"18:30:00"},{"$f":"Roster!K18","v":"15:00:00"},{"$f":"Roster!L18","v":"18:30:00"},{"$f":"Roster!M18","v":"00:00:00"},{"$f":"Roster!N18","v":"00:00:00"},{"$f":"Roster!O18","v":"00:00:00"},{"$f":"Roster!P18","v":"00:00:00"},"14:00:00",null,"14:00:00",{"$f":"COUNTIFS(B$4:B$171,\"<=\"&$R16,C$4:C$171,\">=\"&$R17)","v":6},null,{"$f":"COUNTIFS(D$4:D$171,\"<=\"&$R16,E$4:E$171,\">=\"&$R17)","v":3},null,{"$f":"COUNTIFS(F$4:F$171,\"<=\"&$R16,G$4:G$171,\">=\"&$R17)","v":6},null,{"$f":"COUNTIFS(H$4:H$171,\"<=\"&$R16,I$4:I$171,\">=\"&$R17)","v":9},null,{"$f":"COUNTIFS(J$4:J$171,\"<=\"&$R16,K$4:K$171,\">=\"&$R17)","v":5},null,{"$f":"COUNTIFS(L$4:L$171,\"<=\"&$R16,M$4:M$171,\">=\"&$R17)","v":5},null,{"$f":"COUNTIFS(N$4:N$171,\"<=\"&$R16,O$4:O$171,\">=\"&$R17)","v":2}]
[null,null,null,null,null,null,null,null,null,null,null,null,null,null,null,"14:30:00",null,"15:00:00"]
[null,{"$f":"Roster!C20","v":"00:00:00"},{"$f":"Roster!D20","v":"00:00:00"},{"$f":"Roster!E20","v":"00:00:00"},{"$f":"Roster!F20","v":"00:00:00"},{"$f":"Roster!G20","v":"00:00:00"},{"$f":"Roster!H20","v":"00:00:00"},{"$f":"Roster!I20","v":"00:00:00"},{"$f":"Roster!J20","v":"00:00:00"},{"$f":"Roster!K20","v":"00:00:00"},{"$f":"Roster!L20","v":"00:00:00"},{"$f":"Roster!M20","v":"09:00:00"},{"$f":"Roster!N20","v":"13:00:00"},{"$f":"Roster!O20","v":"00:00:00"},{"$f":"Roster!P20","v":"00:00:00"},"15:00:00",null,"15:00:00",{"$f":"COUNTIFS(B$4:B$171,\"<=\"&$R18,C$4:C$171,\">=\"&$R19)","v":6},null,{"$f":"COUNTIFS(D$4:D$171,\"<=\"&$R18,E$4:E$171,\">=\"&$R19)","v":3},null,{"$f":"COUNTIFS(F$4:F$171,\"<=\"&$R18,G$4:G$171,\">=\"&$R19)","v":3},null,{"$f":"COUNTIFS(H$4:H$171,\"<=\"&$R18,I$4:I$171,\">=\"&$R19)","v":4},null,{"$f":"COUNTIFS(J$4:J$171,\"<=\"&$R18,K$4:K$171,\">=\"&$R19)","v":3},null,{"$f":"COUNTIFS(L$4:L$171,\"<=\"&$R18,M$4:M$171,\">=\"&$R19)","v":3},null,{"$f":"COUNTIFS(N$4:N$171,\"<=\"&$R18,O$4:O$171,\">=\"&$R19)","v":0}]
[null,null,null,null,null,null,null,null,null,null,null,null,null,null,null,"15:30:00",null,"16:00:00"]
[null,{"$f":"Roster!C22","v":"00:00:00"},{"$f":"Roster!D22","v":"00:00:00"},{"$f":"Roster!E22","v":"00:00:00"},{"$f":"Roster!F22","v":"00:00:00"},{"$f":"Roster!G22","v":"00:00:00"},{"$f":"Roster!H22","v":"00:00:00"},{"$f":"Roster!I22","v":"00:00:00"},{"$f":"Roster!J22","v":"00:00:00"},{"$f":"Roster!K22","v":"00:00:00"},{"$f":"Roster!L22","v":"00:00:00"},{"$f":"Roster!M22","v":"00:00:00"},{"$f":"Roster!N22","v":"00:00:00"},{"$f":"Roster!O22","v":"00:00:00"},{"$f":"Roster!P22","v":"00:00:00"},"16:00:00",null,1.6666666666666701,{"$f":"COUNTIFS(B$4:B$171,\"<=\"&$R20,C$4:C$171,\">=\"&$R21)","v":9},null,{"$f":"COUNTIFS(D$4:D$171,\"<=\"&$R20,E$4:E$171,\">=\"&$R21)","v":9},null,{"$f":"COUNTIFS(F$4:F$171,\"<=\"&$R20,G$4:G$171,\">=\"&$R21)","v":9},null,{"$f":"COUNTIFS(H$4:H$171,\"<=\"&$R20,I$4:I$171,\">=\"&$R21)","v":10},null,{"$f":"COUNTIFS(J$4:J$171,\"<=\"&$R20,K$4:K$171,\">=\"&$R21)","v":12},null,{"$f":"COUNTIFS(L$4:L$171,\"<=\"&$R20,M$4:M$171,\">=\"&$R21)","v":7},null,{"$f":"COUNTIFS(N$4:N$171,\"<=\"&$R20,O$4:O$171,\">=\"&$R21)","v":4}]
[null,null,null,null,null,null,null,null,null,null,null,null,null,null,null,"16:30:00",null,"17:00:00"]
[null,{"$f":"Roster!C24","v":"00:00:00"},{"$f":"Roster!D24","v":"00:00:00"},{"$f":"Roster!E24","v":"14:30:00"},{"$f":"Roster!F24","v":"16:30:00"},{"$f":"Roster!G24","v":"00:00:00"},{"$f":"Roster!H24","v":"00:00:00"},{"$f":"Roster!I24","v":"09:00:00"},{"$f":"Roster!J24","v":"11:00:00"},{"$f":"Roster!K24","v":"14:30:00"},{"$f":"Roster!L24","v":"16:30:00"},{"$f":"Roster!M24","v":"00:00:00"},{"$f":"Roster!N24","v":"00:00:00"},{"$f":"Roster!O24","v":"00:00:00"},{"$f":"Roster!P24","v":"00:00:00"},"17:00:00"]
[null,null,null,null,null,null,null,null,null,null,null,null,null,null,null,"17:30:00"]
[null,{"$f":"Roster!C26","v":"00:00:00"},{"$f":"Roster!D26","v":"00:00:00"},{"$f":"Roster!E26","v":"09:00:00"},{"$f":"Roster!F26","v":"14:00:00"},{"$f":"Roster!G26","v":"00:00:00"},{"$f":"Roster!H26","v":"00:00:00"},{"$f":"Roster!I26","v":"00:00:00"},{"$f":"Roster!J26","v":"00:00:00"},{"$f":"Roster!K26","v":"09:00:00"},{"$f":"Roster!L26","v":"14:00:00"},{"$f":"Roster!M26","v":"00:00:00"},{"$f":"Roster!N26","v":"00:00:00"},{"$f":"Roster!O26","v":"00:00:00"},{"$f":"Roster!P26","v":"00:00:00"},"18:00:00"]
[null,null,null,null,null,null,null,null,null,null,null,null,null,null,null,"18:30:00"]
[null,{"$f":"Roster!C28","v":"09:00:00"},{"$f":"Roster!D28","v":"11:00:00"},{"$f":"Roster!E28","v":"00:00:00"},{"$f":"Roster!F28","v":"00:00:00"},{"$f":"Roster!G28","v":"00:00:00"},{"$f":"Roster!H28","v":"00:00:00"},{"$f":"Roster!I28","v":"00:00:00"},{"$f":"Roster!J28","v":"00:00:00"},{"$f":"Roster!K28","v":"00:00:00"},{"$f":"Roster!L28","v":"00:00:00"},{"$f":"Roster!M28","v":"09:00:00"},{"$f":"Roster!N28","v":"11:00:00"},{"$f":"Roster!O28","v":"00:00:00"},{"$f":"Roster!P28","v":"00:00:00"},"19:00:00"]
[null,null,null,null,null,null,null,null,null,null,null,null,null,null,null,"19:30:00"]
[null,{"$f":"Roster!C30","v":"00:00:00"},{"$f":"Roster!D30","v":"00:00:00"},{"$f":"Roster!E30","v":"00:00:00"},{"$f":"Roster!F30","v":"00:00:00"},{"$f":"Roster!G30","v":"10:00:00"},{"$f":"Roster!H30","v":"12:00:00"},{"$f":"Roster!I30","v":"00:00:00"},{"$f":"Roster!J30","v":"00:00:00"},{"$f":"Roster!K30","v":"00:00:00"},{"$f":"Roster!L30","v":"00:00:00"},{"$f":"Roster!M30","v":"00:00:00"},{"$f":"Roster!N30","v":"00:00:00"},{"$f":"Roster!O30","v":"00:00:00"},{"$f":"Roster!P30","v":"00:00:00"},"20:00:00"]
[null,null,null,null,null,null,null,null,null,null,null,null,null,null,null,"20:30:00"]
[null,{"$f":"Roster!C32","v":"10:00:00"},{"$f":"Roster!D32","v":"16:00:00"},{"$f":"Roster!E32","v":"00:00:00"},{"$f":"Roster!F32","v":"00:00:00"},{"$f":"Roster!G32","v":"00:00:00"},{"$f":"Roster!H32","v":"00:00:00"},{"$f":"Roster!I32","v":"09:30:00"},{"$f":"Roster!J32","v":"15:30:00"},{"$f":"Roster!K32","v":"09:30:00"},{"$f":"Roster!L32","v":"15:30:00"},{"$f":"Roster!M32","v":"13:00:00"},{"$f":"Roster!N32","v":"17:00:00"},{"$f":"Roster!O32","v":"00:00:00"},{"$f":"Roster!P32","v":"00:00:00"},"21:00:00"]
[null,null,null,null,null,null,null,null,null,null,null,null,null,null,null,"21:30:00"]
[null,{"$f":"Roster!C34","v":"00:00:00"},{"$f":"Roster!D34","v":"00:00:00"},{"$f":"Roster!E34","v":"00:00:00"},{"$f":"Roster!F34","v":"00:00:00"},{"$f":"Roster!G34","v":"00:00:00"},{"$f":"Roster!H34","v":"00:00:00"},{"$f":"Roster!I34","v":"00:00:00"},{"$f":"Roster!J34","v":"00:00:00"},{"$f":"Roster!K34","v":"09:00:00"},{"$f":"Roster!L34","v":"13:30:00"},{"$f":"Roster!M34","v":"00:00:00"},{"$f":"Roster!N34","v":"00:00:00"},{"$f":"Roster!O34","v":"00:00:00"},{"$f":"Roster!P34","v":"00:00:00"},"22:00:00"]
[null,null,null,null,null,null,null,null,null,null,null,null,null,null,null,"22:30:00"]
[null,{"$f":"Roster!C36","v":"12:00:00"},{"$f":"Roster!D36","v":"14:00:00"},{"$f":"Roster!E36","v":"12:00:00"},{"$f":"Roster!F36","v":"14:00:00"},{"$f":"Roster!G36","v":"12:00:00"},{"$f":"Roster!H36","v":"15:00:00"},{"$f":"Roster!I36","v":"12:00:00"},{"$f":"Roster!J36","v":"14:00:00"},{"$f":"Roster!K36","v":"12:00:00"},{"$f":"Roster!L36","v":"14:00:00"},{"$f":"Roster!M36","v":"00:00:00"},{"$f":"Roster!N36","v":"00:00:00"},{"$f":"Roster!O36","v":"00:00:00"},{"$f":"Roster!P36","v":"00:00:00"},"23:00:00"]
[null,null,null,null,null,null,null,null,null,null,null,null,null,null,null,"23:30:00"]
[null,{"$f":"Roster!C38","v":"00:00:00"},{"$f":"Roster!D38","v":"00:00:00"},{"$f":"Roster!E38","v":"00:00:00"},{"$f":"Roster!F38","v":"00:00:00"},{"$f":"Roster!G38","v":"00:00:00"},{"$f":"Roster!H38","v":"00:00:00"},{"$f":"Roster!I38","v":"09:00:00"},{"$f":"Roster!J38","v":"15:00:00"},{"$f":"Roster!K38","v":"00:00:00"},{"$f":"Roster!L38","v":"00:00:00"},{"$f":"Roster!M38","v":"00:00:00"},{"$f":"Roster!N38","v":"00:00:00"},{"$f":"Roster!O38","v":"00:00:00"},{"$f":"Roster!P38","v":"00:00:00"},1]
[null,null,null,null,null,null,null,null,null,null,null,null,null,null,null,1.0208333333333299]
[null,{"$f":"Roster!C40","v":"09:00:00"},{"$f":"Roster!D40","v":"12:00:00"},{"$f":"Roster!E40","v":"09:00:00"},{"$f":"Roster!F40","v":"12:00:00"},{"$f":"Roster!G40","v":"00:00:00"},{"$f":"Roster!H40","v":"00:00:00"},{"$f":"Roster!I40","v":"00:00:00"},{"$f":"Roster!J40","v":"00:00:00"},{"$f":"Roster!K40","v":"00:00:00"},{"$f":"Roster!L40","v":"00:00:00"},{"$f":"Roster!M40","v":"00:00:00"},{"$f":"Roster!N40","v":"00:00:00"},{"$f":"Roster!O40","v":"00:00:00"},{"$f":"Roster!P40","v":"00:00:00"},1.0416666666666701]
[null,null,null,null,null,null,null,null,null,null,null,null,null,null,null,1.0625]
[null,{"$f":"Roster!C42","v":"00:00:00"},{"$f":"Roster!D42","v":"00:00:00"},{"$f":"Roster!E42","v":"00:00:00"},{"$f":"Roster!F42","v":"00:00:00"},{"$f":"Roster!G42","v":"00:00:00"},{"$f":"Roster!H42","v":"00:00:00"},{"$f":"Roster!I42","v":"00:00:00"},{"$f":"Roster!J42","v":"00:00:00"},{"$f":"Roster!K42","v":"00:00:00"},{"$f":"Roster!L42","v":"00:00:00"},{"$f":"Roster!M42","v":"14:00:00"},{"$f":"Roster!N42","v":"20:00:00"},{"$f":"Roster!O42","v":"00:00:00"},{"$f":"Roster!P42","v":"00:00:00"},1.0833333333333299]
[null,null,null,null,null,null,null,null,null,null,null,null,null,null,null,1.1041666666666701]
[null,{"$f":"Roster!C44","v":"00:00:00"},{"$f":"Roster!D44","v":"00:00:00"},{"$f":"Roster!E44","v":"00:00:00"},{"$f":"Roster!F44","v":"00:00:00"},{"$f":"Roster!G44","v":"00:00:00"},{"$f":"Roster!H44","v":"00:00:00"},{"$f":"Roster!I44","v":"00:00:00"},{"$f":"Roster!J44","v":"00:00:00"},{"$f":"Roster!K44","v":"00:00:00"},{"$f":"Roster!L44","v":"00:00:00"},{"$f":"Roster!M44","v":"00:00:00"},{"$f":"Roster!N44","v":"00:00:00"},{"$f":"Roster!O44","v":"00:00:00"},{"$f":"Roster!P44","v":"00:00:00"},1.125]
[null,null,null,null,null,null,null,null,null,null,null,null,null,null,null,1.1458333333333299]
[null,{"$f":"Roster!C46","v":"00:00:00"},{"$f":"Roster!D46","v":"00:00:00"},{"$f":"Roster!E46","v":"00:00:00"},{"$f":"Roster!F46","v":"00:00:00"},{"$f":"Roster!G46","v":"00:00:00"},{"$f":"Roster!H46","v":"00:00:00"},{"$f":"Roster!I46","v":"00:00:00"},{"$f":"Roster!J46","v":"00:00:00"},{"$f":"Roster!K46","v":"00:00:00"},{"$f":"Roster!L46","v":"00:00:00"},{"$f":"Roster!M46","v":"00:00:00"},{"$f":"Roster!N46","v":"00:00:00"},{"$f":"Roster!O46","v":"00:00:00"},{"$f":"Roster!P46","v":"00:00:00"},1.1666666666666701]
[null,null,null,null,null,null,null,null,null,null,null,null,null,null,null,1.1875]
[null,{"$f":"Roster!C48","v":"00:00:00"},{"$f":"Roster!D48","v":"00:00:00"},{"$f":"Roster!E48","v":"00:00:00"},{"$f":"Roster!F48","v":"00:00:00"},{"$f":"Roster!G48","v":"00:00:00"},{"$f":"Roster!H48","v":"00:00:00"},{"$f":"Roster!I48","v":"00:00:00"},{"$f":"Roster!J48","v":"00:00:00"},{"$f":"Roster!K48","v":"00:00:00"},{"$f":"Roster!L48","v":"00:00:00"},{"$f":"Roster!M48","v":"00:00:00"},{"$f":"Roster!N48","v":"00:00:00"},{"$f":"Roster!O48","v":"00:00:00"},{"$f":"Roster!P48","v":"00:00:00"},1.2083333333333399]
[null,null,null,null,null,null,null,null,null,null,null,null,null,null,null,1.2291666666666701]
[null,{"$f":"Roster!C50","v":"07:00:00"},{"$f":"Roster!D50","v":"09:00:00"},{"$f":"Roster!E50","v":"07:00:00"},{"$f":"Roster!F50","v":"09:00:00"},{"$f":"Roster!G50","v":"07:00:00"},{"$f":"Roster!H50","v":"09:00:00"},{"$f":"Roster!I50","v":"07:00:00"},{"$f":"Roster!J50","v":"09:00:00"},{"$f":"Roster!K50","v":"07:00:00"},{"$f":"Roster!L50","v":"09:00:00"},{"$f":"Roster!M50","v":"07:00:00"},{"$f":"Roster!N50","v":"09:00:00"},{"$f":"Roster!O50","v":"08:00:00"},{"$f":"Roster!P50","v":"10:00:00"},1.25]
[null,null,null,null,null,null,null,null,null,null,null,null,null,null,null,1.2708333333333399]
[null,{"$f":"Roster!C52","v":"15:00:00"},{"$f":"Roster!D52","v":"18:00:00"},{"$f":"Roster!E52","v":"15:00:00"},{"$f":"Roster!F52","v":"18:00:00"},{"$f":"Roster!G52","v":"15:00:00"},{"$f":"Roster!H52","v":"18:00:00"},{"$f":"Roster!I52","v":"15:00:00"},{"$f":"Roster!J52","v":"18:00:00"},{"$f":"Roster!K52","v":"15:00:00"},{"$f":"Roster!L52","v":"18:00:00"},{"$f":"Roster!M52","v":"13:00:00"},{"$f":"Roster!N52","v":"15:00:00"},{"$f":"Roster!O52","v":"13:00:00"},{"$f":"Roster!P52","v":"15:00:00"},1.2916666666666701]
[null,null,null,null,null,null,null,null,null,null,null,null,null,null,null,1.3125]
[null,{"$f":"Roster!C54","v":"18:00:00"},{"$f":"Roster!D54","v":"20:00:00"},{"$f":"Roster!E54","v":"18:00:00"},{"$f":"Roster!F54","v":"19:00:00"},{"$f":"Roster!G54","v":"18:00:00"},{"$f":"Roster!H54","v":"19:00:00"},{"$f":"Roster!I54","v":"18:00:00"},{"$f":"Roster!J54","v":"19:00:00"},{"$f":"Roster!K54","v":"18:00:00"},{"$f":"Roster!L54","v":"19:00:00"},{"$f":"Roster!M54","v":"18:00:00"},{"$f":"Roster!N54","v":"19:00:00"},{"$f":"Roster!O54","v":"18:00:00"},{"$f":"Roster!P54","v":"19:00:00"},1.3333333333333299]
[null,null,null,null,null,null,null,null,null,null,null,null,null,null,null,1.3541666666666701]
[null,{"$f":"Roster!C56","v":"00:00:00"},{"$f":"Roster!D56","v":"00:00:00"},{"$f":"Roster!E56","v":"19:00:00"},{"$f":"Roster!F56","v":"20:00:00"},{"$f":"Roster!G56","v":"19:00:00"},{"$f":"Roster!H56","v":"20:00:00"},{"$f":"Roster!I56","v":"19:00:00"},{"$f":"Roster!J56","v":"20:00:00"},{"$f":"Roster!K56","v":"19:00:00"},{"$f":"Roster!L56","v":"20:00:00"},{"$f":"Roster!M56","v":"19:00:00"},{"$f":"Roster!N56","v":"20:00:00"},{"$f":"Roster!O56","v":"19:00:00"},{"$f":"Roster!P56","v":"20:00:00"},1.375]
[null,null,null,null,null,null,null,null,null,null,null,null,null,null,null,1.3958333333333299]
[null,{"$f":"Roster!C58","v":"08:00:00"},{"$f":"Roster!D58","v":"10:00:00"},{"$f":"Roster!E58","v":"07:00:00"},{"$f":"Roster!F58","v":"08:30:00"},{"$f":"Roster!G58","v":"08:30:00"},{"$f":"Roster!H58","v":"14:00:00"},{"$f":"Roster!I58","v":"08:00:00"},{"$f":"Roster!J58","v":"14:30:00"},{"$f":"Roster!K58","v":"08:00:00"},{"$f":"Roster!L58","v":"10:00:00"},{"$f":"Roster!M58","v":"08:30:00"},{"$f":"Roster!N58","v":"10:30:00"},{"$f":"Roster!O58","v":"08:30:00"},{"$f":"Roster!P58","v":"14:30:00"},1.4166666666666701]
[null,null,null,null,null,null,null,null,null,null,null,null,null,null,null,1.4375]
[null,{"$f":"Roster!C60","v":"00:00:00"},{"$f":"Roster!D60","v":"00:00:00"},{"$f":"Roster!E60","v":"00:00:00"},{"$f":"Roster!F60","v":"00:00:00"},{"$f":"Roster!G60","v":"00:00:00"},{"$f":"Roster!H60","v":"00:00:00"},{"$f":"Roster!I60","v":"00:00:00"},{"$f":"Roster!J60","v":"00:00:00"},{"$f":"Roster!K60","v":"00:00:00"},{"$f":"Roster!L60","v":"00:00:00"},{"$f":"Roster!M60","v":"00:00:00"},{"$f":"Roster!N60","v":"00:00:00"},{"$f":"Roster!O60","v":"00:00:00"},{"$f":"Roster!P60","v":"00:00:00"},1.4583333333333299]
[null,null,null,null,null,null,null,null,null,null,null,null,null,null,null,1.4791666666666701]
[null,{"$f":"Roster!C62","v":"00:00:00"},{"$f":"Roster!D62","v":"00:00:00"},{"$f":"Roster!E62","v":"00:00:00"},{"$f":"Roster!F62","v":"00:00:00"},{"$f":"Roster!G62","v":"00:00:00"},{"$f":"Roster!H62","v":"00:00:00"},{"$f":"Roster!I62","v":"00:00:00"},{"$f":"Roster!J62","v":"00:00:00"},{"$f":"Roster!K62","v":"00:00:00"},{"$f":"Roster!L62","v":"00:00:00"},{"$f":"Roster!M62","v":"00:00:00"},{"$f":"Roster!N62","v":"00:00:00"},{"$f":"Roster!O62","v":"00:00:00"},{"$f":"Roster!P62","v":"00:00:00"},1.5]
[null,null,null,null,null,null,null,null,null,null,null,null,null,null,null,1.5208333333333299]
[null,{"$f":"Roster!C64","v":"07:00:00"},{"$f":"Roster!D64","v":"09:00:00"},{"$f":"Roster!E64","v":"07:00:00"},{"$f":"Roster!F64","v":"09:00:00"},{"$f":"Roster!G64","v":"07:00:00"},{"$f":"Roster!H64","v":"09:00:00"},{"$f":"Roster!I64","v":"07:00:00"},{"$f":"Roster!J64","v":"09:00:00"},{"$f":"Roster!K64","v":"07:00:00"},{"$f":"Roster!L64","v":"09:00:00"},{"$f":"Roster!M64","v":"07:00:00"},{"$f":"Roster!N64","v":"15:00:00"},{"$f":"Roster!O64","v":"07:00:00"},{"$f":"Roster!P64","v":"15:00:00"},1.5416666666666701]
[null,null,null,null,null,null,null,null,null,null,null,null,null,null,null,1.5625]
[null,{"$f":"Roster!C66","v":"09:00:00"},{"$f":"Roster!D66","v":"15:00:00"},{"$f":"Roster!E66","v":"09:00:00"},{"$f":"Roster!F66","v":"15:00:00"},{"$f":"Roster!G66","v":"09:00:00"},{"$f":"Roster!H66","v":"15:00:00"},{"$f":"Roster!I66","v":"09:00:00"},{"$f":"Roster!J66","v":"15:00:00"},{"$f":"Roster!K66","v":"09:00:00"},{"$f":"Roster!L66","v":"15:00:00"},{"$f":"Roster!M66","v":"00:00:00"},{"$f":"Roster!N66","v":"00:00:00"},{"$f":"Roster!O66","v":"00:00:00"},{"$f":"Roster!P66","v":"00:00:00"},1.5833333333333299]
[null,null,null,null,null,null,null,null,null,null,null,null,null,null,null,1.6041666666666701]
[null,{"$f":"Roster!C68","v":"15:00:00"},{"$f":"Roster!D68","v":"23:00:00"},{"$f":"Roster!E68","v":"15:00:00"},{"$f":"Roster!F68","v":"23:00:00"},{"$f":"Roster!G68","v":"15:00:00"},{"$f":"Roster!H68","v":"23:00:00"},{"$f":"Roster!I68","v":"15:00:00"},{"$f":"Roster!J68","v":"23:00:00"},{"$f":"Roster!K68","v":"15:00:00"},{"$f":"Roster!L68","v":"23:00:00"},{"$f":"Roster!M68","v":"15:00:00"},{"$f":"Roster!N68","v":"23:00:00"},{"$f":"Roster!O68","v":"15:00:00"},{"$f":"Roster!P68","v":"23:00:00"},1.625]
[null,null,null,null,null,null,null,null,null,null,null,null,null,null,null,1.6458333333333299]
[null,{"$f":"Roster!C70","v":"07:00:00"},{"$f":"Roster!D70","v":"08:30:00"},{"$f":"Roster!E70","v":"00:00:00"},{"$f":"Roster!F70","v":"00:00:00"},{"$f":"Roster!G70","v":"00:00:00"},{"$f":"Roster!H70","v":"00:00:00"},{"$f":"Roster!I70","v":"00:00:00"},{"$f":"Roster!J70","v":"00:00:00"},{"$f":"Roster!K70","v":"00:00:00"},{"$f":"Roster!L70","v":"00:00:00"},{"$f":"Roster!M70","v":"00:00:00"},{"$f":"Roster!N70","v":"00:00:00"},{"$f":"Roster!O70","v":"00:00:00"},{"$f":"Roster!P70","v":"00:00:00"},1.6666666666666701]
[null,null,null,null,null,null,null,null,null,null,null,null,null,null,null,1.6875]
[null,{"$f":"Roster!C72","v":"00:00:00"},{"$f":"Roster!D72","v":"00:00:00"},{"$f":"Roster!E72","v":"00:00:00"},{"$f":"Roster!F72","v":"00:00:00"},{"$f":"Roster!G72","v":"00:00:00"},{"$f":"Roster!H72","v":"00:00:00"},{"$f":"Roster!I72","v":"00:00:00"},{"$f":"Roster!J72","v":"00:00:00"},{"$f":"Roster!K72","v":"00:00:00"},{"$f":"Roster!L72","v":"00:00:00"},{"$f":"Roster!M72","v":"00:00:00"},{"$f":"Roster!N72","v":"00:00:00"},{"$f":"Roster!O72","v":"00:00:00"},{"$f":"Roster!P72","v":"00:00:00"}]
[]
[null,{"$f":"Roster!C74","v":"09:00:00"},{"$f":"Roster!D74","v":"14:00:00"},{"$f":"Roster!E74","v":"09:00:00"},{"$f":"Roster!F74","v":"14:00:00"},{"$f":"Roster!G74","v":"09:00:00"},{"$f":"Roster!H74","v":"14:00:00"},{"$f":"Roster!I74","v":"09:00:00"},{"$f":"Roster!J74","v":"14:00:00"},{"$f":"Roster!K74","v":"09:00:00"},{"$f":"Roster!L74","v":"14:00:00"},{"$f":"Roster!M74","v":"00:00:00"},{"$f":"Roster!N74","v":"00:00:00"},{"$f":"Roster!O74","v":"00:00:00"},{"$f":"Roster!P74","v":"00:00:00"}]
[]
[null,{"$f":"Roster!C76","v":"00:00:00"},{"$f":"Roster!D76","v":"00:00:00"},{"$f":"Roster!E76","v":"06:00:00"},{"$f":"Roster!F76","v":"10:00:00"},{"$f":"Roster!G76","v":"06:00:00"},{"$f":"Roster!H76","v":"10:00:00"},{"$f":"Roster!I76","v":"06:00:00"},{"$f":"Roster!J76","v":"10:00:00"},{"$f":"Roster!K76","v":"06:00:00"},{"$f":"Roster!L76","v":"10:00:00"},{"$f":"Roster!M76","v":"00:00:00"},{"$f":"Roster!N76","v":"00:00:00"},{"$f":"Roster!O76","v":"00:00:00"},{"$f":"Roster!P76","v":"00:00:00"}]
[]
[null,{"$f":"Roster!C78","v":"15:00:00"},{"$f":"Roster!D78","v":"17:00:00"},{"$f":"Roster!E78","v":"11:00:00"},{"$f":"Roster!F78","v":"14:00:00"},{"$f":"Roster!G78","v":"09:00:00"},{"$f":"Roster!H78","v":"12:00:00"},{"$f":"Roster!I78","v":"15:00:00"},{"$f":"Roster!J78","v":"18:00:00"},{"$f":"Roster!K78","v":"10:00:00"},{"$f":"Roster!L78","v":"14:00:00"},{"$f":"Roster!M78","v":"11:00:00"},{"$f":"Roster!N78","v":"13:00:00"},{"$f":"Roster!O78","v":"00:00:00"},{"$f":"Roster!P78","v":"00:00:00"}]
[]
[null,{"$f":"Roster!C80","v":"17:00:00"},{"$f":"Roster!D80","v":"21:00:00"},{"$f":"Roster!E80","v":"18:00:00"},{"$f":"Roster!F80","v":"20:00:00"},{"$f":"Roster!G80","v":"18:00:00"},{"$f":"Roster!H80","v":"20:00:00"},{"$f":"Roster!I80","v":"18:00:00"},{"$f":"Roster!J80","v":"21:00:00"},{"$f":"Roster!K80","v":"18:00:00"},{"$f":"Roster!L80","v":"20:00:00"},{"$f":"Roster!M80","v":"18:00:00"},{"$f":"Roster!N80","v":"20:00:00"},{"$f":"Roster!O80","v":"18:00:00"},{"$f":"Roster!P80","v":"20:00:00"}]
[]
[null,{"$f":"Roster!C82","v":"00:00:00"},{"$f":"Roster!D82","v":"00:00:00"},{"$f":"Roster!E82","v":"00:00:00"},{"$f":"Roster!F82","v":"00:00:00"},{"$f":"Roster!G82","v":"00:00:00"},{"$f":"Roster!H82","v":"00:00:00"},{"$f":"Roster!I82","v":"00:00:00"},{"$f":"Roster!J82","v":"00:00:00"},{"$f":"Roster!K82","v":"00:00:00"},{"$f":"Roster!L82","v":"00:00:00"},{"$f":"Roster!M82","v":"00:00:00"},{"$f":"Roster!N82","v":"00:00:00"},{"$f":"Roster!O82","v":"00:00:00"},{"$f":"Roster!P82","v":"00:00:00"}]
[]
[null,{"$f":"Roster!C84","v":"00:00:00"},{"$f":"Roster!D84","v":"00:00:00"},{"$f":"Roster!E84","v":"00:00:00"},{"$f":"Roster!F84","v":"00:00:00"},{"$f":"Roster!G84","v":"15:00:00"},{"$f":"Roster!H84","v":"17:00:00"},{"$f":"Roster!I84","v":"00:00:00"},{"$f":"Roster!J84","v":"00:00:00"},{"$f":"Roster!K84","v":"15:00:00"},{"$f":"Roster!L84","v":"17:00:00"},{"$f":"Roster!M84","v":"00:00:00"},{"$f":"Roster!N84","v":"00:00:00"},{"$f":"Roster!O84","v":"00:00:00"},{"$f":"Roster!P84","v":"00:00:00"}]
[]
[null,{"$f":"Roster!C86","v":"00:00:00"},{"$f":"Roster!D86","v":"00:00:00"},{"$f":"Roster!E86","v":"00:00:00"},{"$f":"Roster!F86","v":"00:00:00"},{"$f":"Roster!G86","v":"00:00:00"},{"$f":"Roster!H86","v":"00:00:00"},{"$f":"Roster!I86","v":"00:00:00"},{"$f":"Roster!J86","v":"00:00:00"},{"$f":"Roster!K86","v":"00:00:00"},{"$f":"Roster!L86","v":"00:00:00"},{"$f":"Roster!M86","v":"00:00:00"},{"$f":"Roster!N86","v":"00:00:00"},{"$f":"Roster!O86","v":"00:00:00"},{"$f":"Roster!P86","v":"00:00:00"}]
[]
[null,{"$f":"Roster!C88","v":"00:00:00"},{"$f":"Roster!D88","v":"00:00:00"},{"$f":"Roster!E88","v":"00:00:00"},{"$f":"Roster!F88","v":"00:00:00"},{"$f":"Roster!G88","v":"00:00:00"},{"$f":"Roster!H88","v":"00:00:00"},{"$f":"Roster!I88","v":"00:00:00"},{"$f":"Roster!J88","v":"00:00:00"},{"$f":"Roster!K88","v":"00:00:00"},{"$f":"Roster!L88","v":"00:00:00"},{"$f":"Roster!M88","v":"12:00:00"},{"$f":"Roster!N88","v":"17:00:00"},{"$f":"Roster!O88","v":"00:00:00"},{"$f":"Roster!P88","v":"00:00:00"}]
[]
[null,{"$f":"Roster!C90","v":"00:00:00"},{"$f":"Roster!D90","v":"00:00:00"},{"$f":"Roster!E90","v":"00:00:00"},{"$f":"Roster!F90","v":"00:00:00"},{"$f":"Roster!G90","v":"00:00:00"},{"$f":"Roster!H90","v":"00:00:00"},{"$f":"Roster!I90","v":"00:00:00"},{"$f":"Roster!J90","v":"00:00:00"},{"$f":"Roster!K90","v":"00:00:00"},{"$f":"Roster!L90","v":"00:00:00"},{"$f":"Roster!M90","v":"10:00:00"},{"$f":"Roster!N90","v":"14:00:00"},{"$f":"Roster!O90","v":"00:00:00"},{"$f":"Roster!P90","v":"00:00:00"}]
[]
[null,{"$f":"Roster!C92","v":"00:00:00"},{"$f":"Roster!D92","v":"00:00:00"},{"$f":"Roster!E92","v":"00:00:00"},{"$f":"Roster!F92","v":"00:00:00"},{"$f":"Roster!G92","v":"00:00:00"},{"$f":"Roster!H92","v":"00:00:00"},{"$f":"Roster!I92","v":"00:00:00"},{"$f":"Roster!J92","v":"00:00:00"},{"$f":"Roster!K92","v":"18:30:00"},{"$f":"Roster!L92","v":"22:30:00"},{"$f":"Roster!M92","v":"00:00:00"},{"$f":"Roster!N92","v":"00:00:00"},{"$f":"Roster!O92","v":"00:00:00"},{"$f":"Roster!P92","v":"00:00:00"}]
[]
[null,{"$f":"Roster!C94","v":"15:00:00"},{"$f":"Roster!D94","v":"19:00:00"},{"$f":"Roster!E94","v":"15:00:00"},{"$f":"Roster!F94","v":"19:00:00"},{"$f":"Roster!G94","v":"15:00:00"},{"$f":"Roster!H94","v":"19:00:00"},{"$f":"Roster!I94","v":"15:00:00"},{"$f":"Roster!J94","v":"19:00:00"},{"$f":"Roster!K94","v":"15:00:00"},{"$f":"Roster!L94","v":"19:00:00"},{"$f":"Roster!M94","v":"09:00:00"},{"$f":"Roster!N94","v":"12:00:00"},{"$f":"Roster!O94","v":"00:00:00"},{"$f":"Roster!P94","v":"00:00:00"}]
[]
[null,{"$f":"Roster!C96","v":"00:00:00"},{"$f":"Roster!D96","v":"00:00:00"},{"$f":"Roster!E96","v":"10:00:00"},{"$f":"Roster!F96","v":"12:00:00"},{"$f":"Roster!G96","v":"00:00:00"},{"$f":"Roster!H96","v":"00:00:00"},{"$f":"Roster!I96","v":"13:00:00"},{"$f":"Roster!J96","v":"15:00:00"},{"$f":"Roster!K96","v":"13:00:00"},{"$f":"Roster!L96","v":"15:00:00"},{"$f":"Roster!M96","v":"00:00:00"},{"$f":"Roster!N96","v":"00:00:00"},{"$f":"Roster!O96","v":"00:00:00"},{"$f":"Roster!P96","v":"00:00:00"}]
[]
[null,{"$f":"Roster!C98","v":"00:00:00"},{"$f":"Roster!D98","v":"00:00:00"},{"$f":"Roster!E98","v":"00:00:00"},{"$f":"Roster!F98","v":"00:00:00"},{"$f":"Roster!G98","v":"00:00:00"},{"$f":"Roster!H98","v":"00:00:00"},{"$f":"Roster!I98","v":"00:00:00"},{"$f":"Roster!J98","v":"00:00:00"},{"$f":"Roster!K98","v":"00:00:00"},{"$f":"Roster!L98","v":"00:00:00"},{"$f":"Roster!M98","v":"10:00:00"},{"$f":"Roster!N98","v":"14:00:00"},{"$f":"Roster!O98","v":"00:00:00"},{"$f":"Roster!P98","v":"00:00:00"}]
[]
[null,{"$f":"Roster!C100","v":"09:00:00"},{"$f":"Roster!D100","v":"11:00:00"},{"$f":"Roster!E100","v":"00:00:00"},{"$f":"Roster!F100","v":"00:00:00"},{"$f":"Roster!G100","v":"09:00:00"},{"$f":"Roster!H100","v":"14:00:00"},{"$f":"Roster!I100","v":"00:00:00"},{"$f":"Roster!J100","v":"00:00:00"},{"$f":"Roster!K100","v":"09:00:00"},{"$f":"Roster!L100","v":"11:00:00"},{"$f":"Roster!M100","v":"00:00:00"},{"$f":"Roster!N100","v":"00:00:00"},{"$f":"Roster!O100","v":"00:00:00"},{"$f":"Roster!P100","v":"00:00:00"}]
[]
[null,{"$f":"Roster!C102","v":"12:00:00"},{"$f":"Roster!D102","v":"16:30:00"},{"$f":"Roster!E102","v":"09:00:00"},{"$f":"Roster!F102","v":"14:00:00"},{"$f":"Roster!G102","v":"09:00:00"},{"$f":"Roster!H102","v":"16:30:00"},{"$f":"Roster!I102","v":"09:00:00"},{"$f":"Roster!J102","v":"16:30:00"},{"$f":"Roster!K102","v":"00:00:00"},{"$f":"Roster!L102","v":"00:00:00"},{"$f":"Roster!M102","v":"00:00:00"},{"$f":"Roster!N102","v":"00:00:00"},{"$f":"Roster!O102","v":"00:00:00"},{"$f":"Roster!P102","v":"00:00:00"}]
[]
[null,{"$f":"Roster!C104","v":"00:00:00"},{"$f":"Roster!D104","v":"00:00:00"},{"$f":"Roster!E104","v":"00:00:00"},{"$f":"Roster!F104","v":"00:00:00"},{"$f":"Roster!G104","v":"00:00:00"},{"$f":"Roster!H104","v":"00:00:00"},{"$f":"Roster!I104","v":"00:00:00"},{"$f":"Roster!J104","v":"00:00:00"},{"$f":"Roster!K104","v":"00:00:00"},{"$f":"Roster!L104","v":"00:00:00"},{"$f":"Roster!M104","v":"00:00:00"},{"$f":"Roster!N104","v":"00:00:00"},{"$f":"Roster!O104","v":"00:00:00"},{"$f":"Roster!P104","v":"00:00:00"}]
[]
[null,{"$f":"Roster!C106","v":"00:00:00"},{"$f":"Roster!D106","v":"00:00:00"},{"$f":"Roster!E106","v":"14:30:00"},{"$f":"Roster!F106","v":"16:30:00"},{"$f":"Roster!G106","v":"00:00:00"},{"$f":"Roster!H106","v":"00:00:00"},{"$f":"Roster!I106","v":"00:00:00"},{"$f":"Roster!J106","v":"00:00:00"},{"$f":"Roster!K106","v":"00:00:00"},{"$f":"Roster!L106","v":"00:00:00"},{"$f":"Roster!M106","v":"00:00:00"},{"$f":"Roster!N106","v":"00:00:00"},{"$f":"Roster!O106","v":"00:00:00"},{"$f":"Roster!P106","v":"00:00:00"}]
[]
[null,{"$f":"Roster!C108","v":"00:00:00"},{"$f":"Roster!D108","v":"00:00:00"},{"$f":"Roster!E108","v":"00:00:00"},{"$f":"Roster!F108","v":"00:00:00"},{"$f":"Roster!G108","v":"00:00:00"},{"$f":"Roster!H108","v":"00:00:00"},{"$f":"Roster!I108","v":"10:00:00"},{"$f":"Roster!J108","v":"16:00:00"},{"$f":"Roster!K108","v":"00:00:00"},{"$f":"Roster!L108","v":"00:00:00"},{"$f":"Roster!M108","v":"00:00:00"},{"$f":"Roster!N108","v":"00:00:00"},{"$f":"Roster!O108","v":"00:00:00"},{"$f":"Roster!P108","v":"00:00:00"}]
[]
[null,{"$f":"Roster!C110","v":"00:00:00"},{"$f":"Roster!D110","v":"00:00:00"},{"$f":"Roster!E110","v":"00:00:00"},{"$f":"Roster!F110","v":"00:00:00"},{"$f":"Roster!G110","v":"00:00:00"},{"$f":"Roster!H110","v":"00:00:00"},{"$f":"Roster!I110","v":"00:00:00"},{"$f":"Roster!J110","v":"00:00:00"},{"$f":"Roster!K110","v":"00:00:00"},{"$f":"Roster!L110","v":"00:00:00"},{"$f":"Roster!M110","v":"00:00:00"},{"$f":"Roster!N110","v":"00:00:00"},{"$f":"Roster!O110","v":"00:00:00"},{"$f":"Roster!P110","v":"00:00:00"}]
[]
[null,{"$f":"Roster!C112","v":"09:00:00"},{"$f":"Roster!D112","v":"12:00:00"},{"$f":"Roster!E112","v":"00:00:00"},{"$f":"Roster!F112","v":"00:00:00"},{"$f":"Roster!G112","v":"09:00:00"},{"$f":"Roster!H112","v":"12:00:00"},{"$f":"Roster!I112","v":"00:00:00"},{"$f":"Roster!J112","v":"00:00:00"},{"$f":"Roster!K112","v":"00:00:00"},{"$f":"Roster!L112","v":"00:00:00"},{"$f":"Roster!M112","v":"00:00:00"},{"$f":"Roster!N112","v":"00:00:00"},{"$f":"Roster!O112","v":"00:00:00"},{"$f":"Roster!P112","v":"00:00:00"}]
[]
[null,{"$f":"Roster!C114","v":"00:00:00"},{"$f":"Roster!D114","v":"00:00:00"},{"$f":"Roster!E114","v":"14:00:00"},{"$f":"Roster!F114","v":"16:00:00"},{"$f":"Roster!G114","v":"12:15:00"},{"$f":"Roster!H114","v":"15:00:00"},{"$f":"Roster!I114","v":"00:00:00"},{"$f":"Roster!J114","v":"00:00:00"},{"$f":"Roster!K114","v":"00:00:00"},{"$f":"Roster!L114","v":"00:00:00"},{"$f":"Roster!M114","v":"00:00:00"},{"$f":"Roster!N114","v":"00:00:00"},{"$f":"Roster!O114","v":"00:00:00"},{"$f":"Roster!P114","v":"00:00:00"}]
[]
[null,{"$f":"Roster!C116","v":"00:00:00"},{"$f":"Roster!D116","v":"00:00:00"},{"$f":"Roster!E116","v":"09:00:00"},{"$f":"Roster!F116","v":"13:30:00"},{"$f":"Roster!G116","v":"00:00:00"},{"$f":"Roster!H116","v":"00:00:00"},{"$f":"Roster!I116","v":"00:00:00"},{"$f":"Roster!J116","v":"00:00:00"},{"$f":"Roster!K116","v":"09:00:00"},{"$f":"Roster!L116","v":"13:30:00"},{"$f":"Roster!M116","v":"09:00:00"},{"$f":"Roster!N116","v":"13:00:00"},{"$f":"Roster!O116","v":"00:00:00"},{"$f":"Roster!P116","v":"00:00:00"}]
[]
[null,{"$f":"Roster!C118","v":"10:00:00"},{"$f":"Roster!D118","v":"12:00:00"},{"$f":"Roster!E118","v":"10:00:00"},{"$f":"Roster!F118","v":"12:00:00"},{"$f":"Roster!G118","v":"10:00:00"},{"$f":"Roster!H118","v":"12:00:00"},{"$f":"Roster!I118","v":"10:00:00"},{"$f":"Roster!J118","v":"12:00:00"},{"$f":"Roster!K118","v":"10:00:00"},{"$f":"Roster!L118","v":"12:00:00"},{"$f":"Roster!M118","v":"00:00:00"},{"$f":"Roster!N118","v":"00:00:00"},{"$f":"Roster!O118","v":"00:00:00"},{"$f":"Roster!P118","v":"00:00:00"}]
[]
[null,{"$f":"Roster!C120","v":"15:00:00"},{"$f":"Roster!D120","v":"18:00:00"},{"$f":"Roster!E120","v":"15:00:00"},{"$f":"Roster!F120","v":"18:00:00"},{"$f":"Roster!G120","v":"15:00:00"},{"$f":"Roster!H120","v":"18:00:00"},{"$f":"Roster!I120","v":"15:00:00"},{"$f":"Roster!J120","v":"18:00:00"},{"$f":"Roster!K120","v":"15:00:00"},{"$f":"Roster!L120","v":"18:00:00"},{"$f":"Roster!M120","v":"10:00:00"},{"$f":"Roster!N120","v":"13:00:00"},{"$f":"Roster!O120","v":"10:00:00"},{"$f":"Roster!P120","v":"13:00:00"}]
[]
[null,{"$f":"Roster!C122","v":"14:45:00"},{"$f":"Roster!D122","v":"17:00:00"},{"$f":"Roster!E122","v":"00:00:00"},{"$f":"Roster!F122","v":"00:00:00"},{"$f":"Roster!G122","v":"00:00:00"},{"$f":"Roster!H122","v":"00:00:00"},{"$f":"Roster!I122","v":"00:00:00"},{"$f":"Roster!J122","v":"00:00:00"},{"$f":"Roster!K122","v":"00:00:00"},{"$f":"Roster!L122","v":"00:00:00"},{"$f":"Roster!M122","v":"00:00:00"},{"$f":"Roster!N122","v":"00:00:00"},{"$f":"Roster!O122","v":"00:00:00"},{"$f":"Roster!P122","v":"00:00:00"}]
[]
[null,{"$f":"Roster!C124","v":"13:00:00"},{"$f":"Roster!D124","v":"16:00:00"},{"$f":"Roster!E124","v":"09:15:00"},{"$f":"Roster!F124","v":"12:15:00"},{"$f":"Roster!G124","v":"13:00:00"},{"$f":"Roster!H124","v":"17:00:00"},{"$f":"Roster!I124","v":"13:00:00"},{"$f":"Roster!J124","v":"16:00:00"},{"$f":"Roster!K124","v":"09:15:00"},{"$f":"Roster!L124","v":"12:15:00"},{"$f":"Roster!M124","v":"00:00:00"},{"$f":"Roster!N124","v":"00:00:00"},{"$f":"Roster!O124","v":"00:00:00"},{"$f":"Roster!P124","v":"00:00:00"}]
[]
[null,{"$f":"Roster!C126","v":"00:00:00"},{"$f":"Roster!D126","v":"00:00:00"},{"$f":"Roster!E126","v":"00:00:00"},{"$f":"Roster!F126","v":"00:00:00"},{"$f":"Roster!G126","v":"09:30:00"},{"$f":"Roster!H126","v":"11:30:00"},{"$f":"Roster!I126","v":"13:00:00"},{"$f":"Roster!J126","v":"16:00:00"},{"$f":"Roster!K126","v":"00:00:00"},{"$f":"Roster!L126","v":"00:00:00"},{"$f":"Roster!M126","v":"00:00:00"},{"$f":"Roster!N126","v":"00:00:00"},{"$f":"Roster!O126","v":"00:00:00"},{"$f":"Roster!P126","v":"00:00:00"}]
[]
[null,{"$f":"Roster!C128","v":"13:00:00"},{"$f":"Roster!D128","v":"15:00:00"},{"$f":"Roster!E128","v":"13:00:00"},{"$f":"Roster!F128","v":"15:00:00"},{"$f":"Roster!G128","v":"00:00:00"},{"$f":"Roster!H128","v":"00:00:00"},{"$f":"Roster!I128","v":"00:00:00"},{"$f":"Roster!J128","v":"00:00:00"},{"$f":"Roster!K128","v":"00:00:00"},{"$f":"Roster!L128","v":"00:00:00"},{"$f":"Roster!M128","v":"00:00:00"},{"$f":"Roster!N128","v":"00:00:00"},{"$f":"Roster!O128","v":"00:00:00"},{"$f":"Roster!P128","v":"00:00:00"}]
[]
[null,{"$f":"Roster!C130","v":"14:00:00"},{"$f":"Roster!D130","v":"16:00:00"},{"$f":"Roster!E130","v":"00:00:00"},{"$f":"Roster!F130","v":"00:00:00"},{"$f":"Roster!G130","v":"14:00:00"},{"$f":"Roster!H130","v":"16:00:00"},{"$f":"Roster!I130","v":"00:00:00"},{"$f":"Roster!J130","v":"00:00:00"},{"$f":"Roster!K130","v":"14:00:00"},{"$f":"Roster!L130","v":"16:00:00"},{"$f":"Roster!M130","v":"00:00:00"},{"$f":"Roster!N130","v":"00:00:00"},{"$f":"Roster!O130","v":"00:00:00"},{"$f":"Roster!P130","v":"00:00:00"}]
[]
[null,{"$f":"Roster!C132","v":"09:30:00"},{"$f":"Roster!D132","v":"13:30:00"},{"$f":"Roster!E132","v":"00:00:00"},{"$f":"Roster!F132","v":"00:00:00"},{"$f":"Roster!G132","v":"00:00:00"},{"$f":"Roster!H132","v":"00:00:00"},{"$f":"Roster!I132","v":"10:00:00"},{"$f":"Roster!J132","v":"13:00:00"},{"$f":"Roster!K132","v":"08:00:00"},{"$f":"Roster!L132","v":"13:00:00"},{"$f":"Roster!M132","v":"12:30:00"},{"$f":"Roster!N132","v":"15:30:00"},{"$f":"Roster!O132","v":"00:00:00"},{"$f":"Roster!P132","v":"00:00:00"}]
[]
[null,{"$f":"Roster!C134","v":"00:00:00"},{"$f":"Roster!D134","v":"00:00:00"},{"$f":"Roster!E134","v":"10:00:00"},{"$f":"Roster!F134","v":"12:00:00"},{"$f":"Roster!G134","v":"00:00:00"},{"$f":"Roster!H134","v":"00:00:00"},{"$f":"Roster!I134","v":"11:00:00"},{"$f":"Roster!J134","v":"13:00:00"},{"$f":"Roster!K134","v":"00:00:00"},{"$f":"Roster!L134","v":"00:00:00"},{"$f":"Roster!M134","v":"00:00:00"},{"$f":"Roster!N134","v":"00:00:00"},{"$f":"Roster!O134","v":"00:00:00"},{"$f":"Roster!P134","v":"00:00:00"}]
[]
[null,{"$f":"Roster!C136","v":"14:00:00"},{"$f":"Roster!D136","v":"16:00:00"},{"$f":"Roster!E136","v":"15:00:00"},{"$f":"Roster!F136","v":"17:00:00"},{"$f":"Roster!G136","v":"00:00:00"},{"$f":"Roster!H136","v":"00:00:00"},{"$f":"Roster!I136","v":"16:00:00"},{"$f":"Roster!J136","v":"18:00:00"},{"$f":"Roster!K136","v":"16:00:00"},{"$f":"Roster!L136","v":"18:00:00"},{"$f":"Roster!M136","v":"10:00:00"},{"$f":"Roster!N136","v":"13:00:00"},{"$f":"Roster!O136","v":"00:00:00"},{"$f":"Roster!P136","v":"00:00:00"}]
[]
[null,{"$f":"Roster!C138","v":"10:30:00"},{"$f":"Roster!D138","v":"13:30:00"},{"$f":"Roster!E138","v":"09:30:00"},{"$f":"Roster!F138","v":"12:30:00"},{"$f":"Roster!G138","v":"09:30:00"},{"$f":"Roster!H138","v":"12:30:00"},{"$f":"Roster!I138","v":"09:30:00"},{"$f":"Roster!J138","v":"12:30:00"},{"$f":"Roster!K138","v":"10:30:00"},{"$f":"Roster!L138","v":"13:30:00"},{"$f":"Roster!M138","v":"09:30:00"},{"$f":"Roster!N138","v":"12:30:00"},{"$f":"Roster!O138","v":"00:00:00"},{"$f":"Roster!P138","v":"00:00:00"}]
[]
[null,{"$f":"Roster!C140","v":"00:00:00"},{"$f":"Roster!D140","v":"00:00:00"},{"$f":"Roster!E140","v":"09:00:00"},{"$f":"Roster!F140","v":"14:00:00"},{"$f":"Roster!G140","v":"00:00:00"},{"$f":"Roster!H140","v":"00:00:00"},{"$f":"Roster!I140","v":"09:00:00"},{"$f":"Roster!J140","v":"14:00:00"},{"$f":"Roster!K140","v":"00:00:00"},{"$f":"Roster!L140","v":"00:00:00"},{"$f":"Roster!M140","v":"00:00:00"},{"$f":"Roster!N140","v":"00:00:00"},{"$f":"Roster!O140","v":"00:00:00"},{"$f":"Roster!P140","v":"00:00:00"}]
[]
[null,{"$f":"Roster!C142","v":"10:00:00"},{"$f":"Roster!D142","v":"13:30:00"},{"$f":"Roster!E142","v":"10:00:00"},{"$f":"Roster!F142","v":"13:00:00"},{"$f":"Roster!G142","v":"10:00:00"},{"$f":"Roster!H142","v":"13:00:00"},{"$f":"Roster!I142","v":"10:00:00"},{"$f":"Roster!J142","v":"13:00:00"},{"$f":"Roster!K142","v":"12:00:00"},{"$f":"Roster!L142","v":"17:00:00"},{"$f":"Roster!M142","v":"11:00:00"},{"$f":"Roster!N142","v":"13:00:00"},{"$f":"Roster!O142","v":"00:00:00"},{"$f":"Roster!P142","v":"00:00:00"}]
[]
[null,{"$f":"Roster!C144","v":"00:00:00"},{"$f":"Roster!D144","v":"00:00:00"},{"$f":"Roster!E144","v":"00:00:00"},{"$f":"Roster!F144","v":"00:00:00"},{"$f":"Roster!G144","v":"00:00:00"},{"$f":"Roster!H144","v":"00:00:00"},{"$f":"Roster!I144","v":"00:00:00"},{"$f":"Roster!J144","v":"00:00:00"},{"$f":"Roster!K144","v":"00:00:00"},{"$f":"Roster!L144","v":"00:00:00"},{"$f":"Roster!M144","v":"00:00:00"},{"$f":"Roster!N144","v":"00:00:00"},{"$f":"Roster!O144","v":"00:00:00"},{"$f":"Roster!P144","v":"00:00:00"}]
[]
[null,{"$f":"Roster!C146","v":"00:00:00"},{"$f":"Roster!D146","v":"00:00:00"},{"$f":"Roster!E146","v":"00:00:00"},{"$f":"Roster!F146","v":"00:00:00"},{"$f":"Roster!G146","v":"00:00:00"},{"$f":"Roster!H146","v":"00:00:00"},{"$f":"Roster!I146","v":"00:00:00"},{"$f":"Roster!J146","v":"00:00:00"},{"$f":"Roster!K146","v":"00:00:00"},{"$f":"Roster!L146","v":"00:00:00"},{"$f":"Roster!M146","v":"00:00:00"},{"$f":"Roster!N146","v":"00:00:00"},{"$f":"Roster!O146","v":"00:00:00"},{"$f":"Roster!P146","v":"00:00:00"}]
[]
[null,{"$f":"Roster!C148","v":"00:00:00"},{"$f":"Roster!D148","v":"00:00:00"},{"$f":"Roster!E148","v":"00:00:00"},{"$f":"Roster!F148","v":"00:00:00"},{"$f":"Roster!G148","v":"00:00:00"},{"$f":"Roster!H148","v":"00:00:00"},{"$f":"Roster!I148","v":"00:00:00"},{"$f":"Roster!J148","v":"00:00:00"},{"$f":"Roster!K148","v":"00:00:00"},{"$f":"Roster!L148","v":"00:00:00"},{"$f":"Roster!M148","v":"00:00:00"},{"$f":"Roster!N148","v":"00:00:00"},{"$f":"Roster!O148","v":"00:00:00"},{"$f":"Roster!P148","v":"00:00:00"}]

{"sheet":"CF Test","index":2,"n_rows":127,"n_cols":15,"rows_kept":127,"cut":false,"hidden":true,"merged":[[3,14,3,15],[3,2,3,3],[3,4,3,5],[3,6,3,7],[3,8,3,9],[3,10,3,11],[3,12,3,13]]}
[]
[]
[]
[null,null,"2021-08-23",null,"2021-08-24",null,"2021-08-25",null,"2021-08-26",null,"2021-08-27",null,"2021-08-28",null,"2021-08-29"]
[null,null,{"$f":" IF(conflict?, currentAssigned)","v":false},null,{"$f":" IF(conflict?, currentAssigned)","v":false},null,{"$f":" IF(conflict?, currentAssigned)","v":false},null,{"$f":" IF(conflict?, currentAssigned)","v":false},null,{"$f":" IF(conflict?, currentAssigned)","v":false},null,{"$f":" IF(conflict?, currentAssigned)","v":false},null,{"$f":" IF(conflict?, currentAssigned)","v":false}]
[null,null,{"$f":" IF(conflict?, currentAssigned)","v":false},null,{"$f":" IF(conflict?, currentAssigned)","v":false},null,{"$f":" IF(conflict?, currentAssigned)","v":false},null,{"$f":" IF(conflict?, currentAssigned)","v":false},null,{"$f":" IF(conflict?, currentAssigned)","v":false},null,{"$f":" IF(conflict?, currentAssigned)","v":false},null,{"$f":" IF(conflict?, currentAssigned)","v":false}]
[null,null,{"$f":" IF(conflict?, currentAssigned)","v":false},null,{"$f":" IF(conflict?, currentAssigned)","v":false},null,{"$f":" IF(conflict?, currentAssigned)","v":false},null,{"$f":" IF(conflict?, currentAssigned)","v":false},null,{"$f":" IF(conflict?, currentAssigned)","v":false},null,{"$f":" IF(conflict?, currentAssigned)","v":false},null,{"$f":" IF(conflict?, currentAssigned)","v":false}]
[null,null,{"$f":" IF(conflict?, currentAssigned)","v":false},null,{"$f":" IF(conflict?, currentAssigned)","v":false},null,{"$f":" IF(conflict?, currentAssigned)","v":false},null,{"$f":" IF(conflict?, currentAssigned)","v":false},null,{"$f":" IF(conflict?, currentAssigned)","v":false},null,{"$f":" IF(conflict?, currentAssigned)","v":false},null,{"$f":" IF(conflict?, currentAssigned)","v":false}]
[null,null,{"$f":" IF(conflict?, currentAssigned)","v":false},null,{"$f":" IF(conflict?, currentAssigned)","v":false},null,{"$f":" IF(conflict?, currentAssigned)","v":false},null,{"$f":" IF(conflict?, currentAssigned)","v":false},null,{"$f":" IF(conflict?, currentAssigned)","v":false},null,{"$f":" IF(conflict?, currentAssigned)","v":false},null,{"$f":" IF(conflict?, currentAssigned)","v":false}]
[null,null,{"$f":" IF(conflict?, currentAssigned)","v":false},null,{"$f":" IF(conflict?, currentAssigned)","v":false},null,{"$f":" IF(conflict?, currentAssigned)","v":false},null,{"$f":" IF(conflict?, currentAssigned)","v":false},null,{"$f":" IF(conflict?, currentAssigned)","v":false},null,{"$f":" IF(conflict?, currentAssigned)","v":false},null,{"$f":" IF(conflict?, currentAssigned)","v":false}]
[null,null,{"$f":" IF(conflict?, currentAssigned)","v":false},null,{"$f":" IF(conflict?, currentAssigned)","v":false},null,{"$f":" IF(conflict?, currentAssigned)","v":false},null,{"$f":" IF(conflict?, currentAssigned)","v":false},null,{"$f":" IF(conflict?, currentAssigned)","v":false},null,{"$f":" IF(conflict?, currentAssigned)","v":false},null,{"$f":" IF(conflict?, currentAssigned)","v":false}]
[null,null,{"$f":" IF(conflict?, currentAssigned)","v":false},null,{"$f":" IF(conflict?, currentAssigned)","v":false},null,{"$f":" IF(conflict?, currentAssigned)","v":false},null,{"$f":" IF(conflict?, currentAssigned)","v":false},null,{"$f":" IF(conflict?, currentAssigned)","v":false},null,{"$f":" IF(conflict?, currentAssigned)","v":false},null,{"$f":" IF(conflict?, currentAssigned)","v":false}]
[null,null,{"$f":" IF(conflict?, currentAssigned)","v":false},null,{"$f":" IF(conflict?, currentAssigned)","v":false},null,{"$f":" IF(conflict?, currentAssigned)","v":false},null,{"$f":" IF(conflict?, currentAssigned)","v":false},null,{"$f":" IF(conflict?, currentAssigned)","v":false},null,{"$f":" IF(conflict?, currentAssigned)","v":false},null,{"$f":" IF(conflict?, currentAssigned)","v":false}]
[null,null,{"$f":" IF(conflict?, currentAssigned)","v":false},null,{"$f":" IF(conflict?, currentAssigned)","v":false},null,{"$f":" IF(conflict?, currentAssigned)","v":false},null,{"$f":" IF(conflict?, currentAssigned)","v":false},null,{"$f":" IF(conflict?, currentAssigned)","v":false},null,{"$f":" IF(conflict?, currentAssigned)","v":false},null,{"$f":" IF(conflict?, currentAssigned)","v":false}]
[null,null,{"$f":" IF(conflict?, currentAssigned)","v":false},null,{"$f":" IF(conflict?, currentAssigned)","v":false},null,{"$f":" IF(conflict?, currentAssigned)","v":false},null,{"$f":" IF(conflict?, currentAssigned)","v":false},null,{"$f":" IF(conflict?, currentAssigned)","v":false},null,{"$f":" IF(conflict?, currentAssigned)","v":false},null,{"$f":" IF(conflict?, currentAssigned)","v":false}]
[null,null,{"$f":" IF(conflict?, currentAssigned)","v":false},null,{"$f":" IF(conflict?, currentAssigned)","v":false},null,{"$f":" IF(conflict?, currentAssigned)","v":false},null,{"$f":" IF(conflict?, currentAssigned)","v":false},null,{"$f":" IF(conflict?, currentAssigned)","v":false},null,{"$f":" IF(conflict?, currentAssigned)","v":false},null,{"$f":" IF(conflict?, currentAssigned)","v":false}]
[null,null,{"$f":" IF(conflict?, currentAssigned)","v":false},null,{"$f":" IF(conflict?, currentAssigned)","v":false},null,{"$f":" IF(conflict?, currentAssigned)","v":false},null,{"$f":" IF(conflict?, currentAssigned)","v":false},null,{"$f":" IF(conflict?, currentAssigned)","v":false},null,{"$f":" IF(conflict?, currentAssigned)","v":false},null,{"$f":" IF(conflict?, currentAssigned)","v":false}]
[null,null,{"$f":" IF(conflict?, currentAssigned)","v":false},null,{"$f":" IF(conflict?, currentAssigned)","v":false},null,{"$f":" IF(conflict?, currentAssigned)","v":false},null,{"$f":" IF(conflict?, currentAssigned)","v":false},null,{"$f":" IF(conflict?, currentAssigned)","v":false},null,{"$f":" IF(conflict?, currentAssigned)","v":false},null,{"$f":" IF(conflict?, currentAssigned)","v":false}]
[null,null,{"$f":" IF(conflict?, currentAssigned)","v":false},null,{"$f":" IF(conflict?, currentAssigned)","v":false},null,{"$f":" IF(conflict?, currentAssigned)","v":false},null,{"$f":" IF(conflict?, currentAssigned)","v":false},null,{"$f":" IF(conflict?, currentAssigned)","v":false},null,{"$f":" IF(conflict?, currentAssigned)","v":false},null,{"$f":" IF(conflict?, currentAssigned)","v":false}]
[null,null,{"$f":" IF(conflict?, currentAssigned)","v":false},null,{"$f":" IF(conflict?, currentAssigned)","v":false},null,{"$f":" IF(conflict?, currentAssigned)","v":false},null,{"$f":" IF(conflict?, currentAssigned)","v":false},null,{"$f":" IF(conflict?, currentAssigned)","v":false},null,{"$f":" IF(conflict?, currentAssigned)","v":false},null,{"$f":" IF(conflict?, currentAssigned)","v":false}]
[null,null,{"$f":" IF(conflict?, currentAssigned)","v":false},null,{"$f":" IF(conflict?, currentAssigned)","v":false},null,{"$f":" IF(conflict?, currentAssigned)","v":false},null,{"$f":" IF(conflict?, currentAssigned)","v":false},null,{"$f":" IF(conflict?, currentAssigned)","v":false},null,{"$f":" IF(conflict?, currentAssigned)","v":false},null,{"$f":" IF(conflict?, currentAssigned)","v":false}]
[null,null,{"$f":" IF(conflict?, currentAssigned)","v":false},null,{"$f":" IF(conflict?, currentAssigned)","v":false},null,{"$f":" IF(conflict?, currentAssigned)","v":false},null,{"$f":" IF(conflict?, currentAssigned)","v":false},null,{"$f":" IF(conflict?, currentAssigned)","v":false},null,{"$f":" IF(conflict?, currentAssigned)","v":false},null,{"$f":" IF(conflict?, currentAssigned)","v":false}]
[null,null,{"$f":" IF(conflict?, currentAssigned)","v":false},null,{"$f":" IF(conflict?, currentAssigned)","v":false},null,{"$f":" IF(conflict?, currentAssigned)","v":false},null,{"$f":" IF(conflict?, currentAssigned)","v":false},null,{"$f":" IF(conflict?, currentAssigned)","v":false},null,{"$f":" IF(conflict?, currentAssigned)","v":false},null,{"$f":" IF(conflict?, currentAssigned)","v":false}]
[null,null,{"$f":" IF(conflict?, currentAssigned)","v":false},null,{"$f":" IF(conflict?, currentAssigned)","v":false},null,{"$f":" IF(conflict?, currentAssigned)","v":false},null,{"$f":" IF(conflict?, currentAssigned)","v":false},null,{"$f":" IF(conflict?, currentAssigned)","v":false},null,{"$f":" IF(conflict?, currentAssigned)","v":false},null,{"$f":" IF(conflict?, currentAssigned)","v":false}]
[null,null,{"$f":" IF(conflict?, currentAssigned)","v":false},null,{"$f":" IF(conflict?, currentAssigned)","v":false},null,{"$f":" IF(conflict?, currentAssigned)","v":false},null,{"$f":" IF(conflict?, currentAssigned)","v":false},null,{"$f":" IF(conflict?, currentAssigned)","v":false},null,{"$f":" IF(conflict?, currentAssigned)","v":false},null,{"$f":" IF(conflict?, currentAssigned)","v":false}]
[null,null,{"$f":" IF(conflict?, currentAssigned)","v":false},null,{"$f":" IF(conflict?, currentAssigned)","v":false},null,{"$f":" IF(conflict?, currentAssigned)","v":false},null,{"$f":" IF(conflict?, currentAssigned)","v":false},null,{"$f":" IF(conflict?, currentAssigned)","v":false},null,{"$f":" IF(conflict?, currentAssigned)","v":false},null,{"$f":" IF(conflict?, currentAssigned)","v":false}]
[null,null,{"$f":" IF(conflict?, currentAssigned)","v":false},null,{"$f":" IF(conflict?, currentAssigned)","v":false},null,{"$f":" IF(conflict?, currentAssigned)","v":false},null,{"$f":" IF(conflict?, currentAssigned)","v":false},null,{"$f":" IF(conflict?, currentAssigned)","v":false},null,{"$f":" IF(conflict?, currentAssigned)","v":false},null,{"$f":" IF(conflict?, currentAssigned)","v":false}]
[null,null,{"$f":" IF(conflict?, currentAssigned)","v":false},null,{"$f":" IF(conflict?, currentAssigned)","v":false},null,{"$f":" IF(conflict?, currentAssigned)","v":false},null,{"$f":" IF(conflict?, currentAssigned)","v":false},null,{"$f":" IF(conflict?, currentAssigned)","v":false},null,{"$f":" IF(conflict?, currentAssigned)","v":false},null,{"$f":" IF(conflict?, currentAssigned)","v":false}]
[null,null,{"$f":" IF(conflict?, currentAssigned)","v":false},null,{"$f":" IF(conflict?, currentAssigned)","v":false},null,{"$f":" IF(conflict?, currentAssigned)","v":false},null,{"$f":" IF(conflict?, currentAssigned)","v":false},null,{"$f":" IF(conflict?, currentAssigned)","v":false},null,{"$f":" IF(conflict?, currentAssigned)","v":false},null,{"$f":" IF(conflict?, currentAssigned)","v":false}]
[null,null,{"$f":" IF(conflict?, currentAssigned)","v":false},null,{"$f":" IF(conflict?, currentAssigned)","v":false},null,{"$f":" IF(conflict?, currentAssigned)","v":false},null,{"$f":" IF(conflict?, currentAssigned)","v":false},null,{"$f":" IF(conflict?, currentAssigned)","v":false},null,{"$f":" IF(conflict?, currentAssigned)","v":false},null,{"$f":" IF(conflict?, currentAssigned)","v":false}]
[null,null,{"$f":" IF(conflict?, currentAssigned)","v":false},null,{"$f":" IF(conflict?, currentAssigned)","v":false},null,{"$f":" IF(conflict?, currentAssigned)","v":false},null,{"$f":" IF(conflict?, currentAssigned)","v":false},null,{"$f":" IF(conflict?, currentAssigned)","v":false},null,{"$f":" IF(conflict?, currentAssigned)","v":false},null,{"$f":" IF(conflict?, currentAssigned)","v":false}]
[null,null,{"$f":" IF(conflict?, currentAssigned)","v":false},null,{"$f":" IF(conflict?, currentAssigned)","v":false},null,{"$f":" IF(conflict?, currentAssigned)","v":false},null,{"$f":" IF(conflict?, currentAssigned)","v":false},null,{"$f":" IF(conflict?, currentAssigned)","v":false},null,{"$f":" IF(conflict?, currentAssigned)","v":false},null,{"$f":" IF(conflict?, currentAssigned)","v":false}]
[null,null,{"$f":" IF(conflict?, currentAssigned)","v":false},null,{"$f":" IF(conflict?, currentAssigned)","v":false},null,{"$f":" IF(conflict?, currentAssigned)","v":false},null,{"$f":" IF(conflict?, currentAssigned)","v":false},null,{"$f":" IF(conflict?, currentAssigned)","v":false},null,{"$f":" IF(conflict?, currentAssigned)","v":false},null,{"$f":" IF(conflict?, currentAssigned)","v":false}]
[null,null,{"$f":" IF(conflict?, currentAssigned)","v":false},null,{"$f":" IF(conflict?, currentAssigned)","v":false},null,{"$f":" IF(conflict?, currentAssigned)","v":false},null,{"$f":" IF(conflict?, currentAssigned)","v":false},null,{"$f":" IF(conflict?, currentAssigned)","v":false},null,{"$f":" IF(conflict?, currentAssigned)","v":false},null,{"$f":" IF(conflict?, currentAssigned)","v":false}]
[null,null,{"$f":" IF(conflict?, currentAssigned)","v":false},null,{"$f":" IF(conflict?, currentAssigned)","v":false},null,{"$f":" IF(conflict?, currentAssigned)","v":false},null,{"$f":" IF(conflict?, currentAssigned)","v":false},null,{"$f":" IF(conflict?, currentAssigned)","v":false},null,{"$f":" IF(conflict?, currentAssigned)","v":false},null,{"$f":" IF(conflict?, currentAssigned)","v":false}]
[null,null,{"$f":" IF(conflict?, currentAssigned)","v":false},null,{"$f":" IF(conflict?, currentAssigned)","v":false},null,{"$f":" IF(conflict?, currentAssigned)","v":false},null,{"$f":" IF(conflict?, currentAssigned)","v":false},null,{"$f":" IF(conflict?, currentAssigned)","v":false},null,{"$f":" IF(conflict?, currentAssigned)","v":false},null,{"$f":" IF(conflict?, currentAssigned)","v":false}]
[null,null,{"$f":" IF(conflict?, currentAssigned)","v":false},null,{"$f":" IF(conflict?, currentAssigned)","v":false},null,{"$f":" IF(conflict?, currentAssigned)","v":false},null,{"$f":" IF(conflict?, currentAssigned)","v":false},null,{"$f":" IF(conflict?, currentAssigned)","v":false},null,{"$f":" IF(conflict?, currentAssigned)","v":false},null,{"$f":" IF(conflict?, currentAssigned)","v":false}]
[null,null,{"$f":" IF(conflict?, currentAssigned)","v":false},null,{"$f":" IF(conflict?, currentAssigned)","v":false},null,{"$f":" IF(conflict?, currentAssigned)","v":false},null,{"$f":" IF(conflict?, currentAssigned)","v":false},null,{"$f":" IF(conflict?, currentAssigned)","v":false},null,{"$f":" IF(conflict?, currentAssigned)","v":false},null,{"$f":" IF(conflict?, currentAssigned)","v":false}]
[null,null,{"$f":" IF(conflict?, currentAssigned)","v":false},null,{"$f":" IF(conflict?, currentAssigned)","v":false},null,{"$f":" IF(conflict?, currentAssigned)","v":false},null,{"$f":" IF(conflict?, currentAssigned)","v":false},null,{"$f":" IF(conflict?, currentAssigned)","v":false},null,{"$f":" IF(conflict?, currentAssigned)","v":false},null,{"$f":" IF(conflict?, currentAssigned)","v":false}]
[null,null,{"$f":" IF(conflict?, currentAssigned)","v":false},null,{"$f":" IF(conflict?, currentAssigned)","v":false},null,{"$f":" IF(conflict?, currentAssigned)","v":false},null,{"$f":" IF(conflict?, currentAssigned)","v":false},null,{"$f":" IF(conflict?, currentAssigned)","v":false},null,{"$f":" IF(conflict?, currentAssigned)","v":false},null,{"$f":" IF(conflict?, currentAssigned)","v":false}]
[null,null,{"$f":" IF(conflict?, currentAssigned)","v":false},null,{"$f":" IF(conflict?, currentAssigned)","v":false},null,{"$f":" IF(conflict?, currentAssigned)","v":false},null,{"$f":" IF(conflict?, currentAssigned)","v":false},null,{"$f":" IF(conflict?, currentAssigned)","v":false},null,{"$f":" IF(conflict?, currentAssigned)","v":false},null,{"$f":" IF(conflict?, currentAssigned)","v":false}]
[null,null,{"$f":" IF(conflict?, currentAssigned)","v":false},null,{"$f":" IF(conflict?, currentAssigned)","v":false},null,{"$f":" IF(conflict?, currentAssigned)","v":false},null,{"$f":" IF(conflict?, currentAssigned)","v":false},null,{"$f":" IF(conflict?, currentAssigned)","v":false},null,{"$f":" IF(conflict?, currentAssigned)","v":false},null,{"$f":" IF(conflict?, currentAssigned)","v":false}]
[null,null,{"$f":" IF(conflict?, currentAssigned)","v":false},null,{"$f":" IF(conflict?, currentAssigned)","v":false},null,{"$f":" IF(conflict?, currentAssigned)","v":false},null,{"$f":" IF(conflict?, currentAssigned)","v":false},null,{"$f":" IF(conflict?, currentAssigned)","v":false},null,{"$f":" IF(conflict?, currentAssigned)","v":false},null,{"$f":" IF(conflict?, currentAssigned)","v":false}]
[null,null,{"$f":" IF(conflict?, currentAssigned)","v":false},null,{"$f":" IF(conflict?, currentAssigned)","v":false},null,{"$f":" IF(conflict?, currentAssigned)","v":false},null,{"$f":" IF(conflict?, currentAssigned)","v":false},null,{"$f":" IF(conflict?, currentAssigned)","v":false},null,{"$f":" IF(conflict?, currentAssigned)","v":false},null,{"$f":" IF(conflict?, currentAssigned)","v":false}]
[null,null,{"$f":" IF(conflict?, currentAssigned)","v":false},null,{"$f":" IF(conflict?, currentAssigned)","v":false},null,{"$f":" IF(conflict?, currentAssigned)","v":false},null,{"$f":" IF(conflict?, currentAssigned)","v":false},null,{"$f":" IF(conflict?, currentAssigned)","v":false},null,{"$f":" IF(conflict?, currentAssigned)","v":false},null,{"$f":" IF(conflict?, currentAssigned)","v":false}]
[null,null,{"$f":" IF(conflict?, currentAssigned)","v":false},null,{"$f":" IF(conflict?, currentAssigned)","v":false},null,{"$f":" IF(conflict?, currentAssigned)","v":false},null,{"$f":" IF(conflict?, currentAssigned)","v":false},null,{"$f":" IF(conflict?, currentAssigned)","v":false},null,{"$f":" IF(conflict?, currentAssigned)","v":false},null,{"$f":" IF(conflict?, currentAssigned)","v":false}]
[null,null,{"$f":" IF(conflict?, currentAssigned)","v":false},null,{"$f":" IF(conflict?, currentAssigned)","v":false},null,{"$f":" IF(conflict?, currentAssigned)","v":false},null,{"$f":" IF(conflict?, currentAssigned)","v":false},null,{"$f":" IF(conflict?, currentAssigned)","v":false},null,{"$f":" IF(conflict?, currentAssigned)","v":false},null,{"$f":" IF(conflict?, currentAssigned)","v":false}]
[null,null,{"$f":" IF(conflict?, currentAssigned)","v":false},null,{"$f":" IF(conflict?, currentAssigned)","v":false},null,{"$f":" IF(conflict?, currentAssigned)","v":false},null,{"$f":" IF(conflict?, currentAssigned)","v":false},null,{"$f":" IF(conflict?, currentAssigned)","v":false},null,{"$f":" IF(conflict?, currentAssigned)","v":false},null,{"$f":" IF(conflict?, currentAssigned)","v":false}]
[null,null,{"$f":" IF(conflict?, currentAssigned)","v":false},null,{"$f":" IF(conflict?, currentAssigned)","v":false},null,{"$f":" IF(conflict?, currentAssigned)","v":false},null,{"$f":" IF(conflict?, currentAssigned)","v":false},null,{"$f":" IF(conflict?, currentAssigned)","v":false},null,{"$f":" IF(conflict?, currentAssigned)","v":false},null,{"$f":" IF(conflict?, currentAssigned)","v":false}]
[null,null,{"$f":" IF(conflict?, currentAssigned)","v":false},null,{"$f":" IF(conflict?, currentAssigned)","v":false},null,{"$f":" IF(conflict?, currentAssigned)","v":false},null,{"$f":" IF(conflict?, currentAssigned)","v":false},null,{"$f":" IF(conflict?, currentAssigned)","v":false},null,{"$f":" IF(conflict?, currentAssigned)","v":false},null,{"$f":" IF(conflict?, currentAssigned)","v":false}]
[null,null,{"$f":" IF(conflict?, currentAssigned)","v":false},null,{"$f":" IF(conflict?, currentAssigned)","v":false},null,{"$f":" IF(conflict?, currentAssigned)","v":false},null,{"$f":" IF(conflict?, currentAssigned)","v":false},null,{"$f":" IF(conflict?, currentAssigned)","v":false},null,{"$f":" IF(conflict?, currentAssigned)","v":false},null,{"$f":" IF(conflict?, currentAssigned)","v":false}]
[null,null,{"$f":" IF(conflict?, currentAssigned)","v":false},null,{"$f":" IF(conflict?, currentAssigned)","v":false},null,{"$f":" IF(conflict?, currentAssigned)","v":false},null,{"$f":" IF(conflict?, currentAssigned)","v":false},null,{"$f":" IF(conflict?, currentAssigned)","v":false},null,{"$f":" IF(conflict?, currentAssigned)","v":false},null,{"$f":" IF(conflict?, currentAssigned)","v":false}]
[null,null,{"$f":" IF(conflict?, currentAssigned)","v":false},null,{"$f":" IF(conflict?, currentAssigned)","v":false},null,{"$f":" IF(conflict?, currentAssigned)","v":false},null,{"$f":" IF(conflict?, currentAssigned)","v":false},null,{"$f":" IF(conflict?, currentAssigned)","v":false},null,{"$f":" IF(conflict?, currentAssigned)","v":false},null,{"$f":" IF(conflict?, currentAssigned)","v":false}]
[null,null,{"$f":" IF(conflict?, currentAssigned)","v":false},null,{"$f":" IF(conflict?, currentAssigned)","v":false},null,{"$f":" IF(conflict?, currentAssigned)","v":false},null,{"$f":" IF(conflict?, currentAssigned)","v":false},null,{"$f":" IF(conflict?, currentAssigned)","v":false},null,{"$f":" IF(conflict?, currentAssigned)","v":false},null,{"$f":" IF(conflict?, currentAssigned)","v":false}]
[null,null,{"$f":" IF(conflict?, currentAssigned)","v":false},null,{"$f":" IF(conflict?, currentAssigned)","v":false},null,{"$f":" IF(conflict?, currentAssigned)","v":false},null,{"$f":" IF(conflict?, currentAssigned)","v":false},null,{"$f":" IF(conflict?, currentAssigned)","v":false},null,{"$f":" IF(conflict?, currentAssigned)","v":false},null,{"$f":" IF(conflict?, currentAssigned)","v":false}]
[null,null,{"$f":" IF(conflict?, currentAssigned)","v":false},null,{"$f":" IF(conflict?, currentAssigned)","v":false},null,{"$f":" IF(conflict?, currentAssigned)","v":false},null,{"$f":" IF(conflict?, currentAssigned)","v":false},null,{"$f":" IF(conflict?, currentAssigned)","v":false},null,{"$f":" IF(conflict?, currentAssigned)","v":false},null,{"$f":" IF(conflict?, currentAssigned)","v":false}]
[null,null,{"$f":" IF(conflict?, currentAssigned)","v":false},null,{"$f":" IF(conflict?, currentAssigned)","v":false},null,{"$f":" IF(conflict?, currentAssigned)","v":false},null,{"$f":" IF(conflict?, currentAssigned)","v":false},null,{"$f":" IF(conflict?, currentAssigned)","v":false},null,{"$f":" IF(conflict?, currentAssigned)","v":false},null,{"$f":" IF(conflict?, currentAssigned)","v":false}]
[null,null,{"$f":" IF(conflict?, currentAssigned)","v":false},null,{"$f":" IF(conflict?, currentAssigned)","v":false},null,{"$f":" IF(conflict?, currentAssigned)","v":false},null,{"$f":" IF(conflict?, currentAssigned)","v":false},null,{"$f":" IF(conflict?, currentAssigned)","v":false},null,{"$f":" IF(conflict?, currentAssigned)","v":false},null,{"$f":" IF(conflict?, currentAssigned)","v":false}]
[null,null,{"$f":" IF(conflict?, currentAssigned)","v":false},null,{"$f":" IF(conflict?, currentAssigned)","v":false},null,{"$f":" IF(conflict?, currentAssigned)","v":false},null,{"$f":" IF(conflict?, currentAssigned)","v":false},null,{"$f":" IF(conflict?, currentAssigned)","v":false},null,{"$f":" IF(conflict?, currentAssigned)","v":false},null,{"$f":" IF(conflict?, currentAssigned)","v":false}]
[null,null,{"$f":" IF(conflict?, currentAssigned)","v":false},null,{"$f":" IF(conflict?, currentAssigned)","v":false},null,{"$f":" IF(conflict?, currentAssigned)","v":false},null,{"$f":" IF(conflict?, currentAssigned)","v":false},null,{"$f":" IF(conflict?, currentAssigned)","v":false},null,{"$f":" IF(conflict?, currentAssigned)","v":false},null,{"$f":" IF(conflict?, currentAssigned)","v":false}]
[null,null,{"$f":" IF(conflict?, currentAssigned)","v":false},null,{"$f":" IF(conflict?, currentAssigned)","v":false},null,{"$f":" IF(conflict?, currentAssigned)","v":false},null,{"$f":" IF(conflict?, currentAssigned)","v":false},null,{"$f":" IF(conflict?, currentAssigned)","v":false},null,{"$f":" IF(conflict?, currentAssigned)","v":false},null,{"$f":" IF(conflict?, currentAssigned)","v":false}]
[null,null,{"$f":" IF(conflict?, currentAssigned)","v":false},null,{"$f":" IF(conflict?, currentAssigned)","v":false},null,{"$f":" IF(conflict?, currentAssigned)","v":false},null,{"$f":" IF(conflict?, currentAssigned)","v":false},null,{"$f":" IF(conflict?, currentAssigned)","v":false},null,{"$f":" IF(conflict?, currentAssigned)","v":false},null,{"$f":" IF(conflict?, currentAssigned)","v":false}]
[null,null,{"$f":" IF(conflict?, currentAssigned)","v":false},null,{"$f":" IF(conflict?, currentAssigned)","v":false},null,{"$f":" IF(conflict?, currentAssigned)","v":false},null,{"$f":" IF(conflict?, currentAssigned)","v":false},null,{"$f":" IF(conflict?, currentAssigned)","v":false},null,{"$f":" IF(conflict?, currentAssigned)","v":false},null,{"$f":" IF(conflict?, currentAssigned)","v":false}]
[null,null,{"$f":" IF(conflict?, currentAssigned)","v":false},null,{"$f":" IF(conflict?, currentAssigned)","v":false},null,{"$f":" IF(conflict?, currentAssigned)","v":false},null,{"$f":" IF(conflict?, currentAssigned)","v":false},null,{"$f":" IF(conflict?, currentAssigned)","v":false},null,{"$f":" IF(conflict?, currentAssigned)","v":false},null,{"$f":" IF(conflict?, currentAssigned)","v":false}]
[null,null,{"$f":" IF(conflict?, currentAssigned)","v":false},null,{"$f":" IF(conflict?, currentAssigned)","v":false},null,{"$f":" IF(conflict?, currentAssigned)","v":false},null,{"$f":" IF(conflict?, currentAssigned)","v":false},null,{"$f":" IF(conflict?, currentAssigned)","v":false},null,{"$f":" IF(conflict?, currentAssigned)","v":false},null,{"$f":" IF(conflict?, currentAssigned)","v":false}]
[null,null,{"$f":" IF(conflict?, currentAssigned)","v":false},null,{"$f":" IF(conflict?, currentAssigned)","v":false},null,{"$f":" IF(conflict?, currentAssigned)","v":false},null,{"$f":" IF(conflict?, currentAssigned)","v":false},null,{"$f":" IF(conflict?, currentAssigned)","v":false},null,{"$f":" IF(conflict?, currentAssigned)","v":false},null,{"$f":" IF(conflict?, currentAssigned)","v":false}]
[null,null,{"$f":" IF(conflict?, currentAssigned)","v":false},null,{"$f":" IF(conflict?, currentAssigned)","v":false},null,{"$f":" IF(conflict?, currentAssigned)","v":false},null,{"$f":" IF(conflict?, currentAssigned)","v":false},null,{"$f":" IF(conflict?, currentAssigned)","v":false},null,{"$f":" IF(conflict?, currentAssigned)","v":false},null,{"$f":" IF(conflict?, currentAssigned)","v":false}]
[null,null,{"$f":" IF(conflict?, currentAssigned)","v":false},null,{"$f":" IF(conflict?, currentAssigned)","v":false},null,{"$f":" IF(conflict?, currentAssigned)","v":false},null,{"$f":" IF(conflict?, currentAssigned)","v":false},null,{"$f":" IF(conflict?, currentAssigned)","v":false},null,{"$f":" IF(conflict?, currentAssigned)","v":false},null,{"$f":" IF(conflict?, currentAssigned)","v":false}]
[null,null,{"$f":" IF(conflict?, currentAssigned)","v":false},null,{"$f":" IF(conflict?, currentAssigned)","v":false},null,{"$f":" IF(conflict?, currentAssigned)","v":false},null,{"$f":" IF(conflict?, currentAssigned)","v":false},null,{"$f":" IF(conflict?, currentAssigned)","v":false},null,{"$f":" IF(conflict?, currentAssigned)","v":false},null,{"$f":" IF(conflict?, currentAssigned)","v":false}]
[null,null,{"$f":" IF(conflict?, currentAssigned)","v":false},null,{"$f":" IF(conflict?, currentAssigned)","v":false},null,{"$f":" IF(conflict?, currentAssigned)","v":false},null,{"$f":" IF(conflict?, currentAssigned)","v":false},null,{"$f":" IF(conflict?, currentAssigned)","v":false},null,{"$f":" IF(conflict?, currentAssigned)","v":false},null,{"$f":" IF(conflict?, currentAssigned)","v":false}]
[null,null,{"$f":" IF(conflict?, currentAssigned)","v":false},null,{"$f":" IF(conflict?, currentAssigned)","v":false},null,{"$f":" IF(conflict?, currentAssigned)","v":false},null,{"$f":" IF(conflict?, currentAssigned)","v":false},null,{"$f":" IF(conflict?, currentAssigned)","v":false},null,{"$f":" IF(conflict?, currentAssigned)","v":false},null,{"$f":" IF(conflict?, currentAssigned)","v":false}]
[null,null,{"$f":" IF(conflict?, currentAssigned)","v":false},null,{"$f":" IF(conflict?, currentAssigned)","v":false},null,{"$f":" IF(conflict?, currentAssigned)","v":false},null,{"$f":" IF(conflict?, currentAssigned)","v":false},null,{"$f":" IF(conflict?, currentAssigned)","v":false},null,{"$f":" IF(conflict?, currentAssigned)","v":false},null,{"$f":" IF(conflict?, currentAssigned)","v":false}]
[null,null,{"$f":" IF(conflict?, currentAssigned)","v":false},null,{"$f":" IF(conflict?, currentAssigned)","v":false},null,{"$f":" IF(conflict?, currentAssigned)","v":false},null,{"$f":" IF(conflict?, currentAssigned)","v":false},null,{"$f":" IF(conflict?, currentAssigned)","v":false},null,{"$f":" IF(conflict?, currentAssigned)","v":false},null,{"$f":" IF(conflict?, currentAssigned)","v":false}]
[null,null,{"$f":" IF(conflict?, currentAssigned)","v":false},null,{"$f":" IF(conflict?, currentAssigned)","v":false},null,{"$f":" IF(conflict?, currentAssigned)","v":false},null,{"$f":" IF(conflict?, currentAssigned)","v":false},null,{"$f":" IF(conflict?, currentAssigned)","v":false},null,{"$f":" IF(conflict?, currentAssigned)","v":false},null,{"$f":" IF(conflict?, currentAssigned)","v":false}]
[null,null,{"$f":" IF(conflict?, currentAssigned)","v":false},null,{"$f":" IF(conflict?, currentAssigned)","v":false},null,{"$f":" IF(conflict?, currentAssigned)","v":false},null,{"$f":" IF(conflict?, currentAssigned)","v":false},null,{"$f":" IF(conflict?, currentAssigned)","v":false},null,{"$f":" IF(conflict?, currentAssigned)","v":false},null,{"$f":" IF(conflict?, currentAssigned)","v":false}]
[null,null,{"$f":" IF(conflict?, currentAssigned)","v":false},null,{"$f":" IF(conflict?, currentAssigned)","v":false},null,{"$f":" IF(conflict?, currentAssigned)","v":false},null,{"$f":" IF(conflict?, currentAssigned)","v":false},null,{"$f":" IF(conflict?, currentAssigned)","v":false},null,{"$f":" IF(conflict?, currentAssigned)","v":false},null,{"$f":" IF(conflict?, currentAssigned)","v":false}]
[null,null,{"$f":" IF(conflict?, currentAssigned)","v":false},null,{"$f":" IF(conflict?, currentAssigned)","v":false},null,{"$f":" IF(conflict?, currentAssigned)","v":false},null,{"$f":" IF(conflict?, currentAssigned)","v":false},null,{"$f":" IF(conflict?, currentAssigned)","v":false},null,{"$f":" IF(conflict?, currentAssigned)","v":false},null,{"$f":" IF(conflict?, currentAssigned)","v":false}]
[null,null,{"$f":" IF(conflict?, currentAssigned)","v":false},null,{"$f":" IF(conflict?, currentAssigned)","v":false},null,{"$f":" IF(conflict?, currentAssigned)","v":false},null,{"$f":" IF(conflict?, currentAssigned)","v":false},null,{"$f":" IF(conflict?, currentAssigned)","v":false},null,{"$f":" IF(conflict?, currentAssigned)","v":false},null,{"$f":" IF(conflict?, currentAssigned)","v":false}]
[null,null,{"$f":" IF(conflict?, currentAssigned)","v":false},null,{"$f":" IF(conflict?, currentAssigned)","v":false},null,{"$f":" IF(conflict?, currentAssigned)","v":false},null,{"$f":" IF(conflict?, currentAssigned)","v":false},null,{"$f":" IF(conflict?, currentAssigned)","v":false},null,{"$f":" IF(conflict?, currentAssigned)","v":false},null,{"$f":" IF(conflict?, currentAssigned)","v":false}]
[null,null,{"$f":" IF(conflict?, currentAssigned)","v":false},null,{"$f":" IF(conflict?, currentAssigned)","v":false},null,{"$f":" IF(conflict?, currentAssigned)","v":false},null,{"$f":" IF(conflict?, currentAssigned)","v":false},null,{"$f":" IF(conflict?, currentAssigned)","v":false},null,{"$f":" IF(conflict?, currentAssigned)","v":false},null,{"$f":" IF(conflict?, currentAssigned)","v":false}]
[null,null,{"$f":" IF(conflict?, currentAssigned)","v":false},null,{"$f":" IF(conflict?, currentAssigned)","v":false},null,{"$f":" IF(conflict?, currentAssigned)","v":false},null,{"$f":" IF(conflict?, currentAssigned)","v":false},null,{"$f":" IF(conflict?, currentAssigned)","v":false},null,{"$f":" IF(conflict?, currentAssigned)","v":false},null,{"$f":" IF(conflict?, currentAssigned)","v":false}]
[null,null,{"$f":" IF(conflict?, currentAssigned)","v":false},null,{"$f":" IF(conflict?, currentAssigned)","v":false},null,{"$f":" IF(conflict?, currentAssigned)","v":false},null,{"$f":" IF(conflict?, currentAssigned)","v":false},null,{"$f":" IF(conflict?, currentAssigned)","v":false},null,{"$f":" IF(conflict?, currentAssigned)","v":false},null,{"$f":" IF(conflict?, currentAssigned)","v":false}]
[null,null,{"$f":" IF(conflict?, currentAssigned)","v":false},null,{"$f":" IF(conflict?, currentAssigned)","v":false},null,{"$f":" IF(conflict?, currentAssigned)","v":false},null,{"$f":" IF(conflict?, currentAssigned)","v":false},null,{"$f":" IF(conflict?, currentAssigned)","v":false},null,{"$f":" IF(conflict?, currentAssigned)","v":false},null,{"$f":" IF(conflict?, currentAssigned)","v":false}]
[null,null,{"$f":" IF(conflict?, currentAssigned)","v":false},null,{"$f":" IF(conflict?, currentAssigned)","v":false},null,{"$f":" IF(conflict?, currentAssigned)","v":false},null,{"$f":" IF(conflict?, currentAssigned)","v":false},null,{"$f":" IF(conflict?, currentAssigned)","v":false},null,{"$f":" IF(conflict?, currentAssigned)","v":false},null,{"$f":" IF(conflict?, currentAssigned)","v":false}]
[null,null,{"$f":" IF(conflict?, currentAssigned)","v":false},null,{"$f":" IF(conflict?, currentAssigned)","v":false},null,{"$f":" IF(conflict?, currentAssigned)","v":false},null,{"$f":" IF(conflict?, currentAssigned)","v":false},null,{"$f":" IF(conflict?, currentAssigned)","v":false},null,{"$f":" IF(conflict?, currentAssigned)","v":false},null,{"$f":" IF(conflict?, currentAssigned)","v":false}]
[null,null,{"$f":" IF(conflict?, currentAssigned)","v":false},null,{"$f":" IF(conflict?, currentAssigned)","v":false},null,{"$f":" IF(conflict?, currentAssigned)","v":false},null,{"$f":" IF(conflict?, currentAssigned)","v":false},null,{"$f":" IF(conflict?, currentAssigned)","v":false},null,{"$f":" IF(conflict?, currentAssigned)","v":false},null,{"$f":" IF(conflict?, currentAssigned)","v":false}]
[null,null,{"$f":" IF(conflict?, currentAssigned)","v":false},null,{"$f":" IF(conflict?, currentAssigned)","v":false},null,{"$f":" IF(conflict?, currentAssigned)","v":false},null,{"$f":" IF(conflict?, currentAssigned)","v":false},null,{"$f":" IF(conflict?, currentAssigned)","v":false},null,{"$f":" IF(conflict?, currentAssigned)","v":false},null,{"$f":" IF(conflict?, currentAssigned)","v":false}]
[null,null,{"$f":" IF(conflict?, currentAssigned)","v":false},null,{"$f":" IF(conflict?, currentAssigned)","v":false},null,{"$f":" IF(conflict?, currentAssigned)","v":false},null,{"$f":" IF(conflict?, currentAssigned)","v":false},null,{"$f":" IF(conflict?, currentAssigned)","v":false},null,{"$f":" IF(conflict?, currentAssigned)","v":false},null,{"$f":" IF(conflict?, currentAssigned)","v":false}]
[null,null,{"$f":" IF(conflict?, currentAssigned)","v":false},null,{"$f":" IF(conflict?, currentAssigned)","v":false},null,{"$f":" IF(conflict?, currentAssigned)","v":false},null,{"$f":" IF(conflict?, currentAssigned)","v":false},null,{"$f":" IF(conflict?, currentAssigned)","v":false},null,{"$f":" IF(conflict?, currentAssigned)","v":false},null,{"$f":" IF(conflict?, currentAssigned)","v":false}]
[null,null,{"$f":" IF(conflict?, currentAssigned)","v":false},null,{"$f":" IF(conflict?, currentAssigned)","v":false},null,{"$f":" IF(conflict?, currentAssigned)","v":false},null,{"$f":" IF(conflict?, currentAssigned)","v":false},null,{"$f":" IF(conflict?, currentAssigned)","v":false},null,{"$f":" IF(conflict?, currentAssigned)","v":false},null,{"$f":" IF(conflict?, currentAssigned)","v":false}]
[null,null,{"$f":" IF(conflict?, currentAssigned)","v":false},null,{"$f":" IF(conflict?, currentAssigned)","v":false},null,{"$f":" IF(conflict?, currentAssigned)","v":false},null,{"$f":" IF(conflict?, currentAssigned)","v":false},null,{"$f":" IF(conflict?, currentAssigned)","v":false},null,{"$f":" IF(conflict?, currentAssigned)","v":false},null,{"$f":" IF(conflict?, currentAssigned)","v":false}]
[null,null,{"$f":" IF(conflict?, currentAssigned)","v":false},null,{"$f":" IF(conflict?, currentAssigned)","v":false},null,{"$f":" IF(conflict?, currentAssigned)","v":false},null,{"$f":" IF(conflict?, currentAssigned)","v":false},null,{"$f":" IF(conflict?, currentAssigned)","v":false},null,{"$f":" IF(conflict?, currentAssigned)","v":false},null,{"$f":" IF(conflict?, currentAssigned)","v":false}]
[null,null,{"$f":" IF(conflict?, currentAssigned)","v":false},null,{"$f":" IF(conflict?, currentAssigned)","v":false},null,{"$f":" IF(conflict?, currentAssigned)","v":false},null,{"$f":" IF(conflict?, currentAssigned)","v":false},null,{"$f":" IF(conflict?, currentAssigned)","v":false},null,{"$f":" IF(conflict?, currentAssigned)","v":false},null,{"$f":" IF(conflict?, currentAssigned)","v":false}]
[null,null,{"$f":" IF(conflict?, currentAssigned)","v":false},null,{"$f":" IF(conflict?, currentAssigned)","v":false},null,{"$f":" IF(conflict?, currentAssigned)","v":false},null,{"$f":" IF(conflict?, currentAssigned)","v":false},null,{"$f":" IF(conflict?, currentAssigned)","v":false},null,{"$f":" IF(conflict?, currentAssigned)","v":false},null,{"$f":" IF(conflict?, currentAssigned)","v":false}]
[null,null,{"$f":" IF(conflict?, currentAssigned)","v":false},null,{"$f":" IF(conflict?, currentAssigned)","v":false},null,{"$f":" IF(conflict?, currentAssigned)","v":false},null,{"$f":" IF(conflict?, currentAssigned)","v":false},null,{"$f":" IF(conflict?, currentAssigned)","v":false},null,{"$f":" IF(conflict?, currentAssigned)","v":false},null,{"$f":" IF(conflict?, currentAssigned)","v":false}]
[null,null,{"$f":" IF(conflict?, currentAssigned)","v":false},null,{"$f":" IF(conflict?, currentAssigned)","v":false},null,{"$f":" IF(conflict?, currentAssigned)","v":false},null,{"$f":" IF(conflict?, currentAssigned)","v":false},null,{"$f":" IF(conflict?, currentAssigned)","v":false},null,{"$f":" IF(conflict?, currentAssigned)","v":false},null,{"$f":" IF(conflict?, currentAssigned)","v":false}]
[null,null,{"$f":" IF(conflict?, currentAssigned)","v":false},null,{"$f":" IF(conflict?, currentAssigned)","v":false},null,{"$f":" IF(conflict?, currentAssigned)","v":false},null,{"$f":" IF(conflict?, currentAssigned)","v":false},null,{"$f":" IF(conflict?, currentAssigned)","v":false},null,{"$f":" IF(conflict?, currentAssigned)","v":false},null,{"$f":" IF(conflict?, currentAssigned)","v":false}]
[null,null,{"$f":" IF(conflict?, currentAssigned)","v":false},null,{"$f":" IF(conflict?, currentAssigned)","v":false},null,{"$f":" IF(conflict?, currentAssigned)","v":false},null,{"$f":" IF(conflict?, currentAssigned)","v":false},null,{"$f":" IF(conflict?, currentAssigned)","v":false},null,{"$f":" IF(conflict?, currentAssigned)","v":false},null,{"$f":" IF(conflict?, currentAssigned)","v":false}]
[null,null,{"$f":" IF(conflict?, currentAssigned)","v":false},null,{"$f":" IF(conflict?, currentAssigned)","v":false},null,{"$f":" IF(conflict?, currentAssigned)","v":false},null,{"$f":" IF(conflict?, currentAssigned)","v":false},null,{"$f":" IF(conflict?, currentAssigned)","v":false},null,{"$f":" IF(conflict?, currentAssigned)","v":false},null,{"$f":" IF(conflict?, currentAssigned)","v":false}]
[null,null,{"$f":" IF(conflict?, currentAssigned)","v":false},null,{"$f":" IF(conflict?, currentAssigned)","v":false},null,{"$f":" IF(conflict?, currentAssigned)","v":false},null,{"$f":" IF(conflict?, currentAssigned)","v":false},null,{"$f":" IF(conflict?, currentAssigned)","v":false},null,{"$f":" IF(conflict?, currentAssigned)","v":false},null,{"$f":" IF(conflict?, currentAssigned)","v":false}]
[null,null,{"$f":" IF(conflict?, currentAssigned)","v":false},null,{"$f":" IF(conflict?, currentAssigned)","v":false},null,{"$f":" IF(conflict?, currentAssigned)","v":false},null,{"$f":" IF(conflict?, currentAssigned)","v":false},null,{"$f":" IF(conflict?, currentAssigned)","v":false},null,{"$f":" IF(conflict?, currentAssigned)","v":false},null,{"$f":" IF(conflict?, currentAssigned)","v":false}]
[null,null,{"$f":" IF(conflict?, currentAssigned)","v":false},null,{"$f":" IF(conflict?, currentAssigned)","v":false},null,{"$f":" IF(conflict?, currentAssigned)","v":false},null,{"$f":" IF(conflict?, currentAssigned)","v":false},null,{"$f":" IF(conflict?, currentAssigned)","v":false},null,{"$f":" IF(conflict?, currentAssigned)","v":false},null,{"$f":" IF(conflict?, currentAssigned)","v":false}]
[null,null,{"$f":" IF(conflict?, currentAssigned)","v":false},null,{"$f":" IF(conflict?, currentAssigned)","v":false},null,{"$f":" IF(conflict?, currentAssigned)","v":false},null,{"$f":" IF(conflict?, currentAssigned)","v":false},null,{"$f":" IF(conflict?, currentAssigned)","v":false},null,{"$f":" IF(conflict?, currentAssigned)","v":false},null,{"$f":" IF(conflict?, currentAssigned)","v":false}]
[null,null,{"$f":" IF(conflict?, currentAssigned)","v":false},null,{"$f":" IF(conflict?, currentAssigned)","v":false},null,{"$f":" IF(conflict?, currentAssigned)","v":false},null,{"$f":" IF(conflict?, currentAssigned)","v":false},null,{"$f":" IF(conflict?, currentAssigned)","v":false},null,{"$f":" IF(conflict?, currentAssigned)","v":false},null,{"$f":" IF(conflict?, currentAssigned)","v":false}]
[null,null,{"$f":" IF(conflict?, currentAssigned)","v":false},null,{"$f":" IF(conflict?, currentAssigned)","v":false},null,{"$f":" IF(conflict?, currentAssigned)","v":false},null,{"$f":" IF(conflict?, currentAssigned)","v":false},null,{"$f":" IF(conflict?, currentAssigned)","v":false},null,{"$f":" IF(conflict?, currentAssigned)","v":false},null,{"$f":" IF(conflict?, currentAssigned)","v":false}]
[null,null,{"$f":" IF(conflict?, currentAssigned)","v":false},null,{"$f":" IF(conflict?, currentAssigned)","v":false},null,{"$f":" IF(conflict?, currentAssigned)","v":false},null,{"$f":" IF(conflict?, currentAssigned)","v":false},null,{"$f":" IF(conflict?, currentAssigned)","v":false},null,{"$f":" IF(conflict?, currentAssigned)","v":false},null,{"$f":" IF(conflict?, currentAssigned)","v":false}]
[null,null,{"$f":" IF(conflict?, currentAssigned)","v":false},null,{"$f":" IF(conflict?, currentAssigned)","v":false},null,{"$f":" IF(conflict?, currentAssigned)","v":false},null,{"$f":" IF(conflict?, currentAssigned)","v":false},null,{"$f":" IF(conflict?, currentAssigned)","v":false},null,{"$f":" IF(conflict?, currentAssigned)","v":false},null,{"$f":" IF(conflict?, currentAssigned)","v":false}]
[null,null,{"$f":" IF(conflict?, currentAssigned)","v":false},null,{"$f":" IF(conflict?, currentAssigned)","v":false},null,{"$f":" IF(conflict?, currentAssigned)","v":false},null,{"$f":" IF(conflict?, currentAssigned)","v":false},null,{"$f":" IF(conflict?, currentAssigned)","v":false},null,{"$f":" IF(conflict?, currentAssigned)","v":false},null,{"$f":" IF(conflict?, currentAssigned)","v":false}]
[null,null,{"$f":" IF(conflict?, currentAssigned)","v":false},null,{"$f":" IF(conflict?, currentAssigned)","v":false},null,{"$f":" IF(conflict?, currentAssigned)","v":false},null,{"$f":" IF(conflict?, currentAssigned)","v":false},null,{"$f":" IF(conflict?, currentAssigned)","v":false},null,{"$f":" IF(conflict?, currentAssigned)","v":false},null,{"$f":" IF(conflict?, currentAssigned)","v":false}]
[null,null,{"$f":" IF(conflict?, currentAssigned)","v":false},null,{"$f":" IF(conflict?, currentAssigned)","v":false},null,{"$f":" IF(conflict?, currentAssigned)","v":false},null,{"$f":" IF(conflict?, currentAssigned)","v":false},null,{"$f":" IF(conflict?, currentAssigned)","v":false},null,{"$f":" IF(conflict?, currentAssigned)","v":false},null,{"$f":" IF(conflict?, currentAssigned)","v":false}]
[null,null,{"$f":" IF(conflict?, currentAssigned)","v":false},null,{"$f":" IF(conflict?, currentAssigned)","v":false},null,{"$f":" IF(conflict?, currentAssigned)","v":false},null,{"$f":" IF(conflict?, currentAssigned)","v":false},null,{"$f":" IF(conflict?, currentAssigned)","v":false},null,{"$f":" IF(conflict?, currentAssigned)","v":false},null,{"$f":" IF(conflict?, currentAssigned)","v":false}]
[null,null,{"$f":" IF(conflict?, currentAssigned)","v":false},null,{"$f":" IF(conflict?, currentAssigned)","v":false},null,{"$f":" IF(conflict?, currentAssigned)","v":false},null,{"$f":" IF(conflict?, currentAssigned)","v":false},null,{"$f":" IF(conflict?, currentAssigned)","v":false},null,{"$f":" IF(conflict?, currentAssigned)","v":false},null,{"$f":" IF(conflict?, currentAssigned)","v":false}]
[null,null,{"$f":" IF(conflict?, currentAssigned)","v":false},null,{"$f":" IF(conflict?, currentAssigned)","v":false},null,{"$f":" IF(conflict?, currentAssigned)","v":false},null,{"$f":" IF(conflict?, currentAssigned)","v":false},null,{"$f":" IF(conflict?, currentAssigned)","v":false},null,{"$f":" IF(conflict?, currentAssigned)","v":false},null,{"$f":" IF(conflict?, currentAssigned)","v":false}]
[null,null,{"$f":" IF(conflict?, currentAssigned)","v":false},null,{"$f":" IF(conflict?, currentAssigned)","v":false},null,{"$f":" IF(conflict?, currentAssigned)","v":false},null,{"$f":" IF(conflict?, currentAssigned)","v":false},null,{"$f":" IF(conflict?, currentAssigned)","v":false},null,{"$f":" IF(conflict?, currentAssigned)","v":false},null,{"$f":" IF(conflict?, currentAssigned)","v":false}]
[null,null,{"$f":" IF(conflict?, currentAssigned)","v":false},null,{"$f":" IF(conflict?, currentAssigned)","v":false},null,{"$f":" IF(conflict?, currentAssigned)","v":false},null,{"$f":" IF(conflict?, currentAssigned)","v":false},null,{"$f":" IF(conflict?, currentAssigned)","v":false},null,{"$f":" IF(conflict?, currentAssigned)","v":false},null,{"$f":" IF(conflict?, currentAssigned)","v":false}]
[null,null,{"$f":" IF(conflict?, currentAssigned)","v":false},null,{"$f":" IF(conflict?, currentAssigned)","v":false},null,{"$f":" IF(conflict?, currentAssigned)","v":false},null,{"$f":" IF(conflict?, currentAssigned)","v":false},null,{"$f":" IF(conflict?, currentAssigned)","v":false},null,{"$f":" IF(conflict?, currentAssigned)","v":false},null,{"$f":" IF(conflict?, currentAssigned)","v":false}]
[null,null,{"$f":" IF(conflict?, currentAssigned)","v":false},null,{"$f":" IF(conflict?, currentAssigned)","v":false},null,{"$f":" IF(conflict?, currentAssigned)","v":false},null,{"$f":" IF(conflict?, currentAssigned)","v":false},null,{"$f":" IF(conflict?, currentAssigned)","v":false},null,{"$f":" IF(conflict?, currentAssigned)","v":false},null,{"$f":" IF(conflict?, currentAssigned)","v":false}]
[null,null,{"$f":" IF(conflict?, currentAssigned)","v":false},null,{"$f":" IF(conflict?, currentAssigned)","v":false},null,{"$f":" IF(conflict?, currentAssigned)","v":false},null,{"$f":" IF(conflict?, currentAssigned)","v":false},null,{"$f":" IF(conflict?, currentAssigned)","v":false},null,{"$f":" IF(conflict?, currentAssigned)","v":false},null,{"$f":" IF(conflict?, currentAssigned)","v":false}]
[null,null,{"$f":" IF(conflict?, currentAssigned)","v":false},null,{"$f":" IF(conflict?, currentAssigned)","v":false},null,{"$f":" IF(conflict?, currentAssigned)","v":false},null,{"$f":" IF(conflict?, currentAssigned)","v":false},null,{"$f":" IF(conflict?, currentAssigned)","v":false},null,{"$f":" IF(conflict?, currentAssigned)","v":false},null,{"$f":" IF(conflict?, currentAssigned)","v":false}]
[null,null,{"$f":" IF(conflict?, currentAssigned)","v":false},null,{"$f":" IF(conflict?, currentAssigned)","v":false},null,{"$f":" IF(conflict?, currentAssigned)","v":false},null,{"$f":" IF(conflict?, currentAssigned)","v":false},null,{"$f":" IF(conflict?, currentAssigned)","v":false},null,{"$f":" IF(conflict?, currentAssigned)","v":false},null,{"$f":" IF(conflict?, currentAssigned)","v":false}]
[null,null,{"$f":" IF(conflict?, currentAssigned)","v":false},null,{"$f":" IF(conflict?, currentAssigned)","v":false},null,{"$f":" IF(conflict?, currentAssigned)","v":false},null,{"$f":" IF(conflict?, currentAssigned)","v":false},null,{"$f":" IF(conflict?, currentAssigned)","v":false},null,{"$f":" IF(conflict?, currentAssigned)","v":false},null,{"$f":" IF(conflict?, currentAssigned)","v":false}]
[null,null,{"$f":" IF(conflict?, currentAssigned)","v":false},null,{"$f":" IF(conflict?, currentAssigned)","v":false},null,{"$f":" IF(conflict?, currentAssigned)","v":false},null,{"$f":" IF(conflict?, currentAssigned)","v":false},null,{"$f":" IF(conflict?, currentAssigned)","v":false},null,{"$f":" IF(conflict?, currentAssigned)","v":false},null,{"$f":" IF(conflict?, currentAssigned)","v":false}]
[null,null,{"$f":" IF(conflict?, currentAssigned)","v":false},null,{"$f":" IF(conflict?, currentAssigned)","v":false},null,{"$f":" IF(conflict?, currentAssigned)","v":false},null,{"$f":" IF(conflict?, currentAssigned)","v":false},null,{"$f":" IF(conflict?, currentAssigned)","v":false},null,{"$f":" IF(conflict?, currentAssigned)","v":false},null,{"$f":" IF(conflict?, currentAssigned)","v":false}]
[null,null,{"$f":" IF(conflict?, currentAssigned)","v":false},null,{"$f":" IF(conflict?, currentAssigned)","v":false},null,{"$f":" IF(conflict?, currentAssigned)","v":false},null,{"$f":" IF(conflict?, currentAssigned)","v":false},null,{"$f":" IF(conflict?, currentAssigned)","v":false},null,{"$f":" IF(conflict?, currentAssigned)","v":false},null,{"$f":" IF(conflict?, currentAssigned)","v":false}]
[null,null,{"$f":" IF(conflict?, currentAssigned)","v":false},null,{"$f":" IF(conflict?, currentAssigned)","v":false},null,{"$f":" IF(conflict?, currentAssigned)","v":false},null,{"$f":" IF(conflict?, currentAssigned)","v":false},null,{"$f":" IF(conflict?, currentAssigned)","v":false},null,{"$f":" IF(conflict?, currentAssigned)","v":false},null,{"$f":" IF(conflict?, currentAssigned)","v":false}]
[null,null,{"$f":" IF(conflict?, currentAssigned)","v":false},null,{"$f":" IF(conflict?, currentAssigned)","v":false},null,{"$f":" IF(conflict?, currentAssigned)","v":false},null,{"$f":" IF(conflict?, currentAssigned)","v":false},null,{"$f":" IF(conflict?, currentAssigned)","v":false},null,{"$f":" IF(conflict?, currentAssigned)","v":false},null,{"$f":" IF(conflict?, currentAssigned)","v":false}]
[null,null,{"$f":" IF(conflict?, currentAssigned)","v":false},null,{"$f":" IF(conflict?, currentAssigned)","v":false},null,{"$f":" IF(conflict?, currentAssigned)","v":false},null,{"$f":" IF(conflict?, currentAssigned)","v":false},null,{"$f":" IF(conflict?, currentAssigned)","v":false},null,{"$f":" IF(conflict?, currentAssigned)","v":false},null,{"$f":" IF(conflict?, currentAssigned)","v":false}]

{"sheet":"Teams","index":3,"n_rows":60,"n_cols":79,"rows_kept":60,"cut":false,"hidden":false,"merged":[]}
[null,null,null,null,"Teams"]
[]
[null,"Staff","Teams#",null,{"$f":" TRANSPOSE(ClientTbl[])","v":"Client 1"},"Client 2","Client 3","Client 4","Client 5","Client 6","Client 7","Client 8","Client 9","Client 10","Client 11","Client 12","Client 13","Client 14","Client 15","Client 16","Client 17","Client 18","Client 19","Client 20","Client 21","Client 22","Client 23","Client 24","Client 25","Client 26","Client 27","Client 28","Client 29","Client 30","Client 31","Client 32","Client 33","Client 34","Client 35","Client 36","Client 37","Client 38","Client 39","Client 40","Client 41","Client 42","Client 43","Client 44","Client 45","Client 46","Client 47","Client 48","Client 49","Client 50","Client 51","Client 52","Client 53","Client 54","Client 55","Client 56","Client 57","Client 58","Client 59","Client 60","Client 61","Client 62","Client 63","Client 64","Client 65","Client 66","Client 67","Client 68","Client 69","Client 70","Client 71","Client 72","Client 73","Client 74","Client 75"]
[null,"Staff 1",{"$f":" COUNTIFS(Deployable, StaffTbl[])","v":12},null,{"$f":"B16","v":"Staff 13"},{"$f":"B31","v":"Staff 28"},{"$f":"B38","v":"Staff 35"},{"$f":"B25","v":"Staff 22"},{"$f":"B25","v":"Staff 22"},{"$f":"B7","v":"Staff 4"},{"$f":"B4","v":"Staff 1"},{"$f":"B4","v":"Staff 1"},{"$f":"B38","v":"Staff 35"},{"$f":"B17","v":"Staff 14"},{"$f":"B15","v":"Staff 12"},{"$f":"B38","v":"Staff 35"},{"$f":"B15","v":"Staff 12"},{"$f":"B29","v":"Staff 26"},{"$f":"B38","v":"Staff 35"},{"$f":"B17","v":"Staff 14"},{"$f":"B17","v":"Staff 14"},"Staff 2",{"$f":"B26","v":"Staff 23"},{"$f":"B26","v":"Staff 23"},{"$f":"B43","v":"Staff 40"},null,{"$f":"B39","v":"Staff 36"},null,{"$f":"B31","v":"Staff 28"},{"$f":"B31","v":"Staff 28"},{"$f":"B31","v":"Staff 28"},{"$f":"B31","v":"Staff 28"},{"$f":"B6","v":"Staff 3"},{"$f":"B6","v":"Staff 3"},{"$f":"B6","v":"Staff 3"},{"$f":"B16","v":"Staff 13"},{"$f":"B16","v":"Staff 13"},{"$f":"B16","v":"Staff 13"},{"$f":"B4","v":"Staff 1"},{"$f":"B4","v":"Staff 1"},{"$f":"B9","v":"Staff 6"},{"$f":"B9","v":"Staff 6"},{"$f":"B7","v":"Staff 4"},{"$f":"B7","v":"Staff 4"},{"$f":"B16","v":"Staff 13"},{"$f":"B8","v":"Staff 5"},"Staff 1","Staff 5","Staff 4","Staff 2","Staff 5","Staff 1","Staff 1","Staff 2","Staff 1","Staff 1","Staff 2","Staff 3","Staff 4","Staff 1","Staff 5","Staff 4","Staff 1","Staff 5","Staff 4","Staff 2","Staff 5","Staff 1"]
[null,"Staff 2",14,null,{"$f":"B22","v":"Staff 19"},{"$f":"B36","v":"Staff 33"},{"$f":"B27","v":"Staff 24"},{"$f":"B38","v":"Staff 35"},{"$f":"B38","v":"Staff 35"},{"$f":"B41","v":"Staff 38"},{"$f":"B5","v":"Staff 2"},{"$f":"B5","v":"Staff 2"},null,{"$f":"B25","v":"Staff 22"},{"$f":"B29","v":"Staff 26"},{"$f":"B20","v":"Staff 17"},{"$f":"B25","v":"Staff 22"},{"$f":"B26","v":"Staff 23"},{"$f":"B15","v":"Staff 12"},{"$f":"B19","v":"Staff 16"},{"$f":"B25","v":"Staff 22"},"Staff 5","Staff 3",{"$f":"B25","v":"Staff 22"},null,null,null,null,{"$f":"B28","v":"Staff 25"},{"$f":"B28","v":"Staff 25"},{"$f":"B28","v":"Staff 25"},{"$f":"B28","v":"Staff 25"},{"$f":"B22","v":"Staff 19"},{"$f":"B22","v":"Staff 19"},{"$f":"B22","v":"Staff 19"},{"$f":"B17","v":"Staff 14"},{"$f":"B17","v":"Staff 14"},{"$f":"B17","v":"Staff 14"},{"$f":"B17","v":"Staff 14"},{"$f":"B17","v":"Staff 14"},{"$f":"B14","v":"Staff 11"},{"$f":"B14","v":"Staff 11"},{"$f":"B19","v":"Staff 16"},{"$f":"B19","v":"Staff 16"},{"$f":"B7","v":"Staff 4"},{"$f":"B24","v":"Staff 21"},"Staff 5","Staff 8","Staff 5","Staff 3","Staff 9","Staff 2","Staff 2","Staff 5","Staff 3","Staff 5","Staff 4","Staff 6","Staff 5","Staff 3","Staff 6","Staff 5","Staff 5","Staff 8","Staff 5","Staff 3","Staff 9","Staff 2"]
[null,"Staff 3",14,null,{"$f":"B6","v":"Staff 3"},{"$f":"B27","v":"Staff 24"},{"$f":"B40","v":"Staff 37"},{"$f":"B33","v":"Staff 30"},{"$f":"B33","v":"Staff 30"},{"$f":"B15","v":"Staff 12"},{"$f":"B17","v":"Staff 14"},{"$f":"B17","v":"Staff 14"},null,{"$f":"B36","v":"Staff 33"},{"$f":"B38","v":"Staff 35"},{"$f":"B6","v":"Staff 3"},{"$f":"B33","v":"Staff 30"},{"$f":"B36","v":"Staff 33"},{"$f":"B29","v":"Staff 26"},{"$f":"B7","v":"Staff 4"},{"$f":"B26","v":"Staff 23"},"Staff 6","Staff 5",{"$f":"B33","v":"Staff 30"},null,null,null,null,{"$f":"B24","v":"Staff 21"},{"$f":"B24","v":"Staff 21"},{"$f":"B24","v":"Staff 21"},{"$f":"B24","v":"Staff 21"},{"$f":"B20","v":"Staff 17"},{"$f":"B20","v":"Staff 17"},{"$f":"B20","v":"Staff 17"},{"$f":"B7","v":"Staff 4"},{"$f":"B7","v":"Staff 4"},{"$f":"B7","v":"Staff 4"},{"$f":"B16","v":"Staff 13"},{"$f":"B16","v":"Staff 13"},{"$f":"B20","v":"Staff 17"},{"$f":"B20","v":"Staff 17"},{"$f":"B24","v":"Staff 21"},{"$f":"B24","v":"Staff 21"},{"$f":"B17","v":"Staff 14"},{"$f":"B28","v":"Staff 25"},"Staff 6","Staff 9","Staff 7","Staff 5","Staff 10","Staff 4","Staff 3","Staff 6","Staff 5","Staff 8","Staff 7","Staff 8","Staff 7","Staff 4","Staff 7","Staff 8","Staff 6","Staff 9","Staff 7","Staff 5","Staff 10","Staff 4"]
[null,"Staff 4",17,null,null,{"$f":"B28","v":"Staff 25"},{"$f":"B35","v":"Staff 32"},{"$f":"B36","v":"Staff 33"},{"$f":"B36","v":"Staff 33"},{"$f":"B17","v":"Staff 14"},{"$f":"B36","v":"Staff 33"},{"$f":"B36","v":"Staff 33"},null,{"$f":"B29","v":"Staff 26"},null,null,null,{"$f":"B25","v":"Staff 22"},{"$f":"B17","v":"Staff 14"},{"$f":"B15","v":"Staff 12"},{"$f":"B29","v":"Staff 26"},"Staff 9","Staff 8",{"$f":"B38","v":"Staff 35"},null,null,null,null,{"$f":"B16","v":"Staff 13"},{"$f":"B16","v":"Staff 13"},{"$f":"B16","v":"Staff 13"},{"$f":"B16","v":"Staff 13"},{"$f":"B9","v":"Staff 6"},{"$f":"B9","v":"Staff 6"},{"$f":"B9","v":"Staff 6"},{"$f":"B27","v":"Staff 24"},{"$f":"B27","v":"Staff 24"},{"$f":"B27","v":"Staff 24"},{"$f":"B42","v":"Staff 39"},{"$f":"B42","v":"Staff 39"},{"$f":"B6","v":"Staff 3"},{"$f":"B6","v":"Staff 3"},{"$f":"B27","v":"Staff 24"},{"$f":"B27","v":"Staff 24"},{"$f":"B19","v":"Staff 16"},{"$f":"B31","v":"Staff 28"},"Staff 10",null,"Staff 10","Staff 11","Staff 13","Staff 6","Staff 4","Staff 9","Staff 8","Staff 12","Staff 10","Staff 13","Staff 11","Staff 5","Staff 13","Staff 11","Staff 10",null,"Staff 10","Staff 11","Staff 13","Staff 6"]
[null,"Staff 5",23,null,null,null,{"$f":"B5","v":"Staff 2"},{"$f":"B5","v":"Staff 2"},null,{"$f":"B36","v":"Staff 33"},{"$f":"B26","v":"Staff 23"},{"$f":"B26","v":"Staff 23"},null,null,null,null,null,{"$f":"B33","v":"Staff 30"},null,{"$f":"B29","v":"Staff 26"},{"$f":"B33","v":"Staff 30"},null,"Staff 13",{"$f":"B34","v":"Staff 31"},null,null,null,null,null,null,null,null,{"$f":"B18","v":"Staff 15"},{"$f":"B18","v":"Staff 15"},{"$f":"B18","v":"Staff 15"},{"$f":"B42","v":"Staff 39"},{"$f":"B42","v":"Staff 39"},{"$f":"B42","v":"Staff 39"},{"$f":"B24","v":"Staff 21"},{"$f":"B24","v":"Staff 21"},{"$f":"B5","v":"Staff 2"},{"$f":"B5","v":"Staff 2"},{"$f":"B32","v":"Staff 29"},{"$f":"B32","v":"Staff 29"},{"$f":"B27","v":"Staff 24"},{"$f":"B35","v":"Staff 32"},null,null,"Staff 12",null,null,"Staff 12","Staff 11",null,"Staff 13",null,"Staff 11",null,"Staff 12","Staff 11",null,null,null,null,"Staff 12",null,null,"Staff 12"]
[null,"Staff 6",15,null,null,null,{"$f":"B9","v":"Staff 6"},{"$f":"B9","v":"Staff 6"},null,{"$f":"B26","v":"Staff 23"},{"$f":"B34","v":"Staff 31"},{"$f":"B34","v":"Staff 31"},null,null,null,null,null,null,null,{"$f":"B36","v":"Staff 33"},{"$f":"B34","v":"Staff 31"},null,"Staff 14",{"$f":"B29","v":"Staff 26"},null,null,null,null,null,null,null,null,null,null,"Big Dog",null,{"$f":"B34","v":"Staff 31"},{"$f":"B34","v":"Staff 31"},{"$f":"B27","v":"Staff 24"},{"$f":"B27","v":"Staff 24"},{"$f":"B37","v":"Staff 34"},{"$f":"B37","v":"Staff 34"},{"$f":"B41","v":"Staff 38"},{"$f":"B41","v":"Staff 38"},{"$f":"B31","v":"Staff 28"},{"$f":"B32","v":"Staff 29"},null,null,"Staff 13",null,null,"Staff 14","Staff 12",null,"Staff 14",null,"Staff 12",null,"Staff 14",null,null,null,null,null,"Staff 13",null,null,"Staff 14"]
[null,"Staff 7",5,null,null,null,null,null,null,null,{"$f":"B38","v":"Staff 35"},{"$f":"B38","v":"Staff 35"},null,null,null,null,null,null,null,null,null,null,null,null,null,null,null,null,null,null,null,null,null,null,"CPL",null,null,null,{"$f":"B28","v":"Staff 25"},{"$f":"B28","v":"Staff 25"},{"$f":"B23","v":"Staff 20"},{"$f":"B23","v":"Staff 20"},{"$f":"B8","v":"Staff 5"},{"$f":"B8","v":"Staff 5"},{"$f":"B35","v":"Staff 32"},{"$f":"B8","v":"Staff 5"},null,null,"Staff 14"]
[null,"Staff 8",7,null,null,null,null,null,null,null,{"$f":"B29","v":"Staff 26"},{"$f":"B29","v":"Staff 26"},null,null,null,null,null,null,null,null,null,null,null,null,null,null,null,null,null,null,null,null,null,null,null,null,null,null,{"$f":"B34","v":"Staff 31"},{"$f":"B34","v":"Staff 31"},null,null,{"$f":"B15","v":"Staff 12"},{"$f":"B15","v":"Staff 12"},{"$f":"B32","v":"Staff 29"},{"$f":"B41","v":"Staff 38"}]
[null,"Staff 9",6,null,null,null,null,null,null,null,{"$f":"B20","v":"Staff 17"},{"$f":"B20","v":"Staff 17"}]
[null,"Staff 10",7]
[null,"Staff 11",9,null,null,null,null,null,null,null,null,null,null,null,null,null,null,null,null,{"$f":"B33","v":"Staff 30"},{"$f":"B36","v":"Staff 33"},null,null,{"$f":"B17","v":"Staff 14"},null,null,null,null,null,null,null,null,null,null,null,null,null,null,null,null,null,null,null,null,null,null,null,null,null,null,null,null,"Staff 13",null,null,null,"Staff 14",null,null,null,null,null,null,null,"Staff 14"]
[null,"Staff 12",15,null,null,null,null,null,null,null,null,null,null,null,null,null,null,null,null,null,null,null,null,{"$f":"B36","v":"Staff 33"}]
[null,"Staff 13",20]
[null,"Staff 14",22]
[null,"Staff 15",3]
[null,"Staff 16",4]
[null,"Staff 17",8]
[null,"Staff 18",0]
[null,"Staff 19",4]
[null,"Staff 20",2]
[null,"Staff 21",9]
[null,"Staff 22",7]
[null,"Staff 23",7]
[null,"Staff 24",10]
[null,"Staff 25",8]
[null,"Staff 26",9]
[null,"Staff 27",0]
[null,"Staff 28",7]
[null,"Staff 29",4]
[null,"Staff 30",7]
[null,"Staff 31",8]
[null,"Staff 32",3]
[null,"Staff 33",11]
[null,"Staff 34",2]
[null,"Staff 35",10]
[null,"Staff 36",1]
[null,"Staff 37",1]
[null,"Staff 38",4]
[null,"Staff 39",5]
[null,"Staff 40",1]
[null,"Staff 41",0]
[null,"Staff 42",0]
[null,"Staff 43",0]
[null,"Staff 44",0]
[null,"Staff 45",0]
[null,"Staff 46",0]
[null,"Staff 47",0]
[null,"Staff 48",0]
[null,"Staff 49",0]
[null,"Staff 50",0]
[null,"Staff 51"]
[null,"Staff 52"]
[null,"Staff 53"]
[null,"Staff 54"]
[null,"Staff 55"]
[null,"Staff 56"]
[null,"Staff 57"]

{"sheet":"Data","index":4,"n_rows":77,"n_cols":16,"rows_kept":77,"cut":false,"hidden":false,"merged":[]}
[]
[null,"Times",null,"Staff",null,"Name"]
[null,"05:30:00",null,"Staff 1",null,"Client 1"]
[null,"05:45:00",null,"Staff 2",null,"Client 2"]
[null,"06:00:00",null,"Staff 3",null,"Client 3"]
[null,"06:15:00",null,"Staff 4",null,"Client 4"]
[null,"06:30:00",null,"Staff 5",null,"Client 5"]
[null,"06:45:00",null,"Staff 6",null,"Client 6"]
[null,"07:00:00",null,"Staff 7",null,"Client 7"]
[null,"07:15:00",null,"Staff 8",null,"Client 8"]
[null,"07:30:00",null,"Staff 9",null,"Client 9"]
[null,"07:45:00",null,"Staff 10",null,"Client 10"]
[null,"08:00:00",null,"Staff 11",null,"Client 11"]
[null,"08:15:00",null,"Staff 12",null,"Client 12"]
[null,"08:30:00",null,"Staff 13",null,"Client 13"]
[null,"08:45:00",null,"Staff 14",null,"Client 14"]
[null,"09:00:00",null,"Staff 15",null,"Client 15"]
[null,"09:15:00",null,"Staff 16",null,"Client 16"]
[null,"09:30:00",null,"Staff 17",null,"Client 17"]
[null,"09:45:00",null,"Staff 18",null,"Client 18"]
[null,"10:00:00",null,"Staff 19",null,"Client 19"]
[null,"10:15:00",null,"Staff 20",null,"Client 20"]
[null,"10:30:00",null,"Staff 21",null,"Client 21"]
[null,"10:45:00",null,"Staff 22",null,"Client 22"]
[null,"11:00:00",null,"Staff 23",null,"Client 23"]
[null,"11:15:00",null,"Staff 24",null,"Client 24"]
[null,"11:30:00",null,"Staff 25",null,"Client 25"]
[null,"11:45:00",null,"Staff 26",null,"Client 26"]
[null,"12:00:00",null,"Staff 27",null,"Client 27"]
[null,"12:15:00",null,"Staff 28",null,"Client 28"]
[null,"12:30:00",null,"Staff 29",null,"Client 29"]
[null,"12:45:00",null,"Staff 30",null,"Client 30"]
[null,"13:00:00",null,"Staff 31",null,"Client 31"]
[null,"13:15:00",null,"Staff 32",null,"Client 32"]
[null,"13:30:00",null,"Staff 33",null,"Client 33"]
[null,"13:45:00",null,"Staff 34",null,"Client 34"]
[null,"14:00:00",null,"Staff 35",null,"Client 35"]
[null,"14:15:00",null,"Staff 36",null,"Client 36"]
[null,"14:30:00",null,"Staff 37",null,"Client 37",null,null,null,null,"Page of 1",null,null,null,null,"36 Records"]
[null,"14:45:00",null,"Staff 38",null,"Client 38"]
[null,"15:00:00",null,"Staff 39",null,"Client 39"]
[null,"15:15:00",null,"Staff 40",null,"Client 40"]
[null,"15:30:00",null,"Staff 41",null,"Client 41"]
[null,"15:45:00",null,"Staff 42",null,"Client 42"]
[null,"16:00:00",null,"Staff 43",null,"Client 43"]
[null,"16:15:00",null,"Staff 44",null,"Client 44"]
[null,"16:30:00",null,"Staff 45",null,"Client 45"]
[null,"16:45:00",null,"Staff 46",null,"Client 46"]
[null,"17:00:00",null,"Staff 47",null,"Client 47"]
[null,"17:15:00",null,"Staff 48",null,"Client 48"]
[null,"17:30:00",null,"Staff 49",null,"Client 49"]
[null,"17:45:00",null,"Staff 50",null,"Client 50"]
[null,"18:00:00",null,null,null,"Client 51"]
[null,"18:15:00",null,null,null,"Client 52"]
[null,"18:30:00",null,null,null,"Client 53"]
[null,"18:45:00",null,null,null,"Client 54"]
[null,"19:00:00",null,null,null,"Client 55"]
[null,"19:15:00",null,null,null,"Client 56"]
[null,"19:30:00",null,null,null,"Client 57"]
[null,"19:45:00",null,null,null,"Client 58"]
[null,"20:00:00",null,null,null,"Client 59"]
[null,"20:15:00",null,null,null,"Client 60"]
[null,"20:30:00",null,null,null,"Client 61"]
[null,"20:45:00",null,null,null,"Client 62"]
[null,"21:00:00",null,null,null,"Client 63"]
[null,"21:15:00",null,null,null,"Client 64"]
[null,"21:30:00",null,null,null,"Client 65"]
[null,"21:45:00",null,null,null,"Client 66"]
[null,"22:00:00",null,null,null,"Client 67"]
[null,"22:15:00",null,null,null,"Client 68"]
[null,"22:30:00",null,null,null,"Client 69"]
[null,"22:45:00",null,null,null,"Client 70"]
[null,"23:00:00",null,null,null,"Client 71"]
[null,null,null,null,null,"Client 72"]
[null,null,null,null,null,"Client 73"]
[null,null,null,null,null,"Client 74"]
[null,null,null,null,null,"Client 75"]